{"text_format":"1","workbook":"xlsx","n_sheets":37,"sheets":["LEAME PRIMERO","Resumen","Indice","PresentPAResumen","IFS3P","IFS4P","IFS5P","IFS6P","IFS7P","IFS8P","IFS9P","IFS10P","IFS11P","IFS12P","IFS13P","IFS14P","IFS15P","IFS16P","IFS17P","IFS18P","IFS19P","IFS20P","IFS21P","IFS23P","IFS24P","IFS25P","IFS26P","IFS27P","IFS28P","IFS29P","IFS30P","IFS31P","IFS32P","IFS33P","IFS34P","IFS35P","ExternalVersion"],"not_rendered":{"charts":0,"images":0,"macros":1,"external_links":1,"defined_names":220,"comments":0,"pivot_tables":0},"unopened":[],"bounds":{"document_bytes":16777216,"sheet_cells":100000,"rows_first":2000,"rows_last":500,"rows_between":2000,"halvings":0,"cell_chars":16384,"cell_head_chars":4096},"cells_cut":0,"cells_raw":0,"read":"whole","date_system":"1900"}

{"sheet":"LEAME PRIMERO","index":0,"n_rows":77,"n_cols":2,"rows_kept":77,"cut":false,"hidden":false,"merged":[]}
[]
["Normas Internacionales de Información Financiera (NIIF) para entidades de tamaño pequeño y mediano (PYMES)"]
["Libro de trabajo 2013"]
[]
["Términos de uso"]
[]
["Mediante el uso de este libro de trabajo en Excel workbook, usted se compromete con los siguientes términos. Si usted no está de acuerdo con los siguientes términos, entonces a usted no se le permite  usar este libro de trabajo y usted debe terminar inmediatamente tal uso."]
["Este libro de trabajo resume los requerimientos de presentación y revelación que se establecen en las Normas Internacionales de Información Financiera (NIIF) para entidades de tamaño pequeño y mediano (PYMES) al 9 Julio 2009. La NIIF para PYMES incluye las Secciones emitidas por la International Accounting Standards Board (IASB) y Preguntas y Respuestas emitidas por el SME Implementation Group (SMEIG). Este libro de trabajo puede ser usado como guía para considerar el cumplimiento con los requerimientos de presentación y revelación de la NIIF para PYMES. No es un sustituto para su entendimiento de tales pronunciamientos ni para la búsqueda de la asesoría de un asesor profesional calificado."]
["Se presume que usted tiene un entendimiento completo de la NIIF para PYMES y debe referirse a su texto, en cuanto sea necesario, al considerar los elementos particulares contenidos en este libro de trabajo. Los elementos contenidos en este libro de trabajo están referenciados con las secciones aplicables del la  NIIF para PYMES actual."]
["Los puntos detallados de presentación y revelación generalmente requieren una respuesta de \"Yes\"[Sí], \"No\" o \"N/A\". Dependiendo de su respuesta, usted puede necesitar realizar acción adicional.  La respuesta \"Yes\"[Sí] no necesariamente resulta en cumplimiento con la NIIF para PYMES."]
["Dado que la NIIF para PYMES es enmendada y revisada por IASB de tiempo en tiempo, esta lista de verificación puede no estar actualizada."]
[]
["Limitación de responsabilidad"]
[]
["Este sitio web solo contiene información general, y ninguno de Deloitte Touche Tohmatsu Limited, sus firmas miembro, o sus entidades relacionadas (colectivamente la \"Red Deloitte”) está, por medio de este sitio web, prestando asesoría o servicios de contabilidad, negocios, finanzas, inversión, legal, impuestos, u otros asesoría o servicios de carácter profesional. Este sitio web no es sustitito de tales asesoría o servicios profesionales, ni debe ser usado como base para cualquier decisión o acción que pueda afectar, entre otras cosas, sus finanzas, su negocio o sus obligaciones de cumplimiento. Antes de tomar cualquier decisión o realizar cualquier acción que pueda afectar sus finanzas, su negocio o sus obligaciones de cumplimiento, usted debe consultar a un asesor profesional calificado. Usted puede  no confiar en este sitio web y cualquier uso de este sitio web es por su propio riesgo. Usted asume toda la responsabilidad y los riesgos de pérdida resultantes del uso de este sitio web. Ninguna entidad de la Red Deloitte será responsable por cualquier pérdida que sea tenida por cualquier persona que confíe en este sitio web. Al usar este sitio web usted se compromete a indemnizar y a mantener indeme a la Red Deloitte.\n\nSi usted copia, imprime, o distribuye páginas o porciones de páginas provenientes de este sitio web, tales páginas y porciones de páginas están sujetas a las siguientes condiciones: \n\n• Pueden ser usadas sólo para propósitos informativos. \n• Pueden ser usados solo para propósitos no-comerciales. \n• Tienen que incluir  en su totalidad esta notificación, aYes como también las notificaciones de derecho de copia y de limitación de responsabilidad. "]
["INSTRUCCIONES IMPORTANTES PARA USAR ESTE LIBRO DE TRABAJO","."]
[]
["Advertencias importantes de programación de macros en Excel"]
["Por favor no adicione ni elimina ninguna fila o columna contenida en el libro de trabajo. Cambiar o elminar la respuesta a una Pregunta ajustada (PA)  o sub PA resultará en perder las respuestas ya ingresadas en las preguntas de cumplimiento detalladas asociadas con la PA o con la sub PA."]
["Estructura del archivo"]
["El libro de trabajo incluye varios tipos de hojas de cálculo:"]
["- LÉAME PRIMERO"]
["La hoja \"LEAME PRIMERO\" contiene los términos de uso e instrucciones importantes para usar este libro de trabajo."]
["- Resumen"]
["La hoja \"Resumen\" contiene preguntas que pueden ser usadas para resumir los resultados de esta lista de verificación aYes como también si han sido satisfechos los requerimientos de presentación y revelación de la NIIF para PYMES."]
["- Index"]
["La hoja \"Index\" proporciona una vista de conjunto de todas las secciiones de la NIIF para PYMES que se incluyen en esta lista de verificación. En este Index, el usuario debe señalar cuáles secciones de la NIIF para PYMES son aplicables para la entidad. Por favor observe que la respuesta por defecto ha sido establecida que es Yes (Yes) y debe ser cambiada si la sección de la NIIF para PYMES no es aplicable. Para todas las secciones de la NIIF para PYMES que sean aplicables, la hoja \"Index\" contiene vínculos a las listas de verificación de la presentación y revelación por sección. Si las listas de presentación y revelación por estándar solo contiene 1 pregunta ajustada, la respuesta por defecto en la lista de verificación de la presentación y revelación automáticamente será respondida \"Yes\" (Yes)."]
["- ResumenPAPresentación"]
["El \"ResumenPAPresentación\" proporciona una vista de conjunto de las respuestas a las principales preguntas ajustadas para la NIIF para PYMES."]
["- lista de verificación de la presentación y revelación (IFS [preguntas ajustadas]P) por sección"]
["La \"lista de verificación de la presentación y revelación\" por sección contiene preguntas ajustadas y detalladas que ayudarán a determinar si se han satisfecho los requerimientos de presentación y revelación de las secciones aplicables de la NIIF para PYMES."]
["- Enmiendas por consecuencia"]
["Ciertas Secciones, Enmiendas y Preguntas y Respuestas del SMEIG pueden enmendar secciones (Enmiendas por consecuencia). Previamente, IASB había establecido que planeaba realizar una revisión comprensiva inicial de la NIIF para PYMES (Norma Internacional de Información Financiera para entidades de tamaño pequeño y mediano) para valorar la experiencia que en los primeros dos años las entidades hayan tenido en la aplicación de la NIIF para PYMES. Durante este proceso de revisión, IASB tiene la intención de considerar las NIIF nuevas y enmendadas que hayan sido adoptadas desde que la NIIF para PYMES fue emitida y si cualesquiera enmiendas deben ser propuestas para abordar cualesquiera problemas de implementación identificados en la revisión comprensiva. Una revisión comprensiva fue lanzada formalmente en la reunión de IASB realizada en Junio de 2012 IASB. La solicitud de información fue emitida el 26 Junio 2012 (fecha límite para comentarios el 30 Noviembre 2012). En Febrero 2013 el SME Implementation Group (SMEIG) comenzará a discutir las respuestas a la Solicitud de información. El cronograma tentativo establece el  2015 como la fecha efectiva objetivo para cualesquiera enmiendas resultantes de la revisión."]
[]
["Codificación del color"]
["Todas las hojas contenidas en este libro siguen una codificación estándar del color."]
["Azul oscuto: Principales preguntas ajustadas"]
[]
["Violeta claro  : Sub-preguntas ajustadas"]
[]
["Verde claro : Guidance"]
[]
["Violeta : Celda de respuesta"]
[]
["Estructura general del cuestionario"]
["Cada cuestionario incluye cinco columnas"]
["- PA : referencia interna para una pregunta ajustada principal."]
["- Referencia : donde se señala la referencia al parágrafo relacionado contenido en la Sección."]
["- Requerimiento de presentation/Revelación (lista de verificación de la presentación y revelación ): Preguntas (preguntas ajustadas, sub-ajustadas y detalladas de cumplimiento) y Guidance."]
["- Yes/No/N/A : Respuestas. Exclusivamente Yes (Sí), No o N/A. En algunos casos, está disponible la opción para seleccionar Guidance."]
["- Comentarios : A ser llenados cuando se observe una discrepancia con la Sección o Preguntas y Respuestas del SMEIG."]
["Proceso"]
["Aplicabilidad"]
["Iniciando en la página del Index, el preparador selecciona por Sección la aplicabilidad que la Sección tiene para la asignación, haciéndolo mediante seleccionar  \"Yes\" (Sí) o \"No\" en el cuadro desplegable."]
["En caso de una respuesta positiva (mediante seleccionar \"Yes\" (Sí) en la Sección que sea aplicable), el cuestionario (presentación y revelación) relacionado con la Sección seleccionada aparecerá en el libro de trabajo. El usuario automáticamente será transferido, mediante hacer clic en el link, al cuestionario seleccionado."]
["Guidance"]
["El usuario puede decidir si quiere mostrar [Show] u ocultar [Hide] en el cuestionario la Guidance, haciéndolo mediante seleccionar una de las opciones en la parte alta del cuestionario. La Guidance sobre las preguntas individuales no desaparecerá automáticamente si usted responde \"Yes\" (Sí)  o \"no\"  a la pregunta.  La Guidance sobre las preguntas individuales puede ser ocultada mediante seleccionar la opción \"Hide\"en la parte alta de la hoja."]
["Cumplimiento"]
["El cuestionario es para ser llenado en el orden sugerido, el cual corresponde al flujo lógico del estándar."]
["La respuesta a una pregunta ajustada puede conducir a una(s) sub-pregunta(s) ajustada(s) o a algunas preguntas de cumplimiento detalladas."]
["Haciendo clic en la célula de respuesta, al usuario se le propondrá una selección de opciones (Yes/No/N/A) y algunas veces a Guidance. Al seleccionar  Guidance, debajo de la pregunta se revelará algún contenido adicional. El preparador entonces necesita regresar a la pregunta inicial para responder  Yes, No o N/A."]
["La respuesta contenida en una célula de respuesta puede ser eliminada."]
["Si la respuesta a una pregunta ajustada o sub-pregunta ajustada es borrada, todas las preguntas de Cumplimiento asociadas no serán desplegadas en la pantalla. La célula de respuesta será eliminada automáticamente."]
["La respuesta negativa a una pregunta de Cumplimiento detallada señala, en la mayoría de los casos, no-cumplimiento con el estándar. En la siguiente columna se insertará un comentario."]
["ResumenPAPresentación"]
["Las respuestas (o la carencia de una respuesta) a las preguntas ajustadas principales se copian automáticamente en la hoja ResumenPAPresentación (Hipervínculo en la parte superior derecha de la hoja). La hoja ResumenPAPresentación da una vista de conjunto a las respuestas a las preguntas ajustadas principales. No ofrece una vista de conjunto del no-cumplimiento."]
["Contenido eliminado de la(s) célula(s)"]
["En el caso del usuario que trabaje con una versión no-protegida y pierda el contenido, el problema se puede corregir tal y como sigue: (1) Des-Hide las filas con el texto perdido. (2) Copiar el texto perdido, tomándolo de un archivo bien conocido y pegarlo en la hoja donde ocurrió la pérdida de contenido y grabar el archivo."]
[]
[]
["Deloitte se refiere a una o más de Deloitte Touche Tohmatsu Limited, una compañía privada del Reino Unido limitada por garantía, y su red\nde firmas miembro, cada una de las cuales es una entidad legalmente separada e independiente. Por favor vea www.deloitte.com/about para una descripción detallada\nde la estructura legal de Deloitte Touche Tohmatsu Limited y sus firmas miembro.\n"]
["“Deloitte” es la marca bajo la cual decenas de miles de profesionales dedicados en firmas independientes de todo el mundo colaboran para prestar a clientes seleccionados servicios de auditoría, consultoría, asesoría financiera, administración del riesgo, e impuestos. Esas firmas son miembros de Deloitte Touche Tohmatsu Limited (DTTL), una compañía privada del Reino Unido limitada por garantía. Cada firma miembro presta servicios en un área geográfica particular y está sujeta a las leyes y regulaciones profesionales del país o paises particulares en los cuales opera. DTTL por Yes misma no presta servicios a los clientes. DTTL y cada firma miembro de DTTL son entidades legales separadas y  distintas, que no pueden obligar unas a otras. DTTL y cada firma miembro de DTTL sob responsables solamente por sus propios actos u omisiones y no por los de las otras. Cada firma miembro de DTTL está estructurada de manera diferente de acuerdo con las leyes nacionales, las regulaciones, la práctica acostumbrada, y otros factores, y pueden asegurar la prestación de servicios profesionales en su territorio mediante subsidiarias, afiliadas, y/u otras entidades.\n"]
["© 2013 Deloitte Touche Tohmatsu Limited"]
[]
["Traducción al español:"]
["Para mantener los vínculos la traducción contiene algunas palabras en inglés (que han sido explicadas arriba en esta hoja). Si bien se ha tenido todo el cuidado para mantener la funcionalidad, es posible que de manera no-intencional se haya deshabilidado algún vínculo."]
["Traducción realizada por Samuel A. Mantilla, asesor de investigación contable de Deloitte &Touche Ltda., Colombia,  con la revisión técnica de César Cheng, Socio Director General de Deloitte & Touche Ltda., Colombia - Octubre 2013."]

{"sheet":"Resumen","index":1,"n_rows":13,"n_cols":2,"rows_kept":13,"cut":false,"hidden":false,"merged":[[0,0,0,1],[1,0,1,1],[2,0,2,1],[3,0,3,1],[11,0,11,1]]}
["RESUMEN DE LOS RESULTADOS DE LA LISTA DE VERIFICACIÓN"]
["General"]
["Esta hoja de trabajo puede ser usada para resumir los resultados de esta lista de verificación para ver Yes se han satisfecho los requerimientos de presentación y revelación  de la NIIF para PYMES:"]
["Áreas de no-cumplimiento"]
["Se observaron las siguientes áreas de no-cumplimiento:","Seguimiento:"]
[]
[]
["Áreas que requieren atención adicional"]
["Fueron identificadas las siguientes áreas que requieren atención adicional:","Seguimiento:"]
[]
[]
["Áreas de cambio en los requerimientos de presentación y revelación en comparación con el año anterior: "]
["Fueron identificadas las siguientes áreas que cambiaron en comparación con el año anterior:","Seguimiento:"]

{"sheet":"Indice","index":2,"n_rows":47,"n_cols":12,"rows_kept":47,"cut":false,"hidden":false,"merged":[[7,2,7,10],[8,2,8,10],[45,0,45,2],[46,0,46,2],[0,0,0,8],[1,0,1,7],[3,0,3,10],[4,2,4,10],[5,2,5,10],[6,2,6,10]]}
["Índice de la hoja de trabajo de la lista de verificación de la NIIF para PYMES",null,null,null,null,null,null,null,null,null,null,"Yes"]
["Esta lista de verificación aborda los requerimientos de presentación y revelación de la NIIF para PYMES tal y como fue emitida el 9 Julio 2009.",null,null,null,null,null,null,null,null,null,null,"No"]
[]
["Introducción"]
[null,1,"Esta lista de verificación resume los requerimientos de presentación y revelación  a través de la NIIF para PYMES ."]
[null,2,"Esta lista de verificación trata tanto la presentación como las revelaciones. A menudo, una presentación requerida equivale a un requerimiento de revelación. Para ilustrar, las Secciones 3–6 de la NIIF requieren la presentación de algunos elementos de línea específicos en el estado de posición financiera, el estado de ingresos comprensivos, estado de ingresos (si se presenta), estado de cambios en el patrimonio y estado de flujos de efectivo."]
[null,3,"En la mayoría de los casos, la NIIF para PYMES  no especifica si la revelación se debe hacer en un estado financiero o en las notas. En varios casos, sin embargo,  las revelaciones son requeridas a ser realizadas en un estado financiero; esas revelaciones se identifican en esta lista de verificación."]
[null,4,"Los requerimientos de revelación contenidos en la NIIF para PYMES aplican solo a elementos materiales. Si un elemento es inmaterial no se prescribe revelación. La materialidad se discute en la Sección 2 parágrafo 2.6."]
[null,5,"La aplicación de la NIIF para PYMES, con la revelación adicional cuando es necesaria, se presume que resulta en estados financieros que logran una presentación razonable de la posición financiera, el desempeño financiero y los flujos de efectivo de una entidad que sea elegible para usar la NIIF para PYMES. Los requerimientos de revelación contenidos en la NIIF para PYMES deben ser considerados como requerimientos mínimos. Son necesarias revelaciones adicionales cuando el cumplimiento con los requerimientos específicos contenidos en la NIIF para PYMES son insuficientes para permitirles a los usuarios a entender el efecto de transacciones, otros eventos y condiciones particulares sobre la posición financiera y el desempeño financiero de la entidad. La entidad tiene que presentar en los estados financieros elementos de línea adicionales, encabezados y subtotales cuando tal presentación sea relevante para el entendimiento de la posición financiera, el desempeño y los cambios en la posición financiera de la entidad. De manera similar, la entidad tiene que incluir en las notas a los estados financieros información que no sea presentada en otro lugar en los estados financieros pero que sea relevante para el entendimiento de ellos."]
[null,null,"                              Sección",null,null,null,"Aplicable","Presentación y revelación "]
[null,null,"Sección 1 - Entidades de tamaño pequeño y mediano",null,null,null,"No","En esta Sección no hay requerimientos de presentación o revelación."]
[null,null,"Sección 2 - Conceptos y principios generales",null,null,null,"No","En esta Sección no hay requerimientos de presentación o revelación. Compensación de directivos contenida en IFS3P."]
[null,null,"Sección 3 - Presentación del estado financiero",null,null,null,"Yes","IFS3P"]
[null,null,"Sección 4 - Estado de posición financiera",null,null,null,"Yes","IFS4P"]
[null,null,"Sección 5 - Estado de ingresos comprensivos y estado de ingresos",null,null,null,"Yes","IFS5P"]
[null,null,"Sección 6 - Estado de cambios en el patrimonio y estado de ingresos y ganancias retenidas",null,null,null,"Yes","IFS6P"]
[null,null,"Sección 7 - Estado de flujos de efectivo",null,null,null,"Yes","IFS7P"]
[null,null,"Sección 8 - Notas a los estados financieros",null,null,null,"Yes","IFS8P"]
[null,null,"Sección 9 - Estados financieros consolidados y separados",null,null,null,"Yes","IFS9P"]
[null,null,"Sección 10 - Políticas de contabilidad, estimados y errores",null,null,null,"Yes","IFS10P"]
[null,null,"Sección 11 - Instrumentos financieros básicos",null,null,null,"Yes","IFS11P"]
[null,null,"Sección 12 - Otros problemas relacionados con los instrumentos financieros",null,null,null,"Yes","IFS12P"]
[null,null,"Sección 13 - Inventarios",null,null,null,"Yes","IFS13P"]
[null,null,"Sección 14 - Inversiones en asociadas",null,null,null,"Yes","IFS14P"]
[null,null,"Sección 15 - Inversiones en negocios conjuntos",null,null,null,"Yes","IFS15P"]
[null,null,"Sección 16 - Propiedad para inversión",null,null,null,"Yes","IFS16P"]
[null,null,"Sección 17 - Propiedad, planta y equipo",null,null,null,"Yes","IFS17P"]
[null,null,"Sección 18 -Activos intangibles diferentes a plusvalía",null,null,null,"Yes","IFS18P"]
[null,null,"Sección 19 - Combinaciones de negocios y plusvalía",null,null,null,"Yes","IFS19P"]
[null,null,"Sección 20 - Arrendamientos",null,null,null,"Yes","IFS20P"]
[null,null,"Sección 21 - Provisiones y contingenciass",null,null,null,"Yes","IFS21P"]
[null,null,"Sección 22 -Pasivos y patrimonio",null,null,null,"No","En esta Sección no hay requerimientos de presentación o revelación (pero vea los parágrafos 4.12 y 4.13)"]
[null,null,"Sección 23 - Ingresos ordinarios",null,null,null,"Yes","IFS23P"]
[null,null,"Sección 24 - Subvenciones del gobierno",null,null,null,"Yes","IFS24P"]
[null,null,"Sección 25 - Costos por préstamos",null,null,null,"Yes","IFS25P"]
[null,null,"Sección 26 - Pago basado-en-acciones",null,null,null,"Yes","IFS26P"]
[null,null,"Sección 27 - Deterioro del valor de los activos",null,null,null,"Yes","IFS27P"]
[null,null,"Sección 28 - Beneficios para empleados",null,null,null,"Yes","IFS28P"]
[null,null,"Sección 29 - Impuestos a los ingresos",null,null,null,"Yes","IFS29P"]
[null,null,"Sección 30 - Conversión de moneda extranjera",null,null,null,"Yes","IFS30P"]
[null,null,"Sección 31 - Híperinflación",null,null,null,"Yes","IFS31P"]
[null,null,"Sección 32 - Eventos ocurridos después del final del período de presentación de reporte",null,null,null,"Yes","IFS32P"]
[null,null,"Sección 33 - Revelaciones de partes relacionadas",null,null,null,"Yes","IFS33P"]
[null,null,"Sección 34 - Actividades especializadas",null,null,null,"Yes","IFS34P"]
[null,null,"Sección 35 -Transición hacia la NIIF para PYMES ",null,null,null,"Yes","IFS35P"]
[]
["Libro de trabajo actualizado por última vez: Mayo 2013"]

{"sheet":"PresentPAResumen","index":3,"n_rows":123,"n_cols":7,"rows_kept":123,"cut":false,"hidden":false,"merged":[[0,0,0,8],[4,1,4,6],[5,1,5,4],[6,1,6,6],[7,1,7,4],[24,1,24,6],[25,1,25,4],[21,1,21,6],[22,1,22,4],[15,1,15,4],[18,1,18,4],[19,1,19,4],[17,1,17,6],[31,1,31,4],[27,1,27,6],[28,1,28,4],[29,1,29,4],[30,1,30,4],[47,1,47,6],[48,1,48,4],[50,1,50,6],[39,1,39,4],[33,1,33,6],[34,1,34,4],[36,1,36,4],[35,1,35,4],[38,1,38,6],[41,1,41,6],[42,1,42,4],[44,1,44,6],[45,1,45,4],[57,1,57,4],[51,1,51,4],[54,1,54,4],[53,1,53,6],[56,1,56,6],[76,1,76,4],[71,1,71,4],[72,1,72,4],[63,1,63,4],[64,1,64,4],[65,1,65,4],[70,1,70,4],[80,1,80,4],[82,1,82,6],[83,1,83,4],[79,1,79,6],[77,1,77,4],[89,1,89,4],[86,1,86,4],[85,1,85,6],[88,1,88,6],[91,1,91,6],[107,1,107,6],[112,1,112,6],[101,1,101,4],[105,1,105,4],[102,1,102,4],[121,1,121,6],[122,1,122,4],[115,1,115,4],[108,1,108,4],[109,1,109,4],[110,1,110,4],[113,1,113,4],[117,1,117,6],[118,1,118,4],[114,1,114,4],[119,1,119,4],[8,1,8,4],[10,1,10,4],[11,1,11,4],[13,1,13,6],[14,1,14,4],[9,1,9,4],[59,1,59,6],[60,1,60,4],[62,1,62,6],[69,1,69,6],[75,1,75,6],[66,1,66,4],[67,1,67,4],[73,1,73,4],[92,1,92,4],[98,1,98,6],[100,1,100,4],[104,1,104,6],[93,1,93,4],[94,1,94,4],[95,1,95,4],[96,1,96,4],[99,1,99,4]]}
["Resumen  de las preguntas ajustadas de Presentación/Revelación de la NIIF para PYMES               "]
[]
[]
[]
[]
[]
[null,"Sección 3 - Presentación del estado financiero"]
[null,{"$f":"IFS3P!H43","v":"¿La administración, en circunstancias extremadamente raras, concluye que el cumplimiento con esta NIFF sería tan engañoso que estaría en conflicto con el objetivo de los estados financieros de las PYMES que se establece en la Sección 2?"},null,null,null,{"$f":"IF(IFS3P!I43=\"\",\"\",IFS3P!I43)","v":"N/A"},"IFS3A"]
[null,{"$f":"IFS3P!H65","v":"¿En un período anterior la entidad se ha apartado de un requerimiento de la NIIF para PYMES, y ese apartarse afecta las cantidades que se reconocen en los  estados financieros del período corriente?"},null,null,null,{"$f":"IF(IFS3P!I65=\"\",\"\",IFS3P!I65)","v":"N/A"},"IFS3B"]
[null,{"$f":"IFS3P!H72","v":"¿La administración, al hacer su valoración de la capacidad de la entidad para continuar como empresa en marcha, es consciente incertidumbres materiales relacionadas con eventos o condiciones que puedan generar duda importante sobre la capacidad de la entidad para continuar como empresa en marcha?"},null,null,null,{"$f":"IF(IFS3P!I72=\"\",\"\",IFS3P!I72)","v":"N/A"},"IFS3C"]
[null,{"$f":"IFS3P!H85","v":"¿La entidad cambió el final de su período de presentación de reporte y los estados financieros son presentados para un período más largo o más corto que un año?"},null,null,null,{"$f":"IF(IFS3P!I85=\"\",\"\",IFS3P!I85)","v":"N/A"},"IFS3D"]
[null,{"$f":"IFS3P!H97","v":"¿Ha sido cambiada la presentación o la clasificación de los elementos contenidos en los estados financieros?"},null,null,null,{"$f":"IF(IFS3P!I97=\"\",\"\",IFS3P!I97)","v":"N/A"},"IFS3E"]
[]
[null,"Sección 4 - estado de posición financiera"]
[null,{"$f":"IFS4P!G53","v":"¿La presentación basada en la liquidez proporciona información que es confiable y más relevante que la presentación sobre la base de corriente/no-corriente?"},null,null,null,{"$f":"IF(IFS4P!H53=\"\",\"\",IFS4P!H53)","v":"N/A"},"IFS4A"]
[null,{"$f":"IFS4P!G94","v":"A la fecha de presentación de reporte la entidad era parte de un acuerdo de venta vinculante para la disposición principal de activos, o un grupo de activos y pasivos?"},null,null,null,{"$f":"IF(IFS4P!H94=\"\",\"\",IFS4P!H94)","v":"N/A"},"IFS4B"]
[]
[null,"Sección 5 - estado de ingresos comprensivos and estado de ingresos"]
[null,{"$f":"IFS5P!H45","v":"¿La entidad que reporta ha adoptado el enfoque de dos estados (reportando un estado de ingresos y un estado de ingresos comprensivos)?"},null,null,null,{"$f":"IF(IFS5P!I45=\"\",\"\",IFS5P!I45)","v":"N/A"},"IFS5A"]
[]
[]
[null,"Sección 6 - estado de cambios en el patrimonio and estado de ingresos y ganancias retenidas"]
[null,{"$f":"IFS6P!G24","v":"¿La entidad que reporta ha adoptado el estado de ingresos y ganancias retenidas en lugar del estado de ingresos comprensivos y el estado de cambios en el patrimonio?"},null,null,null,{"$f":"IF(IFS6P!H24=\"\",\"\",IF(IFS6P!H24=\"Guidance\",\"\",IFS6P!H24))","v":"N/A"},"IFS6A"]
[]
[null,"Sección 9 - Estados financieros consolidados y separados"]
[null,{"$f":"IFS9P!J13","v":"¿La entidad ha preparado ya sea estados financieros consolidados o estados financieros separados (o ambos)?"},null,null,null,{"$f":"IF(IFS9P!K13=\"\",\" \",IFS9P!K13)","v":"N/A"},"IFS9A"]
[]
[null,"Sección 10 - Políticas de contabilidad, estimados y errores"]
[null,{"$f":"IFS10P!H9","v":"¿La entidad cambió cualesquiera políticas de contabilidad durante el período de presentación de reporte debido a una enmienda a la NIIF para PYMES?"},null,null,null,{"$f":"IF(IFS10P!I9=\"\",\" \",IFS10P!I9)","v":"N/A"},"IFS10A"]
[null,{"$f":"IFS10P!H17","v":"¿La entidad cambió voluntariamente cualesquiera políticas de contabilidad durante el período de presentación de reporte?"},null,null,null,{"$f":"IF(IFS10P!I17=\"\",\" \",IFS10P!I17)","v":"N/A"},"IFS10B"]
[null,{"$f":"IFS10P!H29","v":"¿La entidad cambió cualquier estimado de contabilidad que tenga un efecto en los períodos corriente o futuro de presentación de reportes?"},null,null,null,{"$f":"IF(IFS10P!I29=\"\",\" \",IFS10P!I29)","v":"N/A"},"IFS10C"]
[null,{"$f":"IFS10P!H34","v":"¿La entidad descubrió cualesquiera errores de período anterior?"},null,null,null,{"$f":"IF(IFS10P!I34=\"\",\" \",IF(IFS10P!I34=\"Guidance\", \" \",IFS10P!I34))","v":"N/A"},"IFS10D"]
[]
[null,"Sección 11 - Instrumentos financieros básicos"]
[null,{"$f":"IFS11P!H40","v":"¿Durante el período de presentación de reporte la entidad transfirió activos financieros a otra parte en una transacción que no califica para des-reconocimiento?"},null,null,null,{"$f":"IF(IFS11P!I40=\"\",\" \",IFS11P!I40)","v":"N/A"},"IFS11A"]
[null,{"$f":"IFS11P!H55","v":"¿Durante el período de presentación de reporte la entidad comprometió activos financieros como colateral  por pasivos o pasivos contingentes? "},null,null,null,{"$f":"IF(IFS11P!I55=\"\",\" \",IFS11P!I55)","v":"N/A"},"IFS11B"]
[null,{"$f":"IFS11P!H61","v":"¿La entidad experimentó, con relación a los préstamos por pagar reconocidos a la fecha de presentación de reporte, un incumplimiento de los términos o un impago de principal, intereses, fondo de amortización, o términos de redención que no haya sido remediado para la fecha de presentación de reporte?"},null,null,null,{"$f":"IF(IFS11P!I61=\"\",\" \",IFS11P!I61)","v":"N/A"},"IFS11C"]
[]
[null,"Sección 12 - Otros problemas relacionados con los instrumentos financieros"]
[null,{"$f":"IFS12P!H16","v":"¿Durante el período de presentación de reporte la entidad aplicó la contabilidad de cobertura?"},null,null,null,{"$f":"IF(IFS12P!I16=\"\",\" \",IFS12P!I16)","v":"N/A"},"IFS12A"]
[]
[null,"Sección 13 - Inventarios"]
[null,{"$f":"IFS13P!G8","v":"¿La entidad tuvo inventarios?"},null,null,null,{"$f":"IFS13P!H8","v":"N/A"},"IFS13A"]
[]
[null,"Sección 14 - Inversiones en asociadas"]
[null,{"$f":"IFS14P!G8","v":"¿La entidad tuvo cualesquiera inversiones en asociadas?"},null,null,null,{"$f":"IFS14P!H8","v":"N/A"},"IFS14A"]
[]
[null,"Sección 15 - Inversiones en negocios conjuntos"]
[null,{"$f":"IFS15P!G8","v":"¿La entidad tuvo un interés de participación en un negocio conjunto que le proporcionó al participante control conjunto sobre cualquier operación, activo o entidad, controlado conjuntamente?"},null,null,null,{"$f":"IFS15P!H8","v":"N/A"},"IFS15A"]
[]
[null,"Sección 16 - Propiedad para inversión"]
[null,{"$f":"IFS16P!H9","v":"¿La entidad tiene cualquier propiedad para inversión?"},null,null,null,{"$f":"IFS16P!I9","v":"N/A"},"IFS16A"]
[]
[null,"Sección 17 - Propiedad, planta y equipo"]
[null,{"$f":"IFS17P!G8","v":"¿La entidad tuvo o adquirió cualquier propiedad, planta o equipo?"},null,null,null,{"$f":"IFS17P!H8","v":"N/A"},"IFS17A"]
[]
[null,"Sección 18 -Activos intangibles diferentes a plusvalía"]
[null,{"$f":"IFS18P!G8","v":"¿La entidad reconoció cualesquiera activos intangibles en su estado de posición financiera?"},null,null,null,{"$f":"IF(IFS18P!H8=\"\",\" \",IFS18P!H8)","v":"N/A"},"IFS18A"]
[]
[null,"Sección 19 - Combinaciones de negocios y plusvalía"]
[null,{"$f":"IFS19P!G8","v":"¿Durante el período de presentación de reporte corriente o anterior la entidad ha participado en una combinación de negocios?"},null,null,null,{"$f":"IF(IFS19P!H8=\"\",\" \",IFS19P!H8)","v":"N/A"},"IFS19A"]
[]
[null,"Sección 20 - Arrendamientos"]
[null,{"$f":"IFS20P!G10","v":"¿La entidad tuvo cualesquiera activos según arrendamientos financieros (i.e. la entidad es un arrendatario según un arrendamiento financiero)?"},null,null,null,{"$f":"IF(IFS20P!H10=\"\",\" \",IFS20P!H10)","v":"N/A"},"IFS20A"]
[null,{"$f":"IFS20P!G21","v":"¿La entidad es un arrendatario según cualquier arrendamiento operacional?"},null,null,null,{"$f":"IF(IFS20P!H21=\"\",\" \",IFS20P!H21)","v":"N/A"},"IFS20B"]
[null,{"$f":"IFS20P!G32","v":"¿La entidad es un arrendador según cualquier arrendamiento financiero?"},null,null,null,{"$f":"IF(IFS20P!H32=\"\",\" \",IFS20P!H32)","v":"N/A"},"IFS20C"]
[null,{"$f":"IFS20P!G45","v":"¿La entidad tuvo cualesquiera activos que sean arrendados según arrendamientos operacionales (i.e. la entidad es el arrendador según un arrendamiento operacional)?"},null,null,null,{"$f":"IF(IFS20P!H45=\"\",\" \",IFS20P!H45)","v":"N/A"},"IFS20D"]
[null,{"$f":"IFS20P!G56","v":"¿Cualquiera de los acuerdos en que la entidad esté actuando como arrendador o como arrendatario (ya sea según cualquier arrendamiento operacional o según un arrendamiento financiero) es un acuerdo de venta y retroarriendo?"},null,null,null,{"$f":"IF(IFS20P!H56=\"\",\" \",IFS20P!H56)","v":"N/A"},"IFS20E"]
[]
[null,"Sección 21 - Provisiones y contingenciass"]
[null,{"$f":"IFS21P!H9","v":"¿La entidad tenía cualquier derecho a reembolso relacionado con una provisión?"},null,null,null,{"$f":"IF(IFS21P!I9=\"\",\"\",IFS21P!I9)","v":"N/A"},"IFS21A"]
[null,{"$f":"IFS21P!H16","v":"¿La entidad tenía cualesquiera provisiones?"},null,null,null,{"$f":"IF(IFS21P!I16=\"\",\"\",IFS21P!I16)","v":"N/A"},"IFS21B"]
[null,{"$f":"IFS21P!H29","v":"¿La entidad tenía cualesquiera pasivos contingentes?"},null,null,null,{"$f":"IF(IFS21P!I29=\"\",\"\",IFS21P!I29)","v":"N/A"},"IFS21C"]
[null,{"$f":"IFS21P!H37","v":"¿La entidad tenía cualesquiera activos contingentes?"},null,null,null,{"$f":"IF(IFS21P!I37=\"\",\"\",IFS21P!I37)","v":"N/A"},"IFS21D"]
[]
[null,"Sección 23 - Ingresos ordinarios"]
[null,{"$f":"IFS23P!G8","v":"¿La entidad reconoció cualesquiera ingresos ordinarios?"},null,null,null,{"$f":"IF(IFS23P!H8=\"\",\" \",IFS23P!H8)","v":"N/A"},"IFS23A"]
[null,{"$f":"IFS23P!G22","v":"¿La entidad ha tenido cualesquiera contratos de construcción, para los cuales sea el contratista?"},null,null,null,{"$f":"IF(IFS23P!H22=\"\",\" \",IFS23P!H22)","v":"N/A"},"IFS23B"]
[]
[null,"Sección 24 - Subvenciones del gobierno"]
[null,{"$f":"IFS24P!H8","v":"¿La entidad recibió cualesquiera subvenciones del gobierno?"},null,null,null,{"$f":"IF(IFS24P!I8=\"\",\"\",IFS24P!I8)","v":"N/A"},"IFS24A"]
[]
[null,"Sección 25 - Costos por préstamos"]
[null,{"$f":"IFS25P!G8","v":"¿La entidad incurrió en cualesquiera costos por préstamos?"},null,null,null,{"$f":"IF(IFS25P!H8=\"\",\" \",IFS25P!H8)","v":"N/A"},"IFS25A"]
[]
[null,"Sección 26 - Pago basado-en-acciones"]
[null,{"$f":"IFS26P!H9","v":"¿La entidad realizó cualesquiera acuerdos de pago basado-en-acciones que estén dentro del alcance de la Sección 2?"},null,null,null,{"$f":"IF(IFS26P!I9=\"\",\" \",IFS26P!I9)","v":"N/A"},"IFS26A"]
[]
[null,"Sección 27 - Deterioro del valor de los activos"]
[null,{"$f":"IFS27P!G10","v":"¿Durante el período la entidad reconoció cualesquiera pérdidas por deterioro, o reversas de pérdidas por deterioro, sobre activos dentro del alcance de la Sección 27?"},null,null,null,{"$f":"IF(IFS27P!H10=\"\",\" \",IFS27P!H10)","v":"N/A"},"IFS27A"]
[]
[null,"Sección 28 - Beneficios para empleados"]
[null,{"$f":"IFS28P!H9","v":"¿la entidad proporcionó cualesquiera beneficios para empleados de corto plazo?"},null,null,null,{"$f":"IF(IFS28P!I9=\"\",\" \",IFS28P!I9)","v":"N/A"},"IFS28A"]
[null,{"$f":"IFS28P!H13","v":"¿La entidad participó en cualesquiera planes de contribuciones definbidas por beneficios posteriores al empleo?"},null,null,null,{"$f":"IF(IFS28P!I13=\"\",\" \",IFS28P!I13)","v":"N/A"},"IFS28B"]
[null,{"$f":"IFS28P!H19","v":"¿La entidad participó en cualesquiera planes de beneficio definido por beneficios posteriores al empleo?"},null,null,null,{"$f":"IF(IFS28P!I19=\"\",\" \",IFS28P!I19)","v":"N/A"},"IFS28C"]
[null,{"$f":"IFS28P!H55","v":"¿La entidad participó en cualesquiera planes de beneficio definido por beneficios posteriores al empleo?"},null,null,null,{"$f":"IF(IFS28P!I55=\"\",\" \",IFS28P!I55)","v":"N/A"},"IFS28D"]
[null,{"$f":"IFS28P!H59","v":"¿La entidad ofreció u otorgó cualesquiera beneficios de terminación?"},null,null,null,{"$f":"IF(IFS28P!I59=\"\",\" \",IFS28P!I59)","v":"N/A"},"IFS28E"]
[]
[null,"Sección 30 - Conversión de moneda extranjera"]
[null,"Did la entidad:"]
[null,{"$f":"IFS30P!H10","v":"- tuvo transacciones o saldos en monedas extranjeras;"},null,null,null,{"$f":"IF(IFS30P!I10=\"\",\"\",IFS30P!I10)","v":"N/A"},"IFS30A"]
[null,{"$f":"IFS30P!H11","v":"- tuvo cualesquiera operaciones en el extranjero; o"},null,null,null,{"$f":"IF(IFS30P!I11=\"\",\"\",IFS30P!I11)","v":"N/A"},"IFS30A"]
[null,{"$f":"IFS30P!H12","v":"- presentó sus estados financieros en una moneda extranjera?"},null,null,null,{"$f":"IF(IFS30P!I12=\"\",\"\",IFS30P!I12)","v":"N/A"},"IFS30A"]
[]
[null,"Sección 31 - Híperinflación"]
[null,{"$f":"IFS31P!H8","v":"¿La entidad matriz, o cualquiera de sus subsidiarias, asociadas o negocios conjuntos en los estados financieros consolidados (si es aplicable), tenía una moneda funcional que sea la moneda de una economía híperinflaciónary?"},null,null,null,{"$f":"IF(IFS31P!I8=\"\",\"\",IFS31P!I8)","v":"N/A"},"IFS31A"]
[]
[null,"Sección 32 - Eventos ocurridos después del final del período de presentación de reporte"]
[null,{"$f":"IFS32P!H12","v":"¿Hay dividendos declarados (i.e. los dividendos están autorizados de la manera apropiada y ya no están a la discreción de la entidad) después del período de presentación de reporte pero antes que los estados financieros sean autorizados para emisión?"},null,null,null,{"$f":"IF(IFS32P!I12=\"\",\"\",IFS32P!I12)","v":"N/A"},"IFS32A"]
[null,{"$f":"IFS32P!H19","v":"¿La entidad recibió información después del período de presentación de reporte acerca de las condiciones que existían al final del período de presentación de reporte?"},null,null,null,{"$f":"IF(IFS32P!I19=\"\",\"\",IFS32P!I19)","v":"N/A"},"IFS32B"]
[null,{"$f":"IFS32P!H23","v":"¿Cualesquiera eventos de no-ajuste han ocurrido después del período de presentación de reporte pero antes que los estados financieros sean autorizados para emisión?"},null,null,null,{"$f":"IF(IFS32P!I23=\"\",\"\",IFS32P!I23)","v":"N/A"},"IFS32C"]
[]
[null,"Sección 33 - Revelaciones de partes relacionadas"]
[null,{"$f":"IFS33P!H10","v":"¿La entidad es una subsidiaria de otra entidad?"},null,null,null,{"$f":"IF(IFS33P!I10=\"\",\"\",IFS33P!I10)","v":"N/A"},"IFS33A"]
[null,{"$f":"IFS33P!H15","v":"¿La entidad tenía cualesquiera transacciones con partes relacionadas y saldos pendientes con partes relacionadas, incluyendo la compensación de su personal clave de administración?"},null,null,null,{"$f":"IF(IFS33P!I15=\"\",\"\",IFS33P!I15)","v":"N/A"},"IFS33B"]
[null,{"$f":"IFS33P!H56","v":"¿La entidad  está exenta de los requerimientos de revelación de transacciones con partes relacionadas del gobierno?"},null,null,null,{"$f":"IF(IFS33P!I56=\"\",\"\",IFS33P!I56)","v":"N/A"},"IFS33C"]
[]
[null,"Sección 34 - Actividades especializadas"]
[null,{"$f":"IFS34P!H9","v":"¿La entidad:\n- operó en actividades agrícolas o de cultivo con relación a plantas o animales vivientes; o\n- poseyó o controló cualesquiera activos biológicos?"},null,null,null,{"$f":"IF(IFS34P!I9=\"\",\"\",IFS34P!I9)","v":"N/A"},"IFS34A"]
[null,{"$f":"IFS34P!H36","v":"¿La entidad tuvo cualesquiera acuerdos de servicios de concesión?"},null,null,null,{"$f":"IF(IFS34P!I36=\"\",\"\",IF(IFS34P!I36=\"Guidance\",\"\",IFS34P!I36))","v":"N/A"},"IFS34B"]
[]
[null,"Sección 35 -Transición hacia la NIIF para PYMES "]
[null,{"$f":"IFS35P!G8","v":"¿En el período corriente de presentación de reporte la entidad que reporta es un adoptador por primera vez de la NIIF para PYMES?"},null,null,null,{"$f":"IF(IFS35P!H8=\"\",\"\",IF(IFS35P!H8=\"Guidance\",\"\",IFS35P!H8))","v":"N/A"},"IFS35A"]

{"sheet":"IFS3P","index":4,"n_rows":130,"n_cols":11,"rows_kept":130,"cut":false,"hidden":false,"merged":[[57,8,59,8],[32,6,33,6],[32,7,33,7],[34,6,36,6],[34,7,36,7],[57,7,59,7],[6,7,8,7],[9,7,11,7],[12,7,14,7],[15,7,16,7],[30,6,31,6],[30,7,31,7]]}
["p/c",null,"parent","level",null,null,"Index",null,null,"PresentTQSummary","Yes"]
[null,null,null,null,null,null,null,null,null,null,"No"]
[null,null,null,null,null,null,"Sección 3","Presentación del estado financiero",null,null,"N/A"]
[null,null,null,null,null,"PA","Referencia","Requerimiento de presentación/revelación",null,null,"Guidance"]
[null,null,null,null,null,null,null,"Esta Sección de la lista de verificación aborda la Sección 3, que prescribe las bases para la presentación de los estados financieros de propósito general  para asegurar la comparabilidad  tanto de los estados financieros de la entidad correspondientes a períodos anteriores como con los estados financieros de otras entidades.",null,null,"Show"]
[null,null,null,null,null,null,null,"Para orientación adicional, seleccione Show en la siguiente columna","Hide",null,"Hide"]
["-G",null,null,null,null,null,null,"Los estados financieros deben presentar razonablemente la posición financiera, el desempeño financiero y los flujos de efectivo de la entidad. La presentación razonable requiere la representación fiel de los efectos de las transacciones, otros eventos y condiciones de acuerdo con las definiciones y el criterio de reconocimiento para activos, Pasivos, ingresos y gastos que se establecen en la Sección 2 Conceptos y principios generales.\n"]
["-G"]
["-G"]
["-G",null,null,null,null,null,null,"(a) La aplicación de la NIIF para PYMES, con la revelación adicional cuando sea necesaria, se presume que resulta en estados financieros que logran la presentación razonable de la posición financiera, el desempeño financiero y los flujos de efectivo de las PYMES.\n"]
["-G"]
["-G"]
["-G",null,null,null,null,null,null,"(b) Tal y como se explica en el parágrafo  1.5, la aplicación de esta NIIF por una entidad con accountability pública no resulta en una presentación razonable de acuerdo con esta NIIF.\n"]
["-G"]
["-G"]
["-G",null,null,null,null,null,null,"Las revelaciones adicionales a las cuales se refiere en (a) son necesarias cuando el cumplimiento con los requerimientos específicos contenidos en esta NIIF son insuficientes para permitirles a los usuarios entender el efecto que transacciones, otros eventos y condiciones particulares tienen en la posición financiera y el desempeño financiero de la entidad."]
["-G"]
[]
[null,null,null,null,"PA Group","PA","Referencia","Requerimiento de presentación/revelación","Yes / No / N/A","Comentarios"]
[null,null,null,null,null,null,null,"Conjunto completo de los estados financieros"]
[null,null,"3C1",1,3,null,null,"El conjunto completo de los estados financieros comprende:","Guidance"]
[null,null,null,null,3,null,"Sección 3.17(a)","(a)      el estado de posición financiera a la fecha de presentación del reporte;","No"]
[null,null,null,null,3,null,"Sección 3.17(b)","ya sea:"]
[null,null,"3C2",1,3,null,"Sección 3.17(b)(i)","(b)(i) el único estado de ingresos comprensivos por el período de presentación de reportes que muestre todos los elementos de ingresos y gastos reconocidos durante el período, incluyendo los elementos reconocidos en la determinación de la utilidad o pérdida (que es un subtotal en el estado de ingresos comprensivos) y los elementos de otros ingresos comprensivos, o","N/A"]
["3C2-G",null,null,null,null,null,"Sección 5.3","Nota: El cambio desde el enfoque de un solo estado al enfoque de dos estados, o vice versa, es un cambio en política de contabilidad al cual aplica la  Sección 10 Políticas de contabilidad, estimados y errores."]
[null,null,null,null,3,null,"Sección 3.17(b)(ii)","(b)(ii) el estado de ingresos separado y el estado de ingresos comprensivos separado. Yes la entidad selecciona presentar tanto el estado de ingresos como el estado de ingresos comprensivos, el estado de ingresos comprensivos comienza con la utilidad o pérdida y luego muestra los elementos de otros ingresos comprensivos.","N/A"]
[null,null,null,null,3,null,"Sección 3.17(c)","(c) el estado de cambios en el patrimonio por el período de presentación de reporte.","No"]
[null,null,null,null,3,null,"Sección 3.17(d)","(d) el estado de flujos de efectivo por el período de presentación de reporte.","No"]
[null,null,null,null,3,null,"Sección 3.17(e)","(e) las notas, que comprenden el resumen de las políticas de contabilidad importantes y la otra información explicativa.","N/A"]
["3C1-G",null,null,null,null,null,null,"Notas:\n"]
["3C1-G",null,null,null,null,null,"Sección 3.22","1) La entidad puede usar para los estados financieros títulos diferentes a los usados en esta NIIF en la extensión en que no conduzcan a engaño."]
["3C1-G"]
["3C1-G",null,null,null,null,null,"Sección 3.18","2) Si los únicos cambios al patrimonio durante los períodos para los cuales se presentan los estados financieros surgen de utilidad o pérdida, pago de dividendos, correcciones de errores de período anterior, y cambios en política de contabilidad, la entidad puede presentar un solo estado de ingresos y ganancias retenidas en lugar del estado de ingresos comprensivos y el estado de cambios en el patrimonio (vea el parágrafo  6.4)."]
["3C1-G"]
["3C1-G",null,null,null,null,null,"Sección 3.19","3) Si la entidad no tiene elementos de otros ingresos comprensivos en cualquiera de los períodos para los cuales se presentan los estados financieros, puede presentar solo el estado de ingresos, o puede presentar un estado de ingresos comprensivos en el cual la 'línea de resultados' se denomine ‘utilidad o pérdida’."]
["3C1-G"]
["3C1-G"]
[null,null,null,null,3,null,"Sección 3.21","En el conjunto completo de los estados financieros, la entidad debe presentar cada estado financiero con igual prominencia.","No"]
[null,null,null,null,null,null,null,"Presentación razonable y cumplimiento con las NIIF"]
[null,null,"3C4",1,3,null,"Sección 3.3","¿La entidad cuyos estados financieros cumplen con la NIIF para PYMES, hizo en las notas una declaración explícita y carente de reservas respecto de tal cumplimiento?","N/A"]
["3C4-G",null,null,null,null,null,"Sección 3.3","Notas:\n1) los estados financieros no se pueden describir como que cumplen con la NIIF para PYMES a menos que cumplan con todos los requerimientos de esta NIIF."]
["3C4-G",null,null,null,null,null,null,"2)      La entidad no puede rectificar políticas de contabilidad inapropiadas ya sea mediante revelación de las políticas de contabilidad usadas o mediante notas o material explicativo."]
[null,null,"3A",1,"3A","3A","Sección 3.4","¿La administración, en circunstancias extremadamente raras, concluye que el cumplimiento con esta NIFF sería tan engañoso que estaría en conflicto con el objetivo de los estados financieros de las PYMES que se establece en la Sección 2?","N/A"]
[null,null,null,null," ",null,null,"If Yes :"]
["3A-Y",null,"3A3",2,"3A-3",null,null,"¿La estructura regulatoria relevante requiere, o de otra manera no prohibe, tal apartarse?"]
[null,null,null,null," ",null,null,"If Yes :"]
["3A-Y","3A3-G",null,null,null,null,null,"Notes:"]
["3A-Y","3A3-G",null,null,null,null,null,"1)      An item of información would conflict with the objective of estados financieros when it does not represent faithfully the transacciones, other events and conditions that it either purports to represent or could reasonably be expected to represent and, consequently, it would be likely to influence economic deciYesons made by users of estados financieros."]
["3A-Y","3A3-G",null,null,null,null,null,"2)      When assessing whether complying with a specific requirement in an NIIF would be so misleading that it would conflict with the objective of estados financieros set out in in Sección 2, management conYesders:"]
["3A-Y","3A3-G",null,null,null,null,null,"•    why the objective of estados financieros is not achieved in the particular circumstances; and"]
["3A-Y","3A3-G",null,null,null,null,null,"•    how la entidad’s circumstances differ from those of other entities that comply with the requirement. If other entities in similar circumstances comply with the requirement, there is a rebuttable presumption that la entidad’s Cumplimiento with the requirement would not be so misleading that it would conflict with the objective of estados financieros set out in the Framework."]
["3A-Y","3A3-Y",null,null,"3A-3",null,"Sección 3.4","La entidad tiene que apartarse de ese requerimiento, haciéndolo de la manera que se establece en la Sección 3.5 (vea abajo)"]
["3A-Y","3A3-Y",null,null,"3A-3",null,"Sección 3.5","Cuando la entidad se aparta de un requerimiento de esta NIIF de acuerdo con el parágrafo  3.4, tiene que revelar lo siguiente:"]
["3A-Y","3A3-Y",null,null,null,null,"Sección 3.5(a)","(a)      que la administración ha concluido que los estados financieros presentan razonablemente la posición financiera, el desempeño financiero y los flujos de efectivo de la entidad;"]
[]
["3A-Y","3A3-Y",null,null,null,null,"Sección 3.5(b)","(b)      que ha cumplido con la NIIF para PYMES, excepto que se ha apartado de un requerimiento particular para lograr una  presentación razonable;"]
[]
["3A-Y","3A3-Y",null,null,null,null,"Sección 3.5(c)","(c) la naturaleza del apartarse, incluyendo el tratamiento que la NIIF para PYMES requeriría, la razón por la cual el tratamiento conduciría a engaño en las circunstancias en que entraría en conflicto con el objetivo de los estados financieros que se establece en la Sección 2, y el tratamiento adoptado."]
["3A-Y","3A3-Y"]
["3A-Y","3A3-Y"]
[null,null,null,null,null,null,null,"If no :"]
["3A-Y","3A3-N",null,null,"3A-3",null,"Sección 3.7","La extensión, en la máxima extensión posible, reduce los aspectos percibidos del cumplimiento que conducen a engaño, haciéndolo mediante revelar:"]
["3A-Y","3A3-N",null,null,null,null,"Sección 3.7","(a) la naturaleza del requerimiento contenido en esta NIIF, y la razón por la cual la administración ha concluido que  cumplir con ese requerimiento es engañoso en las circunstancias en que esté en conflicto con el objetivo de los estados financieros que se establece en la Sección 2."]
["3A-Y","3A3-N",null,null,null,null,"Sección 3.7","(b) por cada período presentado, los ajustes a cada elemento de línea de los estados financieros que la administración haya concluido son necesarios para lograr una presentación razonable."]
[null,null,"3B",1,"3B","3B",null,"¿En un período anterior la entidad se ha apartado de un requerimiento de la NIIF para PYMES, y ese apartarse afecta las cantidades que se reconocen en los  estados financieros del período corriente?","N/A"]
[null,null,null,null," ",null,null,"If Yes :"]
["3B-Y",null,"3BC1",2,"3B",null,"Sección 3.6","Cuando en un período anterior la entidad se ha apartado de un requerimiento de esta NIIF, y ese apartarse afecta las cantidades reconocidas en los estados financieros del período corriente, tiene que hacer las revelaciones que se establecen en el parágrafo  3.5(c)."]
["3B-Y","3BC1-G",null,null,null,null,"Sección 3.5","Notas:\nLa entidad tiene que revelar:\n(c) la naturaleza del apartarse, incluyendo el tratamiento que la NIIF para PYMES requeriría, la razón por la cual ese tratamiento conduciría a engaño en las circunstancias en que estaría en conflicto con el objetivo de los estados financieros que se establece en la Sección 2, y el tratamiento adoptado."]
[null,null,null,null,null,null,null,"Empresa en marcha"]
[null,null,null,null,3,null,"Sección 3.8","Cuando prepara los estados financieros, la administración tiene que hacer una valoración de la capacidad de la entidad para continuar como empresa en marcha. ","No"]
[null,null,null,null,3,null,"Sección 3.8","La entidad tiene que preparar los estados financieros sobre una base de empresa en marcha a menos que la administración ya sea tenga la intención de liquidar la entidad o de cesar de negociar, o no tenga alternativa realista para hacerlo.","N/A"]
[null,null,"3C",1,"3C","3C",null,"¿La administración, al hacer su valoración de la capacidad de la entidad para continuar como empresa en marcha, es consciente incertidumbres materiales relacionadas con eventos o condiciones que puedan generar duda importante sobre la capacidad de la entidad para continuar como empresa en marcha?","N/A"]
[null,null,null,null," ",null,null,"If Yes :"]
["3C-Y",null,null,null,"3C",null,"Sección 3.9","La entidad tiene que revelar esas incertidumbres."]
["3C-Y",null,null,null,"3C",null,"Sección 3.9","Cuando la entidad no prepara los estados financieros sobre una base de empresa en marcha, tiene que revelar ese hecho, junto con las bases a partir de las cuales preparó los estados financieros y la razón por la cual la entidad no se considera que es una empresa en marcha."]
[null,null,null,null,null,null,null,"Materialidad y agregación"]
[null,null,"3C5",1,3,null,"Sección 3.15","La entidad tiene que presentar por separado cada clase material de elementos similares. La entidad debe presentar por separado los elementos de naturaleza o función disímil, a menos que sean inmateriales.","N/A"]
["3C5-G",null,null,null,null,null,"Sección 3.15","Notas:\n\n1)  Las omisiones o las declaraciones equivocadas de elementos son materiales si podrían, individual o colectivamente, influir en  las decisiones económicas que los usuarios tomen con base en los estados financieros. La materialidad depende del tamaño y de la naturaleza de las omisión o de la declaración equivocada juzgada en el contexto de las circunstancias que la rodean. El tamaño o la naturaleza del elemento, o una combinación de ambos, podría ser el factor determinante.\n\n2) La entidad tiene que presentar por separado los elementos de naturaleza o función disímil a menos que sean inmateriales.\n\n3) Si una línea individualmente no es material, se agrega con otros elementos ya sea en los estados financieros o en las notas.\n\n4) Un elemento que no es suficientemente material y no requiere la presentación separada en los estados financieros puede requerir la presentación separada en las notas.\n\n5) La entidad no necesita proporcionar una revelación específica requerida por esta NIIF si la información no es material."]
[null,null,null,null,null,null,null,"Compensación"]
[null,null,"3C6",1,3,null,"Sección 2.52","La entidad no puede compensar activos y Pasivos o ingresos y gastos, a menos que sea requerido o permitido por esta NIIF.","N/A"]
["3C6-G",null,null,null,null,null,"Sección 2.52","Nota:  Los ejemplos de elementos a ser presentados neto incluyen los siguientes:"]
["3C6-G",null,null,null,null,null,"Sección 2.52(a)","(a) Medición de activos neto de las Provisiones —por ejemplo, Provisiones por obsolescencia de inventario y Provisiones por cuentas por cobrar incobrables  —no es compensación.\n"]
["3C6-G",null,null,null,null,null,"Sección 2.52(b)","(b) Si las actividades normales de operación de la entidad no incluyen comprar y vender activos no-corrientes, incluyendo Inversiones y activos de operación, entonces la entidad reporta las ganancias y pérdidas en la disposición de tales activos mediante de ducir de los producidos en la disposición el valor en libros del activo y los gastos de venta relacionados."]
[null,null,null,null,null,null,null,"Frecuencia de la presentación de reportes"]
[null,null,"3D",1,"3D","3D",null,"¿La entidad cambió el final de su período de presentación de reporte y los estados financieros son presentados para un período más largo o más corto que un año?","N/A"]
[null,null,null,null," ",null,null,"If Yes :"]
["3D-Y",null,null,null,"3D",null,"Sección 3.10","La entidad tiene que revelar:"]
["3D-Y",null,null,null,null,null,"Sección 3.10(a)","(a) ese hecho."]
["3D-Y",null,"3DC1",2,null,null,"Sección 3.10(b)","(b) la razón para usar un período más largo o más corto."]
["3D-Y","3DC1-G",null,null,null,null,null,"Notas:"]
["3D-Y","3DC1-G",null,null,null,null,"Sección 3.10","1)      La entidad tiene que presentar el conjunto completo de los estados financieros (incluyendo la información comparativa) al menos anualmente."]
["3D-Y","3DC1-G",null,null,null,null,"Sección 3.10","2)      Normalmente, la entidad prepara de manera consistente los estados financieros de un período a otro. Sin embargo, por razones prácticas, algunas entidades prefieren reportar, por ejemplo, por un período de 52 semanas. La Sección 3 de la NIIF para PYMES no impide esta práctica."]
["3D-Y",null,null,null,null,null,"Sección 3.10(c)","(c) el hecho de que las cantidades comparativas presentadas en los estados financieros (incluyendo las notas relacionadas) no son completamente comparables."]
[null,null,null,null,null,null,null,"Información comparativa"]
[null,null,null,null,3,null,"Sección 3.14","Excepto cuando esta NIIF permita o requiera de otra manera, la entidad debe revelar información comparativa, con relación al período comparable anterior, para todas las cantidades presentadas en los estados financieros del período corriente. ","N/A"]
[null,null,null,null,3,null,"Sección 3.14","La entidad tiene que incluir información comparativa para la información narrativa y descriptiva cuando ello sea relevante para el entendimiento de los estados financieros del período corriente. ","N/A"]
[null,null,"3E",1,"3E","3E",null,"¿Ha sido cambiada la presentación o la clasificación de los elementos contenidos en los estados financieros?","N/A"]
[null,null,null,null," ",null,null,"If Yes :"]
["3E-Y",null,"3EC1",2,"3E",null,"Sección 3.12","La entidad tiene que reclasificar las cantidades comparativas, a menos que sea impracticable hacerlo."]
["3E-Y","3EC1-G",null,null,null,null,null,"Nota: La Sección 10 establece los ajustes a la información comparativa requeridos cuando la entidad  cambia una política de contabilidad o corrige un error  (vea la Sección relevante de esta lista de verificación)."]
["3E-Y",null,"3E1",2,"3E-1",null,null,"¿Han sido reclasificadas las cantidades comparativas?"]
[null,null,null,null," ",null,null,"If Yes :"]
["3E-Y","3E1-Y",null,null,"3E-1",null,null,"La entidad tiene que revelar:"]
["3E-Y","3E1-Y",null,null,null,null,"Sección 3.12(a)","(a)      la naturaleza de la reclasificación;"]
["3E-Y","3E1-Y",null,null,null,null,"Sección 3.12(b)","(b)      la cantidad de cada elemento o clase de elementos que reclasificó; y"]
["3E-Y","3E1-Y",null,null,null,null,"Sección 3.12(c) ","(c)       la razón para la reclasificación."]
["3E-Y",null,"3E2",2,"3E-2",null,null,"¿Es impracticable reclasificar las cantidades comparativas?"]
[null,null,null,null," ",null,null,"If Yes :"]
["3E-Y","3E2-Y",null,null,"3E-2",null,null,"La entidad tiene que revelar:"]
["3E-Y","3E2-Y",null,null,null,null,"Sección 3.13","Si es impracticable reclasificar las cantidades comparativas, la entidad tiene que revelar por qué la reclasificación no fue practicable."]
[null,null,null,null,null,null,null,"Consistencia de la presentación"]
[null,null,null,null,3,null,"Sección 3.11","La entidad tiene que mantener la presentación y la clasificación de los elementos contenidos en los estados financieros, haciéndolo de un período al siguiente, a menos que:\n"]
[null,null,"3C7",1,null,null,"Sección 3.11(a)","(a) sea aparente, luego de un cambio importante en la naturaleza de las operaciones de la entidad o de una revisión de sus estados financieros, que otra presentación o clasificación sería más apropiada teniendo en conYesderación el criterio para la selección y aplicación de las políticas de contabilidad contenido en la Sección 10 Políticas de contabilidad, estimados y errores, o","N/A"]
["3C7-G",null,null,null,null,null,null,"Nota: Por ejemplo, una adquisición o disposición importante, o una revisión de la presentación de los estados financieros, puede sugerir que los estados financieros necesitan ser presentados de manera diferente. La entidad cambia la presentación de sus estados financieros solo Yes la presentación modificada proporciona información que es confiable y más relevante para los usuarios de los estados financieros y la estructura revisada es probable que continúe, de manera que no se deteriore la comparabilidad. Cuando realice tales cambios en la presentación, la entidad reclasifica su información comparativa de acorde con el parágrafo  3.14 (vea abajo)."]
[null,null,null,null,null,null,"Sección 3.11(b)","(b)esta NIIF requiera un cambio en la presentación.","N/A"]
[null,null,null,null,null,null,null,"Identificación de los estados financieros"]
[null,null,"3C8",1,3,null,"Sección 3.23","La entidad tiene que identificar de manera clara cada uno de los estados financieros y las notas y distinguirlos de la otra información contenida en el mismo documento. ","N/A"]
["3C8-G",null,null,null,null,null,null,"Nota: La NIIF para PYMES aplica solamente a los estados financieros, y no necesariamente a otra información presentada en un reporte anual, un archivo regulatorio, u otro documento. Por consiguiente, es importante que los usuarios puedan distinguir la información  que es preparada usando la NIIF para PYMES  de otra información que puede ser útil para los usuarios pero que no está sujeta a esos requerimientos."]
[null,null,null,null,3,null,"Sección 3.23","La entidad tiene que identificar de manera clara cada estado financiero y las notas.","No"]
[null,null,null,null,3,null,"Sección 3.23","Además, la entidad debe mostrar de manera prominente la siguiente información, y repetirla cuando sea necesario para el entendimiento de la información presentada:","No"]
[null,null,null,null,null,null,"Sección 3.23(a)","(a) el nombre de la entidad que reporta y cualquier cambio en su nombre desde el final del período precedente de presentación de reporte.","No"]
[null,null,null,null,null,null,"Sección 3.23(b)","(b) si los estados financieros cubren la entidad individual o un grupo de entidades.","No"]
[null,null,null,null,null,null,"Sección 3.23(c) ","(c) la fecha del final del período de presentación de reporte y el período cubierto por los estados financieros.\n","No"]
[null,null,null,null,null,null,"Sección 3.23(d)","(d) la moneda de presentación, tal y como se define en la Sección 30 Conversión de moneda extranjera.\n","No"]
[null,null,null,null,null,null,"Sección 3.23(e)","(e) el nivel de redondeo, Yes lo hay, usado en la presentación de las cantidades contenidas en los estados financieros.","No"]
[null,null,null,null,null,null,"Sección 3.24","La entidad debe revelar lo siguiente en las notas:"]
[null,null,null,null,null,null,"Sección 3.24(a)","(a) el domicilio y la forma legal de la entidad, su país de incorporación y la dirección de la oficina registrada (o el lugar principal de negocios, Yes es diferente de la oficina registrada).\n","No"]
[null,null,null,null,null,null,"Sección 3.24(b)","(b) una descripción de la naturaleza de las operaciones de la entidad y sus actividades principales.","No"]
[]
[null,null,null,null,null,null,"Sección 3.25","Esta NIIF no aborda la presentación de información de segmento, ganancias por acción, o reportes financieros intermedios  de una entidad de tamaño pequeño o mediano. La entidad que realice tales revelaciones debe describir la base para preparar y presentar la información.","No"]

{"sheet":"IFS4P","index":5,"n_rows":99,"n_cols":10,"rows_kept":99,"cut":false,"hidden":false,"merged":[[6,6,8,6],[9,6,11,6],[12,6,14,6],[15,6,16,6]]}
["p/c","parent","level",null,null,"Index",null,null,"PresentTQSummary","Yes"]
[null,null,null,null,null,null,null,null,null,"No"]
[null,null,null,null,null,"Sección 4","Estado de posición financiera",null,null,"N/A"]
[null,null,null,null,"PA","Referencia","Requerimiento de presentación/revelación",null,null,"Guidance"]
[null,null,null,null,null,null,"Esta Sección de la lista de verificación aborda la Sección 4 que establece la información a ser presentada en el  estado de posición financiera y cómo presentarla. El estado de posición financiera (algunas veces denominado el balance general) presenta los activos, pasivos y patrimonio de la entidad a una fecha específica - el final del período de presentación de reporte.",null,null,"Show"]
[null,null,null,null,null,null,"Para orientación adicional, seleccione Show en la siguiente columna","Hide",null,"Hide"]
["-G",null,null,null,null,null,"Los estados financieros tienen que presentar razonablemente la posición financiera, el desempeño financiero y los flujos de efectivo de la entidad. La  presentación razonable requiere la representación fiel de los efectos de las transacciones, otros eventos y condiciones de acuerdo con las definiciones y los criterios de reconocimiento que para activos, pasivos, ingresos y gastos se establecen en la Sección 2 Conceptos y principios generales.\n"]
["-G"]
["-G"]
["-G",null,null,null,null,null,"(a) La aplicación de la NIIF para PYMES, con la revelación adicional cuando sea necesaria, se presume que resulta en estados financieros que logran una presentación razonable de la posición financiera, el desempeño financiero y los flujos de efectivo de las PYMES.\n"]
["-G"]
["-G"]
["-G",null,null,null,null,null,"(b) Tal y como se explica en el parágrafo  1.5, la aplicación de esta NIIF por una entidad con accountability pública no resulta en una presentación razonable de acuerdo con esta NIIF.\n"]
["-G"]
["-G"]
["-G",null,null,null,null,null,"Las revelaciones adicionales a las cuales se hace referencia en (a) son necesarias cuando el cumplimiento con los requerimientos específicos contenidos en esta NIIF es insuficiente para permitirles a los usuarios entender el efecto que transacciones, otros eventos y condiciones, particulares,  tienen en la posición financiera y el desempeño financiero de la entidad."]
["-G"]
[null,null,null,"PA Group","PA","Referencia","Requerimiento de presentación/revelación","Yes / No / N/A","Comentarios"]
[null,null,null,null,null,null,"Estado de posición financiera"]
[null,null,null,null,null,null,"Información a ser presentada en el estado  de posición financiera"]
[null,"4C1",1,4,null,"Sección 4.2","Como mínimo, el estado de posición financiera tiene que incluir elementos de línea que presenten las cantidades siguientes:","Guidance"]
[null,null,null,null,null,"Sección 4.2(a)","(a) efectivo y equivalentes de efectivo.","N/A"]
[null,null,null,null,null,"Sección 4.2(b)","(b) cuentas por cobrar comerciales y otras.","N/A"]
[null,null,null,null,null,"Sección 4.2(c)","(c) activos financieros (excluyendo las cantidades que se muestren según (a), (b), (j) y (k)).","N/A"]
[null,null,null,null,null,"Sección 4.2(d)","(d) inventarios.","N/A"]
[null,null,null,null,null,"Sección 4.2(e)","(e) propiedad, planta y equipo.","N/A"]
[null,null,null,null,null,"Sección 4.2(f)","(f) propiedad para inversión llevada a valor razonable a través de utilidad o pérdida.","N/A"]
[null,null,null,null,null,"Sección 4.2(g)","(g) activos intangibles.","N/A"]
[null,null,null,null,null,"Sección 4.2(h)","(h) activos biológicos llevados a costo menos depreciación y deterioro acumulados.","N/A"]
[null,null,null,null,null,"Sección 4.2(i)","(i) activos biológicos llevados a valor razonable a través de utilidad o pérdida.","N/A"]
[null,null,null,null,null,"Sección 4.2(j)","(j) inversiones en asociadas.","N/A"]
[null,null,null,null,null,"Sección 4.2(k)","(k) inversiones en entidades controladas conjuntamente.","N/A"]
[null,null,null,null,null,"Sección 4.2(l)","(l) cuentas por pagar comerciales y otras.","N/A"]
[null,null,null,null,null,"Sección 4.2(m)","(m) pasivos financieros (excluyendo las cantidades que se muestren según (l) y (p)).","N/A"]
[null,null,null,null,null,"Sección 4.2(n)","(n) pasivos y activos por impuestos corrientes.","N/A"]
[null,null,null,null,null,"Sección 4.2(o)","(o) pasivos tributarios diferidos y activos tributarios diferidos (estos siempre se tienen que clasificar como no-corriente).","N/A"]
[null,null,null,null,null,"Sección 4.2(p)","(p) provisiones.","N/A"]
[null,null,null,null,null,"Sección 4.2(q)","(q) interés no-controlante, presentado dentro del patrimonio por separado del patrimonio atribuible a los propietarios de la matriz.","N/A"]
[null,null,null,null,null,"Sección 4.2(r)","(r) patrimonio atribuible a los propietarios de la matriz.","N/A"]
["4C1-G",null,null,null,null,null,"Notas:"]
["4C1-G",null,null,null,null,"Sección 4.9","1) \nEsta NIIF no prescribe la secuencia o el formato en el cual se presentan los elementos. El parágrafo  4.2 (vea abajo) simplemente proporciona una lista de los elementos que son suficientemente diferentes en naturaleza o función para requerir la presentación separada en el estado de posición financiera."]
["4C1-G",null,null,null,null,null,"2)      Además:"]
["4C1-G",null,null,null,null,"Sección 4.9(a)","(a) se incluyen elementos de línea cuando el tamaño, la naturaleza o la función de un elemento  o agregación de elementos similares es tal que la presentación separada es relevante para el entendimiento de la posición financiera de la entidad, y"]
["4C1-G",null,null,null,null,"Sección 4.9(b)","(b) las descripciones usadas y la secuencia de los elementos o de la agregación de elementos similares puede ser enmendada de acuerdo con la naturaleza de la entidad y sus transacciones, para proporcionar información que sea relevantepara el entendimiento de la posición financiera de la entidad."]
[null,"4C2",1,4,null,"Sección 4.3","La entidad tiene que presentar adicionales elementos de línea, encabezados y subtotales en el estado de posición financiera cuando tal presentación sea relevante para el entendimiento de la posición financiera de la entidad.","No"]
["4C2-G",null,null,null,null,null,"Notas:"]
["4C2-G",null,null,null,null,"Sección 4.10","La entidad hace el juicio, acerca de si presentar elementos adicionales por separado, con base en una valoración de lo siguiente:"]
["4C2-G",null,null,null,null,null,"(a) las cantidades, la naturaleza y la liquidez de los activos."]
["4C2-G",null,null,null,null,null,"(b) la función de los activos dentro de la entidad."]
["4C2-G",null,null,null,null,null,"(c) las cantidades, naturaleza y oportunidad de los Pasivos."]
[null,null,null,null,null,null,"Distinción corriente/no-corriente"]
[null,null,null,4,null,"Sección 4.4","La entidad tiene que presentar los activos corrientes y no-corrientes, y los Pasivos corrientes y no-corrientes, como clasificaciones separadas en su estado de posición financiera excepto cuando la presentación basada en la liquidez proporcione información  que sea confiable y más relevante. Cuando esa excepción aplique, todos los activos y Pasivos tienen que ser presentados en orden de liquidez aproximada (ascendiente o descendiente).","N/A"]
[null,"4A",1,"4A","4A",null,"¿La presentación basada en la liquidez proporciona información que es confiable y más relevante que la presentación sobre la base de corriente/no-corriente?","N/A"]
[null,null,null," ",null,null,"If Yes :"]
["4A-Y",null,null,"4A",null,"Sección 4.4","La entidad tiene que presentar todos los activos y pasivos en orden de liquidez aproximada (ascendiente o descendiente)."]
[null,null,null,null,null,null,"Activos corrientes"]
[null,null,null,4,null,null,"La entidad tiene que clasificar un activo como corriente cuando se satisfaga cualquiera de los criterios siguientes:"]
[null,"4C3",1,null,null,"Sección 4.5(a)","(a) espera realizar el activo, o tiene la intención de venderlo o consumirlo, en el ciclo normal de operación de la entidad;","N/A"]
["4C3-G",null,null,null,null,"Sección 4.6","Nota:  Cuando el ciclo normal de operación de la entidad no es identificable de manera clara, se asume que su duración es de doce meses."]
[null,null,null,null,null,"Sección 4.5(b)","(b) tiene el activo principalmente para el propósito de negociación;","No"]
[null,null,null,null,null,"Sección 4.5(c)","(c) espera realizar el activo dentro de los doce meses después de la fecha de presentación de reporte; o","No"]
[null,null,null,null,null,"Sección 4.5(d)","(d) el activo es efectivo o un equivalente de efectivo, a menos que esté restringido para ser intercambiado o usado para liquidar un pasivo por al menos doce meses después de la fecha de presentación de reporte.","No"]
[null,null,null,4,null,"Sección 4.6","La entidad tiene que clasificar todos los otros activos, diferentes a los que satisfacen uno de los criterios que se establecen en el parágrafo  4.5 de la Sección 4 (vea abajo), como no-corriente.","No"]
[null,null,null,null,null,null,"Pasivos corrientes"]
[null,null,null,4,null,null,"La entidad tiene que clasificar un pasivo como corriente cuando:"]
[null,"4C4",1,null,null,"Sección 4.7(a)","(a) espera liquidar el pasivo en el ciclo normal de operación de la entidad;","N/A"]
["4C4-G",null,null,null,null,"Sección 4.6","Nota:  Cuando el ciclo normal de operación de la entidad no es identificable de manera clara, su duración se asume que es de doce meses."]
[null,null,null,null,null,"Sección 4.7(b)","(b) tiene el pasivo principalmente con el propósito de negociación;","N/A"]
[null,null,null,null,null,"Sección 4.7(c)","(c) el pasivo debe ser liquidado dentro de los doce meses después de la fecha de presentación de reporte; o","N/A"]
[null,null,null,null,null,"Sección 4.7(d)","(d) la entidad no tiene un derecho incondicional para diferir la liquidación del pasivo por al menos doce meses después de la fecha de presentación de reporte.","N/A"]
[null,null,null,4,null,"Sección 4.8","La entidad tiene que clasificar todos los otros pasivos como no-corriente.","N/A"]
[null,null,null,null,null,null,"Información a ser presentada ya sea en el estado de posición financiera o en las notas"]
[null,null,null,4,null,null,"La entidad tiene que revelar, ya sea en el estado de posición financiera o en las notas, las siguientes subclasificaciones de los elementos de línea presentados:"]
[null,null,null,null,null,"Sección 4.11(a)","(a) Propiedad, planta y equipo en las clasificaciones apropiadas para la entidad.","N/A"]
[null,null,null,null,null,"Sección 4.11(b)","(b) Cuentas por cobrar comerciales y otras mostrando por separado las cantidades debidas por partes relacionadas, las cantidades debidas por otras partes, y las cuentas por cobrar que surjan d eincresos causados todavía no facturados.","N/A"]
[null,null,null,null,null,"Sección 4.11(c)","(c) Inventarios, mostrando por separado las cantidades de los inventarios:","N/A"]
[null,null,null,null,null,null,"     (i) tenidos para la venta en el curso ordinario de los negocios.","N/A"]
[null,null,null,4,null,null,"     (ii) en el proceso de producción para tal venta.","N/A"]
[null,null,null,null,null,null,"     (iii) en la forma de materiales o suministros a ser consumidos en el proceso de producción o en la prestación de servicios.","N/A"]
[null,null,null,null,null,"Sección 4.11(d)","(d) cuentas por pagar comerciales y otras, mostrando por separado las cantidades por pagar a proveedores comerciales, cuentas por pagar a partes relacionadas, ingresos diferidos y causaciones.","N/A"]
[null,null,null,null,null,"Sección 4.11(e)","(e) provisiones for beneficios para empleados y otras Provisiones.","N/A"]
[null,null,null,null,null,"Sección 4.11(f)","(f) clases de patrimonio, tales como capital pagado, prima en acciones, ganancias retenidas y elementos de ingresos y gastos que, tal y como es requerido por esta NIIF,  se reconocen en otros ingresos comprensivos y se presentan por separado dentro del patrimonio.","N/A"]
[null,null,null,4,null,null,"La entidad con capital en acciones tiene que revelar lo siguiente, ya sea en el estado de posición financiera o en las notas:"]
[null,null,null,null,null,"Sección 4.12(a)","a)      por cada clase de capital en acciones:"]
[null,null,null,null,null,null,"i)        el número de acciones autorizado;","N/A"]
[null,null,null,null,null,null,"ii)       el número de acciones emitidas y pagadas, y emitidas pero no pagadas;","N/A"]
[null,null,null,null,null,null,"iii)      valor nominal por acción, o que las acciones no tienen valor nominal;","N/A"]
[null,null,null,null,null,null,"iv)      una conciliación del número de acciones en circulación al comienzo y al final del período;","N/A"]
[null,null,null,null,null,null,"v)       los derechos, preferencias y restricciones vinculadas a esa clase, incluyendo las restricciones a la distribución de dividendos y el reembolso del capital;","N/A"]
[null,null,null,null,null,null,"vi)      acciones en la entidad tenidas por la entidad o por sus subsidiarias o asociadas; y ","N/A"]
[null,null,null,null,null,null,"vii)     acciones reservadas para emisión según opciones y contratos para la venta de acciones, incluyendo los términos y las cantidades; y","N/A"]
[null,null,null,null,null,"Sección 4.12(b)","b)      una descripción de la naturaleza y el propósito de cada reserva dentro del patrimonio.","N/A"]
[null,null,null,4,null,"Sección 4.13","La entidad sin capital en acciones, tal como una sociedad o un fideicomiso, tienen que revelar información equivalente a la requerida por el parágrafo  4.12(a) (vea abajo), mostrando los cambios durante el período en cada categoría del patrimonio, y los derechos, preferencias y restricciones vinculadas a cada categoría de patrimonio.","N/A"]
[null,"4B",1,"4B","4B",null,"A la fecha de presentación de reporte la entidad era parte de un acuerdo de venta vinculante para la disposición principal de activos, o un grupo de activos y pasivos?","N/A"]
[null,null,null," ",null,null,"If Yes :"]
["4B-Y",null,null,"4B",null,null,"Si, a lafecha de presentación de reporte, la entidad tiene un acuerdo de venta vinculante para una disposición importante de activos, o un grupo de activos y pasivos, la entidad tiene que revelar la siguiente información:"]
["4B-Y",null,null,null,null,"Sección 4.14(a)","(a) una descripción del(os) activo(s) o del grupo de activos y pasivos."]
["4B-Y",null,null,null,null,"Sección 4.14(b)","(b) una descripción de los hechos y circunstancias de la venta o del plan."]
["4B-Y",null,null,null,null,"Sección 4.14(c)","(c) el valor en libros de los activos o, si la disposición implica un grupo de activos y pasivos, el  valor en libros de esos activos y pasivos."]

{"sheet":"IFS5P","index":6,"n_rows":55,"n_cols":11,"rows_kept":55,"cut":false,"hidden":false,"merged":[[6,7,8,7],[9,7,11,7],[12,7,14,7],[15,7,16,7]]}
["p/c","p/c","parent","level",null,null,"Index",null,null,"PresentTQSummary","Yes"]
[null,null,null,null,null,null,null,null,null,null,"No"]
[null,null,null,null,null,null,"Sección 5","Estado de ingresos comprensivos y estado de ingresos",null,null,"N/A"]
[null,null,null,null,null,"PA","Referencia","Requerimiento de presentación/revelación",null,null,"Guidance"]
[null,null,null,null,null,null,null,"Esta Sección de la lista de verificación aborda la Sección 5  que requiere que la entidad presente su total de ingresos comprensivos del período (ie su desempeño financiero para el período) en ya sea uno o dos estados financieros. Establece la información a ser presentada en esos estados y cómo presentarla.",null,null,"Show"]
[null,null,null,null,null,null,null,"Para orientación adicional, seleccione Show en la siguiente columna","Hide",null,"Hide"]
["-G",null,null,null,null,null,null,"Los estados financieros tienen que presentar razonablemente la posición financiera, el desempeño financiero y los flujos de efectivo de la entidad. La presentación razonable requiere la representación fiel de los efectos de las transacciones, otros eventos y condiciones de acuerdo con las definiciones y  los criterios de reconocimiento para activos, pasivos, ingresos y gastos que se establece en la Sección 2 Conceptos y principios generales.\n"]
["-G"]
["-G"]
["-G",null,null,null,null,null,null,"(a) La aplicación de la NIIF para PYMES, con la revelación adicional cuando sea necesario, se presume que resulta en estados financieros que logran una presentación razonable de la posición financiera, el desempeño financiero y los flujos de efectivo de las PYMES.\n"]
["-G"]
["-G"]
["-G",null,null,null,null,null,null,"(b) Tal y como se explica en el parágrafo  1.5, la aplicación de esta NIIF por una entidad con accountability pública no resulta en una presentación razonable de acuerdo con esta NIIF.\n"]
["-G"]
["-G"]
["-G",null,null,null,null,null,null,"Las revelaciones adicionales a las cuales se hace referencia en (a) son necesarias cuando el cumplimiento con los requerimientos específicos contenidos en esta NIIF es insuficiente para permitirles a los usuarios entender los efectos que transacciones, otros eventos y condiciones, particulares,  tienen en la posición financiera y el desempeño financiero de la entidad."]
["-G"]
[null,null,null,null,"PA Group","PA","Referencia","Requerimiento de presentación/revelación","Yes / No / N/A","Comentarios"]
[null,null,null,null,null,null,null,"Estado de ingresos comprensivos"]
[null,null,null,null,5,null,"Sección 5.2","La entidad tiene que presentar el total de los ingresos comprensivos del período ya sea:"]
[null,null,"5C1",1,null,null,"Sección 5.2(a)","(a) en un solo estado de ingresos comprensivos, en el cual el estado de ingresos comprensivos presenta todos los elementos de ingresos y gastos reconocidos en el período, o","N/A"]
["5C1-G",null,null,null,null,null,"Sección 5.4","Notas: \nSegún el enfoque de un solo estado, el estado de ingresos comprensivos tiene que incluir todos los elementos de ingresos y gastos reconocidos en el período a menos que esta NIIF lo requiera de otra manera. Esta NIIF proporciona tratamiento diferente para las circunstancias siguientes:\n\n(a) Los efectos de las correcciones de errores y los cambios en las políticas de contabilidad se presentan como ajustes retrospectivos de períodos anteriores más que como parte de la utilidad o pérdida del período en el cual surgen (vea la Sección 10).\n\n(b) Tres tipos de otros ingresos comprensivos se reconocen como parte del total de ingresos comprensivos, fuera de la utilidad o pérdida, cuando surgen:\n\n(i) algunas ganancias y pérdidas que surgen de la conversión de los estados financieros de una operación en el extranjero (vea la Sección 30 Conversión de moneda extranjera).\n\n(ii) algunas ganancias y pérdidas actuariales (vea la Sección 28 Beneficios para empleados).\n\n(iii) algunos cambios en los valores razonables de los instrumentos de cobertura (vea la Sección 12 Otros problemas relacionados con los instrumentos financieros)."]
["5C1-G",null,null,null,null,null,"Sección 5.3","El cambio desde el enfoque de un solo estado hacia el enfoque de dos estados, o vice versa, es un cambio en política de contabilidad al cual aplica la Sección 10 Políticas de contabilidad, estimados y errores."]
[null,null,null,null,null,null,"Sección 5.2(b)","(b) en dos estados: un estado de ingresos y un estado de ingresos comprensivos caso en el cual el estado de ingresos presenta todos los elementos de ingresos y gastos reconocidos en el período excepto los que se reconocen en el total de ingresos comprensivos fuera de utilidad o pérdida tal y como es permitido o requerido por esta NIIF.","N/A"]
[null,null,null,null,null,null,null,"Información a ser presentada en el estado  de ingresos comprensivos"]
[null,null,null,null,5,null,null,"Como mínimo, la entidad tiene que incluir, en el estado de ingresos comprensivos, elementos de línea que presenten las siguientes cantidades para el período:"]
[null,null,null,null,null,null,"Sección 5.5(a)","(a) ingresos ordinarios.","N/A"]
[null,null,null,null,null,null,"Sección 5.5(b)","(b) costos financieros.","N/A"]
[null,null,null,null,null,null,"Sección 5.5(c)","(c) participación de la utilidad o pérdida de las Inversiones en asociadas (vea la Sección 14 Inversiones en asociadas) y de las entidades controladas conjuntamente (vea la Sección 15 Inversiones en negocios conjuntos) contabilizadas usando el método del patrimonio.","N/A"]
[null,null,null,null,null,null,"Sección 5.5(d)","(d) gastos por impuestos excluyendo los impuestos asignados a los elementos (e), (g) y (h) abajo (see el parágrafo  29.27).","N/A"]
[null,null,null,null,null,null,"Sección 5.5(e)","(e) una sola cantidad que comprenda el total de"]
[null,null,null,null,null,null,null,"     (i) la utilidad o pérdida después de impuestos, de la operación descontinuada, y","N/A"]
[null,null,null,null,null,null,null,"     (ii) la ganancia o pérdida después de impuestos reconocida en la medición del valor razonable menos los costos de venta o en la disposición de los activos netos que constituyan la operación descontinuada.","N/A"]
[null,null,null,null,null,null,"Sección 5.5(f)","(f) la utilidad o pérdida (si la entidad no tiene elementos de otros ingresos comprensivos, esta línea no necesita ser presentada).","N/A"]
[null,null,null,null,null,null,"Sección 5.5(g)","(g) cada elemento de otros ingresos comprensivos (vea el parágrafo  5.4(b)) clasificado por naturaleza (excluyendo las cantidades contenidas en (h)).","N/A"]
[null,null,null,null,null,null,"Sección 5.5(h)","(h) la participación de los otros ingresos comprensivos de las asociadas y de las entidades controladas conjuntamente contabilizadas por el método del patrimonio.","N/A"]
[null,null,null,null,null,null,"Sección 5.5(i)","(i) el total de ingresos comprensivos (si la entidad no tiene elementos de otros ingresos comprensivos, puede usar otro término para esta línea, tal como utilidad o pérdida).","N/A"]
[null,null,null,null,null,null,null,"La entidad tiene que revelar por separado los siguientes elementos contenidos en el estado de ingresos comprensivos como asignaciones para el período:"]
[null,null,null,null,null,null,"Sección 5.6(a)","(a) utilidad o pérdida del período, atribuible a"]
[null,null,null,null,null,null,null,"     (i) interés no-controlante.","N/A"]
[null,null,null,null,null,null,null,"     (ii) propietarios de la matriz.","N/A"]
[null,null,null,null,null,null,"Sección 5.6(b)","(b) total de ingresos comprensivos del período atribuibles a"]
[null,null,null,null,null,null,null,"     (i) interés no-controlante.","N/A"]
[null,null,null,null,null,null,null,"     (ii) propietarios de la matriz.","N/A"]
[null,null,"5A",1,"5A","5A",null,"¿La entidad que reporta ha adoptado el enfoque de dos estados (reportando un estado de ingresos y un estado de ingresos comprensivos)?","N/A"]
[null,null,null,null," ",null,null,"If Yes :"]
["5A-Y",null,null,null,"5A",null,"Sección 5.7","Según el enfoque de dos estados: \n\n1) El estado de ingresos tiene que mostrar, como mínimo, elementos de línes que presenten las cantidades contenidas en el parágrafo  5.5(a)–5.5(f) (vea abajo) para el período, con utilidad o pérdida como la última línea.\n\n2) El estado de ingresos comprensivos tiene que comenzar con utilidad o pérdida como su primera línea y tiene que mostrar, como mínimo, los elementos de línea que presenten las cantidades contenidas en los parágrafos  5.5(g)–5.5(i) y en el parágrafo  5.6 para el período."]
[null,null,null,null,null,null,null,"Requerimientos aplicables a ambos enfoques"]
[null,null,null,null,5,null,"Sección 5.8","Según esta NIIF, los efectos de las correcciones de errores y los cambios en las políticas de contabilidad se presentan como ajustes retrospectivos de períodos anteriores más que como parte de la utilidad o pérdida del período en el cual surgen (vea la Sección 10).","N/A"]
[null,null,null,null,null,null,"Sección 5.9","La entidad tiene que presentar adicionales elementos de línea, encabezados y subtotales en el estado de ingresos comprensivos (y en el estado de ingresos, si se presenta), cuando tal presentación sea relevante para el entendimiento del desempeño financiero de la entidad.","N/A"]
[null,null,null,null,null,null,"Sección 5.10","La entidad no puede presentar o describir ningún elemento de ingresos y gastos como 'elementos extraordinarios' en el estado de ingresos comprensivos (o en el estado de ingresos, si se presena) o en las notas.","N/A"]
[null,null,null,null,null,null,null,"Análisis de los gastos"]
[null,null,"5C2",1,5,null,"Sección 5.11","La entidad tiene que presentar un análisis de los gastos usando una clasificación basada en ya sea la naturaleza de los gastos o la función de los gastos dentro de la entidad, cualquiera que proporcione información que sea confiable y más relevante.","N/A"]
["5C2-G",null,null,null,null,null,"Sección 5.11(a)","(a)  Análisis por la naturaleza del gasto\nSegún este método de clasificación, los gastos se agregan en el estado de ingresos comprensivos de acuerdo con su naturaleza (eg depreciación, compras de materiales, costos de transporte, beneficios para empleados y costos de publicidad), y no se re-aYesgnan entre las diversas funciones dentro de la entidad.\n"]
["5C2-G",null,null,null,null,null,"Sección 5.11(b)","(b) Análisis por la función del gasto\nSegún este método de clasificación, los gastos se agregan de acuerdo con su función como parte del costo de ventas o, por ejemplo, los costos de distribución o las actividades administrativas. Como mínimo, según este método la entidad revela su costo de ventas por separado de los otros gastos.\n"]

{"sheet":"IFS6P","index":7,"n_rows":32,"n_cols":10,"rows_kept":32,"cut":false,"hidden":false,"merged":[[6,6,8,6],[11,6,12,6]]}
["p/c","parent","level",null,null,"Index",null,null,"PresentTQSummary","Yes"]
[null,null,null,null,null,null,null,null,null,"No"]
[null,null,null,null,null,"Sección 6","Estado de cambios en el patrimonio y estado de ingresos y ganancias retenidas",null,null,"N/A"]
[null,null,null,null,"PA","Referencia","Requerimiento de presentación/revelación",null,null,"Guidance"]
[null,null,null,null,null,null,"Esta Sección de la lista de verificación aborda la Sección 6 que establece los requerimientos para la presentación de los cambios en el patrimonio de la entidad ocurridos en el período, ya sea en un estado de cambios en el patrimonio o, si se satisfacen las condiciones especificadas y la entidad escoge hacerlo, en un   estado de ingresos y ganancias retenidas.",null,null,"Show"]
[null,null,null,null,null,null,"Para orientación adicional, seleccione Show en la siguiente columna","Hide",null,"Hide"]
["-G",null,null,null,null,null,"Los estados financieros tienen que presentar razonablemente la posición financiera, el desempeño financiero y los flujos de efectivo de la entidad. La presentación razonable requiere la representación fiel de los efectos de las transacciones, otros eventos y condiciones de acuerdo con las definiciones y los criterios de reconocimiento que para activos, pasivos, ingresos y gastos se establecen en la Sección 2 Conceptos y principios generales.\n"]
["-G"]
["-G"]
["-G",null,null,null,null,null,"(a) La aplicación de la NIIF para PYMES, con la revelación adicional cuando sea necesario, se presume que resulta en estados financieros que logran una presentación razonable de la posición financiera, el desempeño financiero y los flujos de efectivo de las PYMES.\n"]
["-G",null,null,null,null,null,"(b) Tal y como se explica en el parágrafo  1.5, la aplicación de esta NIIF por una entidad con accountability no resulta en una presentación razonable de acuerdo con esta NIIF.\n"]
["-G",null,null,null,null,null,"Las revelaciones adicionales a las cuales se hace referencia en (a) son necesarias cuando el cumplimiento con los requerimientos específicos contenidos en esta NIIF es insuficiente para permitirles a los usuarios entender el efecto que transacciones, otros eventos y condiciones, particulares, tienen en la posición financiera y el desempeño financiero de la entidad."]
["-G"]
[null,null,null,"PA Group","PA","Referencia","Requerimiento de presentación/revelación","Yes / No / N/A","Comentarios"]
[null,null,null,null,null,null,"Estado de cambios en el patrimonio"]
[null,null,null,null,null,null,"Información a ser presentada en el estado  de cambios en el patrimonio"]
[null,null,null,6,null,null,"La entidad tiene que presentar un estado de cambios en el patrimonio mostrando en el estado:"]
[null,null,null,null,null,"Sección 6.3(a)","(a) el total de ingresos comprensivos del período, mostrando por separado las cantidades totales atribuibles a los propietarios de la matriz y a los intereses no-controlantes.","N/A"]
[null,null,null,null,null,"Sección 6.3(b)","(b) para cada componente del patrimonio, los efectos de la aplicación retrospectiva o de la re-emisión retrospectiva reconocida de acuerdo con la Sección 10 Políticas de contabilidad, estimados y errores.","N/A"]
[null,null,null,null,null,"Sección 6.3(c)","(c) para cada componente del patrimonio, una conciliación entre el valor en libros al comienzo y al final del período, revelando por separado los cambios resultantes de:"]
[null,null,null,null,null,null,"(i) utilidad o pérdida.","N/A"]
[null,null,null,null,null,null,"(ii) cada elemento de otros ingresos comprensivos.","N/A"]
[null,null,null,null,null,null,"(iii) las cantidades de las Inversiones por, y los dividendos y otras distribuciones a, los propietarios, mostrando por separado las emiYesones de acciones, las transacciones con acciones de tesorería, los dividendos y las otras distribuciones a los propietarios, y los cambios en los intereses de propiedad tenidos en subsidiarias que no resulten en una pérdida de control.","N/A"]
[null,"6A",1,"6A","6A",null,"¿La entidad que reporta ha adoptado el estado de ingresos y ganancias retenidas en lugar del estado de ingresos comprensivos y el estado de cambios en el patrimonio?","N/A"]
["6A-G",null,null," ",null,"Sección 6.4","Nota: \nEl estado de ingresos y ganancias retenidas presenta la utilidad o pérdida de la entidad y los cambios en las ganancias retenidas por el período de presentación de reporte. El parágrafo  3.18 permite que la entidad presente el estado de ingresos y ganancias retenidas en lugar del estado de ingresos comprensivos y el estado de cambios en el patrimonio Yes los únicos cambios a su patrimonio durante los períodos para los cuales se presentan los estados financieros surgen de  utilidad o pérdida, pago de dividendos, correcciones de errores del período anterior, y cambios en política de contabilidad."]
[null,null,null," ",null,null,"If Yes :"]
["6A-Y",null,null,"6A",null,null,"La entidad tiene que presentar, en el estado de ingresos y ganancias retenidas, los siguientes elementos además de la información requerida por la Sección 5 estado de ingresos comprensivos y estado de ingresos (vea abajo):"]
["6A-Y",null,null," ",null,"Sección 6.5(a)","(a) ganancias retenidas al comienzo del período de presentación de reporte."]
["6A-Y",null,null," ",null,"Sección 6.5(b)","(b) dividendos declarados y pagados o por pagar durante el período."]
["6A-Y",null,null," ",null,"Sección 6.5(c)","(c) re-emisiones de las ganancias retenidas, por correcciones de errores de período anterior."]
["6A-Y",null,null," ",null,"Sección 6.5(d)","(d) re-emisiones de las ganancias retenidas, por cambios en la política de contabilidad."]
["6A-Y",null,null," ",null,"Sección 6.5(e)","(e) ganancias retenidas al final del período de presentación de reporte."]

{"sheet":"IFS7P","index":8,"n_rows":51,"n_cols":10,"rows_kept":51,"cut":false,"hidden":false,"merged":[]}
["p/c","parent","level",null,null,"Index",null,null,null,"Yes"]
[null,null,null,null,null,"Sección 7","Estado de flujos de efectivo",null,null,"No"]
[null,null,null,null,"PA","Referencia","Requerimiento de presentación/revelación",null,null,"N/A"]
[null,null,null,null,null,null,"Esta Sección de la lista de verificación aborda la Sección 7, que prescribe la información a ser presentada en el estado de flujos de efectivo y cómo presentarla.   El estado de flujos de efectivo proporciona información acerca de los cambios en el efectivo y en los equivalentes de efectivo de la entidad para el período de presentación de reporte, mostrando por separado los cambios provenientes de las actividades de operación, actividades de inversión y actividades de financiación.\n",null,null,"Guidance"]
[null,null,null,null,null,null,"Para orientación adicional, seleccione Show en la siguiente columna","Hide",null,"Show"]
["-G",null,null,null,null,null,"Notas:",null,null,"Hide"]
["-G",null,null,null,null,"Glossary of Terms","Para los propósitos de la preparación del estado de flujos de efectivo: \n\n1) El efectivo comprende el efectivo a la mano y los depóYestos a la vista.",null,null,"Yes"]
["-G",null,null,null,null,"Sección 7.2","2) Los equivalentes de efectivo son las Inversiones de corto plazo, altamente líquidas, tenidas para satisfacer compromisos de efectvo de corto plazo más que para propósitos de inversión o de otro tipo. Por consiguiente, una inversión normalmente califica como equivalente de efectivo sólo cuando tiene una maduración corta de, dígase, tres meses o menos a partir de la fecha de adquisición. Los sobregiros bancarios normalmente se considera que son actividades de financiación similares a los préstamos. Sin embargo, si son reembolsables a la vista y hacen parte ntegral de la administración del efectivo de la entidad,  los sobregiros bancarios son un componente de efectivo y equivalentes de efectivo. ",null,null,"No"]
[null,null,null,null,null,null,null,null,null,"Guidance"]
[null,null,null,"PA Group","PA","Referencia","Requerimiento de presentación/revelación","Yes / No / N/A","Comentarios"]
[null,null,null,null,null,null,"Información a ser presentada en el estado  de flujos de efectivo"]
[null,"7C1",1,7,null,"Sección 7.3","La entidad tiene que presentar un estado de flujos de efectivo que presente los flujos de efectivo por el período de presentación de reporte, clasificados por actividades de operación, actividades de inversión y actividades de financiación.","No"]
["7C1-G",null,null,null,null,null,"Notas:"]
["7C1-G",null,null,null,null,"Sección 7.4","Actividades de operación son las actividades que producen los ingresos ordinarios principales de la entidad. Por consiguiente, los flujos de efectivo provenientes de las actividades de operación generalmente resultan de las transacciones y otros eventos y condiciones que participan en la determinación de la utilidad o pérdida. Ejemplos de los flujos de efectivo provenientes de las actividades de operación son:\n(a) ingresos de efectivo provenientes de la venta de bienes y la prestación de servicios.\n(b) ingresos de efectivo provenientes de regalías, honorarios, comisiones y otros ingresos ordinarios.\n(c) pagos de efectivo a proveedores por bienes y servicios.\n(d) pagos de efectivo a y a nombre de empleados.\n(e) pagos de efectivo o devoluciones de impuestos a los ingresos, a menos que de manera específica puedan ser identificados con actividades de financiación y de inversión.\n(f) ingresos de efectivo y pagos provenientes d eInversiones, préstamos y otros contratos tenidos para propósitos comerciales o de negociación, que sean similares al inventario adquirido de manera específica para reventa. \nAlgunas transacciones, tales como la venta de un elemento de planta por una entidad fabricante, pueden dar origen a una ganancia o pérdida que se incluye en utilidad o pérdida. sin embargo, los flujos de efectivo relacionados con tales transacciones son flujos de efectivo provenientes de actividades de inversión.\n"]
["7C1-G",null,null,null,null,"Sección 7.5","\nActividades de inversión  son la adquisición y disposición de activos de largo plazo y otras Inversiones que no se incluyen en los equivalentes de efectivo. Ejemplos de los flujos de efectivo que surgen de las actividades de inversión son:\n(a) pagos de efectivo para adquirir propiedad, planta y equipo (incluyendo propiedad, planta y equipo auto-construida), activos intangibles y otros activos de largo plazo.\n(b) ingresos de efectivo provenientes de ventas de propiedad, planta y equipo, intangibles y otros activos de largo plazo.\n(c) pagos de efectivo para adquirir patrimonio o instrumentos de deuda de otras entidades e intereses en negocios conjuntos (diferentes a los pagos por los instrumentos claYesficados como equivalentes de efectivo o tenidos para propósitos de negociación o comerciales).\n(d) ingresos de efectivo  provenientes de la venta de patrimonio o instrumentos de deuda de otras entidades e intereses en negocios conjuntos (diferentes a los ingresos por los instrumentos claYesficados como equivalentes de efectivo o tenidos para negocicación o comercialización).\n(e) anticipos de efectivo y préstamos hechos a terceros.\n(f) ingresos de efectivo provenientes del reembolso de anticipos y préstamos hechos a terceros.\n(g) pagos de efectivo por contratos de futuros, contratos forward, contratos de opciones y contratos swap, excepto cuando los contratos sean tenidos para negociación o comercialización, o los pagos se claYesfiquen como actividades de financiación.\n(h) recibos de efectivo provenientes de contratos de futuros, contratos forward, contratos de opciones y contratos swap, excepto cuando los contratos sean tenidos para negociación o comercialización, o los ingresos se claYesfiquen como actividades de financiación.\nCuando un contrato es contabilizado como una cobertura (vea la Sección 12 Otros problemas relacionados con los instrumentos financieros), la entidad tiene que clasificar los flujos de efectivo del contrato de la misma manera que como los flujos de efectivo del elemento que esté Yesendo cubierto.\n"]
["7C1-G",null,null,null,null,"Sección 7.6","\nActividades de financiación son las actividades que resultan en cambios en el tamaño y la composición del patrimonio contribuido y de los préstamos de la entidad. Ejemplos de los flujos de efectivo que surgen de las actividades de financiación son:\n(a) producidos de efectivo provenientes de la emisión de acciones o de otros instrumentos de patrimonio.\n(b) pagos de efectivo a los propietarios para adquirir o redimir las acciones de la entidad.\n(c) producidos de efectivo provenientes de emisión de títulos de crédito [debentures], préstamos, notas, bonos, hipotecas y otros préstamos de corto o de largo plazo.\n(d) reembolsos de efectivo por cantidades prestadas.\n(e) pagos de efectivo hechos por un arrendatario por la reducción del pasivo pendiente relacionado con un arrendamiento financiero.\n"]
[null,null,null,null,null,null,"Presentación de reporte de los flujos de efectivo provenientes de las actividades de operación"]
[null,null,null,7,null,null,"La entidad tiene que presentar los flujos de efectivo provenientes de las actividades de operación usando ya sea:"]
[null,"7C2",1,null,null,"Sección 7.7 (a)","(a) el método indirecto, en el cual la utilidad o pérdida es ajustada por los efectos de las transacciones que no son en efectivo, cualesquiera diferidos o causaciones de ingresos o pagos de efectivo de operación pasados o futuros, y los elementos de ingresos o gastos asociados con los flujos de efectivo de inversión o de financiación; o","N/A"]
["7C2-G",null,null,null,null,null,"Nota: \nSegún el método indirecto, el neto de los los flujos de efectivo provenientes de las actividades de operación se determina mediante ajustar la utilidad o pérdida por los efectos de:"]
["7C2-G",null,null,null,null,"Sección 7.8(a)","(a) los cambios, ocurridos durante el período, en los inventarios y en las cuentas por cobrar y cuentas por pagar de operación;"]
["7C2-G",null,null,null,null,"Sección 7.8(b)","(b) los elementos que no son efectivo tales como depreciación, Provisiones, impuestos diferidos, ingresos (gastos) causados todavía no recibidos (pagados) en efectivo, ganancias y pérdidas en moneda extranjera no-realizadas, utilidades no distribuidas de asociados, e intereses no-controlantes; y"]
["7C2-G",null,null,null,null,"Sección 7.8(c)","(c) todos los otros elementos para los cuales los efectos del efectivo se relacionen con inversión o financiación."]
[null,"72C3",1,7,null,"Sección 7.7 (b)","(b) el método directo, en el cual se revelan las principales clases de ingresos brutos de efectivo y pagos brutos de efectivo. ","N/A"]
["72C3-G",null,null,null,null,null,"Nota:\nSegún el método directo, los flujos de efectivo netos provenientes de las actividades de operación se presenta mediante revelar información acerca de las clases principales de ingresos de efectivo brutos y de pagos de efectivo brutos. Tal información puede ser obtenida ya sea: "]
["72C3-G",null,null,null,null,"Sección 7.9 (a)","(a) de los registros de contabilidad de la entidad; o "]
["72C3-G",null,null,null,null,"Sección 7.9 (b)","(b) medante ajustar las ventas, el costo de ventas y los otros elementos contenidos en el estado de ingresos comprensivos (o el estado de ingresos, si se presenta) por: "]
["72C3-G",null,null,null,null,null,"(i) los cambios ocurridos durante el período en los inventarios y en las cuentas por cobrar y cuentas por pagar de operación; \n(ii) otros elementos que no sean en efectivo; y \n(iii) otros elementos para los cuales los efectos del efectiv sean flujos de efectivo de inversión o de financiación."]
[null,null,null,null,null,null,"Presentación de reporte de los flujos de efectivo provenientes de las actividades de inversión y de financiación"]
[null,null,null,7,null,"Sección 7.10","La entidad tiene que presentar por separado las clases principales de ingresos brutos de efectivo y de pagos brutos de efectivo que surjan de las actividades de inversión y de financiación. El agregado de los flujos de efectivo que surgen de las adquisiciones y de las disposiciones de subsidiarias o de otras unidades de negocio se tienen que presentar por separado y clasificados como actividades de inversión.","N/A"]
[null,null,null,null,null,null,"Intereses y dividendos"]
[null,null,null,7,null,"Sección 7.14","La entidad tiene que presentar por separado los flujos de efectivo provenientes de los intereses y dividendos recibidos y pagados. ","N/A"]
[null,"7C3",1,7,null,"Sección 7.14","La entidad tiene que clasificar los flujos de efectivo conYesstentemente de período a período como actividades de operación, inversión o financiación.","N/A"]
["7C3-G",null,null,null,null,null,"Notas:"]
["7C3-G",null,null,null,null,"Sección 7.15","1) La entidad puede clasificar como flujos de efectivo de operación los intereses pagados y los intereses y dividendos recibidos porque se incluyen en utilidad o pérdida. Alternativamente, la entidad puede clasificar como flujos de efectivo de financiación los intereses y dividendos recibidos y flujos de efectivo de inversión respectivamente, porque son costos de la obtención de recursos financieros o retornos sobre las Inversiones."]
["7C3-G",null,null,null,null,"Sección 7.16","2) La entidad puede clasificar los dividendos pagados como flujos de efectivo de financiación porque son un costo de la obtención de recursos financieros. Alternativamente, la entidad puede clasificar los dividendos pagados como un componente de los flujos de efectivo provenientes de las actividades de operación porque se pagan fuera de los flujos de efectivo de operación."]
[null,null,null,null,null,null,"Impuestos a los ingresos"]
[null,null,null,7,null,"Sección 7.17","La entidad tiene que presentar por separado los flujos de efectivo que surgen de los impuestos a los ingresos y tiene que clasificarlos como flujos de efectivo provenientes de las actividades de operación a menos que de manera específica puedan ser identificados con actividades de financiación o de inversión.  Cuando los flujos de efectivo por impuestos se asignen a más de una clase de actividad, la entidad tiene que revelar la cantidad total de los impuestos pagados.","N/A"]
[null,null,null,null,null,null,"Transacciones que no son en efectivo"]
[null,null,null,7,null,"Sección 7.18","La entidad tiene que excluir del estado de flujos de efectivo las transacciones de inversión y financiación que no requieren el uso de efectivo o equivalentes de efectivo. ","N/A"]
[null,"7C4",1,7,null,"Sección 7.18","La entidad tiene que revelar tales transacciones en otro lugar en los estados financieros de una manera que proporcione toda la información relevante acerca de las actividades de inversión y de financiación.","N/A"]
["7C4-G",null,null,null,null,"Sección 7.19","Nota:\nMuchas actividades de inversión y de financiación no tienen un impacto directo en los flujos de efectivo corrientes aún cuando afecten el capital  y la estructura de los activos de la entidad. La exclusión, del estado de flujos de efectivo, de las transacciones que no son en efectivo, es conYesstente con el objetivo del   estado de flujos de efectivo porque esos elementos no implican flujos de efectivo en el período corriente. Son ejemplos de transacciones que no son en efectivo:"]
["7C4-G",null,null,null,null,null,"(a) la adquisición de activos ya sea mediante asumir de manera directa los pasivos relacionados o por medio de un arrendamiento financiero."]
["7C4-G",null,null,null,null,null,"(b) la adquisición de una entidad por medio de una emisión de patrimonio."]
["7C4-G",null,null,null,null,null,"(c) la conversión de deuda en patrimonio."]
[null,null,null,null,null,null,"Componentes de efectivo y equivalentes de efectivo"]
[null,null,null,7,null,"Sección 7.20","La entidad tiene que revelar los componentes de efectivo y equivalentes de efectivo.","No"]
[null,null,null,7,null,"Sección 7.20","La entidad tiene que presentar una conciliación de las cantidades presentadas en el estado de flujos de efectivo con los elementos equivalentes presentados en el estado de posición financiera. sin embargo, la entidad no está requerida a presentar esta conciliación Yes la cantidad de efectivo y equivalentes de efectivo presentada en el estado de flujos de efectivo es idéntica a la cantidad que de manera similar se describe en el estado de posición financiera.\n","No"]
[null,null,null,null,null,null,"Otras revelaciones"]
[null,"7C5",1,7,null,"Sección 7.21","La entidad tiene que revelar, junto con el comentario de la administración, la cantidad de los saldos importantes de efectivo y equivalentes de efectivo tenidos por la entidad y que no estén disponibles para uso por la entidad.","N/A"]
["7C5-G",null,null,null,null,"Sección 7.21","Nota: El efectivo y equivalentes de efectivo tenido por la entidad puede no estar disponible para uso por la entidad a causa de, entre otras razones, controles de cambio o restricciones legales."]

{"sheet":"IFS8P","index":9,"n_rows":33,"n_cols":10,"rows_kept":33,"cut":false,"hidden":false,"merged":[]}
["p/c","parent","level",null,null,"Index",null,null,null,"Yes"]
[null,null,null,null,null,null,null,null,null,"No"]
[null,null,null,null,null,"Sección 8","Notas a los estados financieros",null,null,"N/A"]
[null,null,null,null,"PA","Referencia","Requerimiento de presentación/revelación",null,null,"Guidance"]
[null,null,null,null,null,null,"Esta Sección de la lista de verificación aborda la Sección 8 que establece los principios que subyacen a la información a ser presentada en las notas a los estados financieros y cómo presentarla.",null,null,"Show"]
[null,null,null,null,null,null,"Para orientación adicional, seleccione Show en la siguiente columna","Hide",null,"Hide"]
["-G",null,null,null,null,null,"Las notas contienen información adicional a la presentada en el estado de posición financiera, el estado de ingresos comprensivos, el estado de ingresos (si se presenta), el estado combinado de ingresos y ganancias retenidas (si se presenta), el estado de cambios en el patrimonio, y el estado de flujos de efectivo. Las notas proporcionan descripciones narrativas o desagregaciones de los elementos presentados en esos estados e información acerca de los elementos  que no califican para el reconocimiento en esos estados. Además de los requerimientos de esta Sección, caYes todas las otras Secciones de esta NIIF requieren revelaciones que normalmente se presentan en las notas."]
[]
[null,null,null,"PA Group","PA","Referencia","Requerimiento de presentación/revelación","Yes / No / N/A","Comentarios"]
[null,null,null,null,null,null,"Notas"]
[null,null,null,null,null,null,"Estructura de las notas"]
[null,null,null,8,null,null,"Las notas tienen que:"]
[null,null,null,null,null,"Sección 8.2(a)","(a) presentar información acerca de las bases de la preparación de los estados financieros y las políticas de contabilidad específicas usadas, de acuerdo con los parágrafos 8.5–8.7 (vea abajo);","No"]
[null,null,null,null,null,"Sección 8.2(b)","(b) revelar la información requerida por esta NIIF que no se presente en otro lugar en los estados financieros; y","No"]
[null,null,null,null,null,"Sección 8.2(c)","(c) proporcionar información que no se presente en otro lugar en los estados financieros pero que sea relevante para el entedimiento de cualquiera de ellos.","N/A"]
[null,"8C1",1,8,null,"Sección 8.3","En la extensión en que sea practicable, la entidad tiene que presentar las notas de una manera sistemática. La entidad tiene que hacer referencia cruzada de cada elemento contenido en los estados financieros con cualquier información relacionada contenida en las notas.","N/A"]
["8C1-G",null,null,null,null,null,"Notas:"]
["8C1-G",null,null,null,null,"Sección 8.4","La entidad normalmente presenta las notas en el siguiente orden, para ayudarles a los usuarios a entender los estados financieros y compararlos con los estados financieros de otras entidades:"]
["8C1-G",null,null,null,null,null,"(a) una declaración de que los estados financieros han sido preparados en cumplimiento con la NIIF para PYMES  (vea el parágrafo  3.3);"]
["8C1-G",null,null,null,null,null,"(b) un resumen de las políticas de contabilidad importantes aplicadas (vea el parágrafo  8.5);"]
["8C1-G",null,null,null,null,null,"(c) información de respaldo para los elementos presentados en los estados financieros, en la secuencia en que se presente cada estado y cada elemento de línea; y"]
["8C1-G",null,null,null,null,null,"(d) cualesquiera otras revelaciones."]
[null,null,null,null,null,null,"Revelación de las políticas de contabilidad"]
[null,null,null,8,null,null,"La entidad tiene que revelar lo siguiente en el resumen de las políticas de contabilidad importantes:"]
[null,null,null,null,null,"Sección 8.5(a)","(a) la base (o bases) de medición usada(s) en la preparación de los estados financieros.","N/A"]
[null,null,null,null,null,"Sección 8.5(b)","(b) las otras políticas de contabilidad usadas que sean relevantes para el entendimiento de los estados financieros.","N/A"]
[null,null,null,null,null,null,"Información acerca de los juicios"]
[null,null,null,8,null,"Sección 8.6","La entidad tiene que revelar, en el resumen de las políticas de contabilidad importantes o en otras notas, los juicios, aparte de los que impliquen estimaciones  (vea el parágrafo  8.7) (vea abajo), que la administración haya hecho en el proceso de aplicación de las políticas de contabilidad de la entidad y que tengan el efecto más importante en las cantidades reconocidas en los estados financieros.","N/A"]
[null,null,null,null,null,null,"Información acerca de las fuentes clave de incertidumbre de la estimación"]
[null,null,null,8,null,"Sección 8.7","La entidad tiene que revelar en las notas información acerca de los supuestos clave relacionados con el futuro, y otras fuentes clave de incertidumbre de la estimación a la fecha de presentación de reporte, que tengan un riesgo importante de causar un ajuste material a los valores en libros de los activos y Pasivos dentro del siguiente año financiero.","N/A"]
[null,null,null,8,null,null," Con relación a esos activos y Pasivos, las notas tienen que incluir detalles de:"]
[null,null,null,null,null,"Sección 8.7(a)","(a) su naturaleza; y","N/A"]
[null,null,null,null,null,"Sección 8.7(b)","(b) su valor en libros al final del período de presentación de reporte.","N/A"]

{"sheet":"IFS9P","index":10,"n_rows":46,"n_cols":13,"rows_kept":46,"cut":false,"hidden":false,"merged":[]}
[null,null,"p/c","p/c","parent","level",null,null,"Index",null,null,"PresentTQSummary","Yes"]
[null,null,null,null,null,null,null,null,"Sección 9","Estados financieros consolidados y separados",null,null,"No"]
[null,null,null,null,null,null,null,"PA","Referencia","Requerimiento de presentación/revelación",null,null,"N/A"]
[null,null,null,null,null,null,null,null,null,"Esta Sección de la lista de verificación aborda los requerimientos de presentación y revelación de la Sección 9, que define las circunstancias en las cuales la entidad presenta estados financieros consolidados y los procedimientos para la preparación de esos estados. También incluye orientación sobre los estados financieros separados y los estados financieros combinados.\n\n",null,null,"Guidance"]
[null,null,null,null,null,null,null,null,null,"Para orientación adicional, seleccione Show en la siguiente columna","Hide",null,"Show"]
["-G",null,null,null,null,null,null,null,null,"Requerimiento para presentar estados financieros consolidados",null,null,"Hide"]
["-G",null,null,null,null,null,null,null,"Sección 9.2","Excepto tal y como es permitido o requerido por el parágrafo  9.3 (vea abajo), la entidad matriz tiene que presentar estados financieros consolidados en los cuales consolide sus Inversiones en las subsidiarias de acuerdo con esta NIIF. Los estados financieros consolidados tienen que incluir todas las subsidiarias de la matriz.\n",null,null,"Yes"]
["-G",null,null,null,null,null,null,null,"Sección 9.3","La matriz no necesita presentar financial statements consolidados si:",null,null,"No"]
["-G",null,null,null,null,null,null,null,"Sección 9.3(a)","(a)se satisfacen ambas de las condiciones siguientes:\n(i) la matriz es ella misma una subsidiaria, y\n(ii) su matriz última (o cualquier matriz intermedia) produce estados financieros consolidados de propósito general  que cumplen con las  NIIF plenas o con esta  NIIF; o",null,null,"Guidance"]
["-G",null,null,null,null,null,null,null,"Sección 9.3(b)","(b) no tiene subsidiarias distintas a una que fue adquirida con la intención de venderla o disponerla dentro de un año. La matriz tiene que contabilizar tal subsidiaria:\n(i) a valor razonable con los cambios en el valor razonable reconocidos en utilidad o pérdida, Yes el valor razonable de las acciones se puede medir confiablemente, o\n(ii) de otra manera al costo menos deterioro (vea el parágrafo  11.14(c))."]
["-G",null,null,null,null,null,null,null,"Sección 9.11","Entidades de propósito especial\nLa entidad tiene que preparar estados financieros  que incluyan la entidad y cualesquiera entidades de propósito especial [SPE = special purpose entitie] que sean controladas por esa entidad."]
[null,null,null,null,null,null,"PA Group","PA","Referencia","Requerimiento de presentación/revelación","Yes / No / N/A","Comentarios"]
[null,null,null,null,9,1,"9A","9A",null,"¿La entidad ha preparado ya sea estados financieros consolidados o estados financieros separados (o ambos)?","N/A"]
[null,null,null,null,null,null," ",null,null,"If Yes :"]
["9-Y",null,null,null,null,null,null,null,null,"Estados financieros consolidados"]
["9-Y",null,null,null,"9A",2,"9A R",null,null,"¿La entidad ha preparado estados financieros consolidados?"]
[null,null,null,null,null,null," ",null,null,"If Yes :"]
["9-Y","9A-Y",null,null,"9A1",3,"9A-1 R",null,null,"¿Hay cualesquiera intereses no controlantes?"]
[null,null,null,null,null,null," ",null,null,"If Yes :"]
["9-Y","9A-Y","9A1-Y",null,null,null,"9A-1 R",null,"Sección 9.20","En el estado consolidado de posición financiera la entidad tiene que presentar el interés no-controlante dentro del patrimonio, separado del patrimonio de la  matriz, tal y como es requerido por el parágrafo 4.2(q)."]
["9-Y","9A-Y","9A1-Y",null,"9A1C1",4,"9A-1 R",null,"Sección 9.21","La entidad tiene que revelar el interés no-controlante en la utilidad o pérdida del grupo por separado en el estado de ingresos comprensivos, tal y como es requerido por el parágrafo 5.6 (o en el estado de ingresos,si se presenta, tal y como es requerido por el parágrafo 5.7)."]
["9-Y","9A-Y","9A1-Y","9A1C1-G",null,null,"9A-1 R",null,"Sección 9.22","Nota:\nLa utilidad o pérdida y cada componente de otros ingresos comprensivos tienen que atribuirse a los propietarios de la matriz y al interés no-controlante. El total de los ingresos comprensivos tiene que ser atribuido a los propietarios de la matriz y al the interés no-controlante aún si esto resulta en que el interés no-controlante tenga un saldo deficitario."]
["9-Y","9A-Y",null,null,null,null,null,null,null,"Revelaciones en los estados financieros consolidados"]
["9-Y","9A-Y",null,null,null,null,"9A R",null,null,"Las siguientes revelaciones se tienen que hacer en los estados financieros consolidados:"]
["9-Y","9A-Y",null,null,null,null,"9A R",null,"Sección 9.23(a)","(a) el hecho de que los estados son estados financieros consolidados."]
["9-Y","9A-Y",null,null,null,null,"9A R",null,"Sección 9.23(b)","(b) las bases para concluir que existe control cuando la matriz no posee, directa o indirectamente mediante subsidiarias, más de la mitad del poder de voto."]
["9-Y","9A-Y",null,null,null,null,"9A R",null,"Sección 9.23(c) ","(c) cualquier diferencia en lafecha de presentación de reporte de los estados financieros de la matriz y sus subsidiarias usada en la preparación de los estados financieros consolidados."]
["9-Y","9A-Y",null,null,null,null,"9A R",null,"Sección 9.23(d)","(d) la naturaleza y extensión de cualesquiera restricciones importantes (e.g. resultantes de acuerdos de préstamo o  de requerimientos regulatorios) sobre la capacidad de las subsidiarias para transferirle fondos a la matriz en la forma de dividendos en efectivo o reembolsos de préstamos."]
["9-Y",null,null,null,null,null,null,null,null,"Estados financieros separados"]
["9-Y",null,null,null,"9B",2,"9B R",null,null,"¿La entidad ha preparado estados financieros separados?"]
[null,null,null,null,null,null," ",null,null,"If Yes :"]
["9-Y","9B-Y",null,null,null,null,"9B R",null,null,"Cuando la matriz, el inversionista en una asociada, o el participante con un interés en una entidad controlada conjuntamente prepara estados financieros separados, esos estados financieros separados tienen que revelar:"]
["9-Y","9B-Y",null,null,null,null,null,null,"Sección 9.27(a)","(a) que los estados son estados financieros separados, y"]
["9-Y","9B-Y",null,null,null,null,null,null,"Sección 9.27(b)","(b) una descripción de los métodos usados para contabilizar las inversiones en subsidiarias, entidades controladas conjuntamente y asociadas, y tiene que identificar los estados financieros consolidados o los otros estados financieros primarios con los cuales se relaciona, y "]
["9-Y","9B-Y",null,null,null,null,null,null,"Sección 9.27","tiene que identificar los estados financieros consolidados o los otros estados financieros primarios con los cuales se relaciona."]
["9-Y",null,null,null,null,null,null,null,null,"Estados financieros combinados"]
["9-Y",null,null,null,"9C",2,"9C R",null,null,"¿La entidad ha preparado estados financieros combinados?"]
["9-Y","9C-G",null,null,null,null,"9C R",null,"Sección 9.28","Nota:\n1) Estados financieros combinados son el conjunto único estados financieros de dos o más entidades controladas por un solo inversionista. Esta NIIF no requiere que se preparen estados financieros combinados."]
["9-Y","9C-G",null,null,null,null,"9C R",null,"Sección 9.29","2) Si el inversionista prepara estados financieros combinados y los describe como conformes con la NIIF para PYMES, esos estados tienen que cumplir con todos los requerimientos de esta NIIF. Las transacciones y los saldos intercompañía se tienen que eliminar; las utilidades o pérdidas resultantes de las transacciones intercompañía que se reconozcan en activos tales como inventario y propiedad, planta y equipo se tienen que eliminar; los estados financieros de las entidades incluidas en los estados financieros combinados se tienen que preparar a la misma fecha de presentación de reporte a menos que sea impracticable hacerlo; y se tienen que seguir políticas de contabilidad uniformes para transacciones y otros eventos similares  en circunstancias similares."]
[null,null,null,null,null,null," ",null,null,"If Yes :"]
["9-Y","9C-Y",null,null,null,null,"9C R",null,null,"Los estados financieros combinados tienen que revelar lo siguiente:"]
["9-Y","9C-Y",null,null,null,null,null,null,"Sección 9.30(a)","(a) el hecho de que los estados financieros son estados financieros combinados."]
["9-Y","9C-Y",null,null,null,null,"9C R",null,"Sección 9.30(b)","(b) la razón por la cual se preparan estados financieros combinados."]
["9-Y","9C-Y",null,null,null,null,"9C R",null,"Sección 9.30(c)","(c) las bases para determinar cuáles entidades se incluyen en los estados financieros combinados."]
["9-Y","9C-Y",null,null,null,null,null,null,"Sección 9.30(d)","(d) las bases de preparación de los estados financieros combinados."]
["9-Y","9C-Y",null,null,null,null,null,null,"Sección 9.30(e)","(e) las revelaciones de partes relacionadas requeridas por la Sección 33 Revelaciones de partes relacionadas."]

{"sheet":"IFS10P","index":11,"n_rows":46,"n_cols":11,"rows_kept":46,"cut":false,"hidden":false,"merged":[]}
["p/c","p/c","parent","level",null,null,"Index",null,null,"PresentTQSummary","Yes"]
[null,null,null,null,null,null,"Sección 10","Políticas de contabilidad, estimados y errores",null,null,"No"]
[null,null,null,null,null,"PA","Referencia","Requerimiento de presentación/revelación",null,null,"N/A"]
[null,null,null,null,null,null,null,"Esta Sección de la lista de verificación aborda los requerimientos de presentación y revelación de la Sección 10, que proporciona orientación para la selección y aplicación de las políticas de contabilidad usadas en la preparación de los estados financieros. También cubre los cambios en los estimados de contabilidad y las correcciones de errores contenidos en los estados financieros del período anterior.",null,null,"Guidance"]
[null,null,null,null,null,null,null,"Para orientación adicional, seleccione Show en la siguiente columna","Hide",null,"Show"]
["-G",null,null,null,null,null,null,"Requerimientos de presentación/revelación, nuevos o enmendados, efectivos por primera vez\nNinguno\n",null,null,"Hide"]
[null,null,null,null,"PA Group",null,"Referencia","Requerimiento de presentación/revelación","Yes / No / N/A","Comentarios"]
[null,null,null,null,null,null,null,"Revelación de los cambios en las políticas de contabilidad"]
[null,null,"10A",1,"10A","10A",null,"¿La entidad cambió cualesquiera políticas de contabilidad durante el período de presentación de reporte debido a una enmienda a la NIIF para PYMES?","N/A"]
[null,null,null,null," ",null,null,"If Yes :"]
["10A-Y",null,"10AC1",2,"10A"," ",null,"Cuando una enmienda a esta NIIF tenga un efecto en el período corriente o en cualquier período anterior, o pueda tener un efecto en períodos futuros, la entidad tiene que revelar lo siguiente:"]
["10A-Y",null,null,null,"10A",null,"Sección 10.13(a)","(a) la naturaleza del cambio en la política de contabilidad."]
["10A-Y",null,null,null,"10A",null,"Sección 10.13(b)","(b) por el período corriente y por cada período presentado, en la extensión en que sea practicable, la cantidad del ajuste por cada elemento de línea del estado financiero afectado."]
["10A-Y",null,null,null,"10A",null,"Sección 10.13(c)","(c) la cantidad del ajuste relacionado con períodos anteriores a los presentados, en la extensión en que sea practicable."]
["10A-Y",null,null,null,"10A",null,"Sección 10.13(d)","(d) una explicación de si es impracticable determinar las cantidades a ser reveladas en (b) o (c) arriba."]
["10A-Y","10AC1-G",null,null,null,null,"Sección 10.13","Nota: los estados financieros de períodos subsiguientes no necesitan repetir esas revelaciones."]
[null,null,"10B",1,"10B","10B",null,"¿La entidad cambió voluntariamente cualesquiera políticas de contabilidad durante el período de presentación de reporte?","N/A"]
[null,null,null,null," ",null,null,"If Yes :"]
["10B-Y",null,"10BC1",2,"10B",null,null,"Cuando un cambio voluntario en la política de contabilidad tenga un efecto en el período corriente o en cualquier período anterior, la entidad tiene que revelar lo siguiente:"]
["10B-Y",null,null,null,"10B",null,"Sección 10.14(a)","(a) la naturaleza del cambio en la política de contabilidad."]
["10B-Y",null,null,null,"10B",null,"Sección 10.14(b)","(b) las razones por las cuales aplicar la nueva política de contabilidad proporciona información confiable y más relevante."]
["10B-Y",null,null,null,"10B",null,"Sección 10.14(c)","(c) en la extensión en que sea practicable, la cantidad del ajuste por cada línea del estado financiero afectada, mostrando lo separado:"]
["10B-Y",null,null,null,"10B",null,null,"(i) por el período corriente;"]
["10B-Y",null,null,null,"10B",null,null,"(ii) por cada período anterior presentado; y"]
["10B-Y",null,null,null,"10B",null,null,"    (iii) en en agregado por los períodos anteriores a los presentados."]
["10B-Y",null,null,null,"10B",null,"Sección 10.14(d)","(d) una explicación de si es impracticable determinar las cantidades a ser reveladas en (c) arriba."]
["10B-Y","10BC1-G",null,null,null,null,"Sección 10.14","Los estados financieros de los períodos subsiguientes no necesitan repetir esas revelaciones."]
[null,null,null,null,null,null,null,"Revelación del efecto del cambio en estimado de contabilidad"]
[null,null,"10C",1,"10C","10C",null,"¿La entidad cambió cualquier estimado de contabilidad que tenga un efecto en los períodos corriente o futuro de presentación de reportes?","N/A"]
[null,null,null,null," ",null,null,"If Yes :"]
["10C-Y",null,null,null,"10C",null,"Sección 10.18","La entidad tiene que revelar la naturaleza de cualquier cambio en un estimado de contabilidad y el efecto del cambio en los activos, pasivos, ingresos y gastos del período corriente."]
["10C-Y",null,null,null,"10C",null,"Sección 10.18","Si para la entidad es practicable estimar el efecto del cambio en uno o más períodos futuros, la entidad tiene que revelar esos estimados."]
[null,null,null,null,null,null,null,"Revelación de errores de período anterior"]
[null,null,"10D",1,"10D","10D",null,"¿La entidad descubrió cualesquiera errores de período anterior?","N/A"]
[null,null,null,null," ",null,null,"If Yes :"]
["10D-G",null,null,null,null,null,null,"Notas:"]
["10D-G",null,null,null,null,null,"Sección 10.19","1) Errores de período anterior son omisiones de, y declaraciones equivocadas en, los estados financieros de la entidad por uno o más períodos anteriores que surgen de una falla en usar, o el mal uso de, información confiable que:"]
["10D-G",null,null,null,null,null,"Sección 10.19(a)","(a) estaba disponible cuando los estados financieros de esos períodos fueron autorizados para emisión, y"]
["10D-G",null,null,null,null,null,"Sección 10.19(b)","(b) razonablemente se podría esperar que se hubieran obtenido y tenido en cuenta en la preparación y presentación de esos estados financieros."]
["10D-G",null,null,null,null,null,"Sección 10.20","2) Tales errores incluyen los efectos de equivocaciones matemáticas, equivocaciones en la aplicación de las políticas de contabilidad, pasar por alto o interpretación equivocada de hechos, y fraude.\n"]
["10D-Y",null,"10DC1",2,"10D",null,null,"La entidad tiene que revelar lo siguiente acerca de los errores de período anterior:"]
["10D-Y",null,null,null,"10D",null,"Sección 10.23(a)","(a) la naturaleza del error de período anterior."]
["10D-Y",null,null,null,"10D",null,"Sección 10.23(b)","(b) por cada período anterior presentado, en la extensión en que sea practicable, la cantidad de la corrección por cada elemento de línea del estado presentado  afectado."]
["10D-Y",null,null,null,"10D",null,"Sección 10.23(c)","(c) en la extensión en que sea practicable, la cantidad de la corrección al comienzo del primer período presentado."]
["10D-Y",null,null,null,"10D",null,"Sección 10.23(d)","(d) una explicación si no es practicable determinar las cantidades a ser reveladas en (b) o (c) arriba."]
["10D-Y","10DC1-G",null,null,"10D",null,"Sección 10.23","Los estados financieros de períodos subsiguientes no necesitan repetir esas revelaciones."]

{"sheet":"IFS11P","index":12,"n_rows":66,"n_cols":11,"rows_kept":66,"cut":false,"hidden":false,"merged":[]}
[null,null,null,null,null,null,"Index",null,null,"PresentTQSummary","Yes"]
[null,null,null,null,null,null,"Sección 11","Instrumentos financieros básicos",null,null,"No"]
[null,null,null,null,null,"PA","Referencia","Requerimiento de presentación/revelación",null,null,"N/A"]
[null,null,null,null,null,null,null,"Esta Sección de la lista de verificación aborda los requerimientos de presentación y revelación  de la Sección 11. La Sección 11 Instrumentos financieros básicos y la Sección 12 Otros problemas relacionados con los instrumentos financieros, se refieren juntas al reconocimiento, des-reconocimiento, medición y revelación de los instrumentos financieros (activos financieros y pasivos financieros). La Sección 11 aplica a los instrumentos financieros básicos y es relevante para todas las entidades. La Sección 12 aplica a otros instrumentos y transacciones financieros más complejos. Si la entidad participa en solo en las transacciones básicas del instrumento financiero, entonces la Sección 12 no es aplicable. sin embargo, aún las entidades con solo Instrumentos financieros básicos tienen que considerar el alcance de la Sección 12 para asegurar que están exentas.",null,null,"Guidance"]
[null,null,null,null,null,null,null,"Para orientación adicional, seleccione Show en la siguiente columna","Hide",null,"Show"]
["-G",null,null,null,null,null,null,"Selección de la política de contabilidad\nLa NIIF para PYMES le permite a la entidad que reporta escoger aplicar ya sea:",null,null,"Hide"]
["-G",null,null,null,null,null,"Sección 11.2(a)","(a) las determinaciones tanto de la Sección 11: Instrumentos financieros básicos como de la Sección 12: Otros problemas relacionados con el instrumento financiero en pleno de la NIIF para PYMES, o"]
["-G",null,null,null,null,null,"Sección 11.2(b)","(b) las determinaciones de reconocimiento y medición de la Norma Internacional de Contabilidad 39: Instrumentos financieros: Reconocimiento y Medición y los requerimientos de revelación de la Sección 11: Instrumentos financieros básicos y de la Sección 12: Otros problemas relacionados con el instrumento financiero, de la NIIF para PYMES, para contabilizar todos sus instrumentos financieros. "]
["-G",null,null,null,null,null,"Sección 11.2","La escogencia que la entidad haga de (a) o (b) es una selección de política de contabilidad. "]
["-G",null,null,null,null,null,"Q&A 2012/03 parágrafo  2","La NIIF para PYMES hace referencia de manera específica a la Norma Internacional de Contabilidad 39: Instrumentos financieros: Reconocimiento y Medición. A las entidades de tamaño pequeño y mediano  no se les permite aplicar la Norma Internacional de Información Financiera 9: instrumentos financieros.\n"]
["-G",null,null,null,null,null,null,"La entidad que elige aplicar la Norma Internacional de Contabilidad 39: Instrumentos financieros: Reconocimiento y Medición  debe hacer uso de la lista de verificación NIIF en lugar de esta parte de la lista de verificación sobre presentación y revelación de la NIIF para PYMES."]
[null,null,null,null,"PA Group",null,"Referencia","Requerimiento de presentación/revelación","Yes / No / N/A","Comentarios"]
[null,null,null,null,null,null,null,"Instrumentos financieros básicos"]
[null,null,null,null,null,null,null,"Revelación de las políticas de contabilidad para los instrumentos financieros"]
[null,null,null,null,11,null,"Sección 11.40","De acuerdo con el parágrafo  8.5, la entidad tiene que revelar, en el resumen de las políticas de contabilidad importantes, la base (o bases) de medición usada(s) para los instrumentos financieros y las otras políticas de contabilidad usadas para los instrumentos financieros que sean relevantes para el entendimiento de los estados financieros.","N/A"]
[null,null,null,null,null,null,null,"Estado de posición financiera – categorías de activos financieros y Pasivos financieros"]
[null,null,11,1,11,null,"Sección 11.41","La entidad tiene que revelar los valores en libros de cada una de las siguientes categorías de activos financieros y de pasivos financieros a la fecha de presentación de reporte, en total, ya sea en el estado de posición financiera o en las notes:","Guidance"]
["11-G",null,null,null,null,null,"Sección 11.39","Nota: Las revelaciones que aparecen abajo hacen referencia a las revelaciones por los pasivos financieros medidos a valor razonable a través de utilidad o pérdida. Las entidades que solo tienen instrumentos financieros básicos (y por consiguiente no aplican la Sección 12) no tendrán pasivos financieros medidos a valor razonable a través de utilidad o pérdida y por lo tanto no necesitarán proporcionar tales revelaciones."]
[null,null,null,null,11,null,"Sección 11.41(a)","(a) activos financieros medidos a valor razonable a través de utilidad o pérdida.","N/A"]
[null,null,null,null,11,null,"Sección 11.41(b)","(b) activos financieros que sean instrumentos de deuda medidos a costo amortizado.","N/A"]
[null,null,null,null,11,null,"Sección 11.41(c)","(c) activos financieros que sean instrumentos de patrimonio medidos a costo menos deterioro.","N/A"]
[null,null,null,null,11,null,"Sección 11.41(d)","(d) pasivos financieros medidos a valor razonable a través de utilidad o pérdida.","N/A"]
[null,null,null,null,11,null,"Sección 11.41(e)","(e) pasivos financieros medidos a costo amortizado.","N/A"]
[null,null,null,null,11,null,"Sección 11.41(f)","(f) compromisos de préstamo medidos a costo menos deterioro.","N/A"]
[null,null,null,null,null,null,null,"Información acerca de los instrumentos financieros"]
[null,null,null,null,11,null,"Sección 11.42","La entidad tiene que revelar información que les permita a los usuarios de sus estados financieros evaluar la importancia de los instrumentos financieros para su posición financiera y su desempeño financiero. Por ejemplo, para la deuda de largo plazo tal información normalmente incluiría los términos y condiciones del instrumento de deuda (tales como tasa de interés, maduración, programación de pagos, y restricciones que el instrumento de deuda la imponga a la entidad).","N/A"]
[null,null,null,null,null,null,null,"Valor razonable "]
[null,null,null,null,11,null,"Sección 11.43","Para todos los activos financieros y pasivos financieros medidos a valor razonable, la entidad tiene que revelar las bases para determinar el valor razonable, e.g. precios de mercado cotizados en un mercado activo o la técnica de valuación. Cuando se use una técnica de valuación, la entidad tiene que revelar los supuestos aplicados en la determinación del  valor razonable por cada clase de activos financieros o Pasivos financieros. Por ejemplo, Yes es aplicable, la entidad revela información acerca de los supuestos relacionados con las tasas de pago anticipado, las tasas de las pérdidas de crédito estimadas, y las tasas de interés o las tasas de descuento.","N/A"]
[null,null,null,null,11,null,"Sección 11.44","Si una medida confiable del valor razonable ya no está dispobible para un instrumento de patrimonio medido a valor razonable a través de utilidad o pérdida, la entidad tiene que revelar ese hecho.","N/A"]
[null,null,null,null,null,null,null,"Elementos de ingresos, gastos, ganancias o pérdidas"]
[null,null,null,null,11,null,null,"La entidad tiene que revelar los siguientes elementos de ingresos, gastos, ganancias o pérdidas:"]
[null,null,null,null,11,null,"Sección 11.48(a)","(a) ingresos, gastos, ganancias o pérdidas, incluyendo los cambios en el valor razonable, reconocidos sobre:"]
[null,null,null,null,11,null,null,"(i) activos financieros medidos a valor razonable a través de utilidad o pérdida.","N/A"]
[null,null,null,null,11,null,null,"(ii) pasivos financieros medidos a valor razonable a través de utilidad o pérdida.","N/A"]
[null,null,null,null,11,null,null,"(iii) activos financieros medidos a costo amortizado.","N/A"]
[null,null,null,null,11,null,null,"(iv) pasivos financieros medidos a costo amortizado.","N/A"]
[null,null,null,null,11,null,"Sección 11.48(b)","(b)total de ingresos por intereses y total de gastos por intereses (calculado usando el método del interés efectivo) para los activos financieros o Pasivos financieros que no sean medidos a valor razonable a través de utilidad o pérdida.","N/A"]
[null,null,null,null,11,null,"Sección 11.48(c)","(c) la cantidad de cualquier pérdida por deterioro por cada clase de activo financiero.","N/A"]
[null,null,null,null,null,null,null,"Des-reconocimiento"]
[null,null,"11A",1,"11A","11A",null,"¿Durante el período de presentación de reporte la entidad transfirió activos financieros a otra parte en una transacción que no califica para des-reconocimiento?","N/A"]
[null,null,null,null," ",null,null,"If Yes :"]
["11A-Y",null,"11AC1",2,"11A"," ",null,"Si la entidad le ha transferido activos financieros a otra parte (en una transacción que no califica para des-reconocimiento), la entidad tiene que revelar lo siguiente por cada clase de tales activos financieros:"]
["11A-Y",null,null,null,"11A",null,"Sección 11.45(a)","(a) la naturaleza de los activos."]
["11A-Y",null,null,null,"11A",null,"Sección 11.45(b)","(b) la naturaleza de los riesgos y recompensas de la propiedad a los cuales la entidad continúa expuesta."]
["11A-Y",null,null,null,"11A",null,"Sección 11.45(c)","(c) los valores en libros de los activos y de cualesquiera pasivos asociados que la entidad continúe reconociendo."]
["11A-Y","11AC1-G",null,null,null,null,null,"Nota:"]
["11A-Y","11AC1-G",null,null,null,null,null,"La entidad tiene que des-reconocer un activo financiero solo cuando:"]
["11A-Y","11AC1-G",null,null,null,null,"Sección 11.33(a)","(a) los derechos contractuales a los flujos de efectivo provenientes del activo financiero expiren o sean liquidados, o "]
["11A-Y","11AC1-G",null,null,null,null,"Sección 11.33(b)","(b) la entidad transfiera a otra parte sustancialmente todos los riesgos y recompensas de la propiedad del activo financiero, o"]
["11A-Y","11AC1-G",null,null,null,null,"Sección 11.33(c)","(c) la entidad, a pesar de haber retenido algunos riesgos y recompensas importantes de la propiedad, ha transferido el control del activo a otra parte y la otra parte tiene la capacidad práctica para vender el activo en su totalidad a un tercero no relacionado y puede ejercer esa capacidad de manera unilateral y sin necesitar imponer restricciones adicionales a la transferencia. En este caso, la entidad tiene que:"]
["11A-Y","11AC1-G",null,null,null,null,null,"(i) des-reconocer el activo, y"]
["11A-Y","11AC1-G",null,null,null,null,null,"(ii) reconocer por separado cualesquiera derechos y obligaciones retenidos o creados en la transferencia."]
["11A-Y","11AC1-G",null,null,null,null,null,"El valor en libros del activo transferido tiene qe ser asignado entre los derechos u obligaciones retenidos y los transferidos, haciéndolo con base en su valor razonable relativo a la fecha de la transferencia. Los derechos y obligaciones recientemente creados tienen que ser medidos a su valor razonable a esa fecha. Cualquier diferencia entre la consideración recibida y las cantidades reconocidas y des-reconocidas de acuerdo con este parágrafo tiene que ser reconocida en  utilidad o pérdida en el período de la transferencia."]
[null,null,null,null,null,null,null,"Colateral"]
[null,null,"11B",1,"11B","11B",null,"¿Durante el período de presentación de reporte la entidad comprometió activos financieros como colateral  por pasivos o pasivos contingentes? ","N/A"]
[null,null,null,null," ",null,null,"If Yes :"]
["11B-Y",null,null,null,"11B",null,null,"Cuando la entidad haya pignorado activos financieros como colateral por pasivos o pasivos contingentes, tiene que revelar lo siguiente:"]
["11B-Y",null,null,null,"11B",null,"Sección 11.46(a)","(a) el valor en libros de los activos financieros pignorados  como colateral."]
["11B-Y",null,null,null,"11B",null,"Sección 11.46(b)","(b) los términos y condiciones relacionados con su pignoración."]
[null,null,null,null,null,null,null,"Impagos e incumplimientos en préstamos por pagar"]
[null,null,"11C",1,"11C","11C",null,"¿La entidad experimentó, con relación a los préstamos por pagar reconocidos a la fecha de presentación de reporte, un incumplimiento de los términos o un impago de principal, intereses, fondo de amortización, o términos de redención que no haya sido remediado para la fecha de presentación de reporte?","N/A"]
[null,null,null,null," ",null,null,"If Yes :"]
["11C-Y",null,null,null,"11C",null,null,"Para los préstamos por pagar reconocidos a la fecha de presentación de reporte para los cuales haya un incumplimiento de los términos o un impago del principal, intereses,  fondo de amortización, o términos de redención que no hayan sido remediados para la fecha de presentación de reporte, la entidad tiene que revelar lo siguiente:"]
["11C-Y",null,null,null,"11C",null,"Sección 11.47(a)","(a) detalles de tal incumplimiento o impago."]
["11C-Y",null,null,null,"11C",null,"Sección 11.47(b)","(b) el valor en libros de los préstamos por pagar relacionados a la fecha de presentación de reporte."]
["11C-Y",null,null,null,"11C",null,"Sección 11.47(c)","(c) si el incumplimiento o el impago fue solucionado, o si los términos de los préstamos por pagar fueron renegociados, antes que los estados financieros fueran autorizados para emisión."]

{"sheet":"IFS12P","index":13,"n_rows":37,"n_cols":11,"rows_kept":37,"cut":false,"hidden":false,"merged":[]}
["p/c","p/c","parent","level",null,null,"Index",null,null,"PresentTQSummary","Yes"]
[null,null,null,null,null,null,"Sección 12","Otros problemas relacionados con los instrumentos financieros",null,null,"No"]
[null,null,null,null,null,"PA","Referencia","Requerimiento de presentación/revelación",null,null,"N/A"]
[null,null,null,null,null,null,null,"Esta Sección de la lista de verificación aborda los requerimientos de presentación y revelación  de la Sección 12. La Sección 11 Instrumentos financieros básicos y la Sección 12 Otros problemas relacionados con los instrumentos financieros tratan en conjunto el reconocimiento, des-reconocimiento, medición y revelación de los instrumentos financieros (activos financieros y Pasivos financieros). La Sección 11 aplica a los instrumentos financieros básicos y es relevante para todas las entidades. La Sección 12 aplica a otros instrumentos y transacciones financieros más complejos. Yes la entidad participa en solo transacciones báYescas del instrumento financiero entonces la Sección 12 no es aplicable. sin embargo, aún las entidades con solo instrumentos financieros básicos tienen que considerar el alcance de la Sección 12 para asegurar que estén exentas.",null,null,"Guidance"]
[null,null,null,null,null,null,null,"Para orientación adicional, seleccione Show en la siguiente columna","Hide",null,"Show"]
["-G",null,null,null,null,null,null,"Selección de política de contabilidad\nLa NIIF para PYMES le permite a la entidad que reporta escoger aplicar ya sea:",null,null,"Hide"]
["-G",null,null,null,null,null,"Sección 12.2(a)","(a) las determinaciones tanto de la Sección 11: Instrumentos financieros básicos como de la Sección 12: Otros problemas relacionados con los instrumentos financieros, en pleno, de la NIIF para PYMES, o"]
["-G",null,null,null,null,null,"Sección 12.2(b)","(b) las determinaciones sobre reconocimiento y medición d ela Norma Internacional de Contabilidad: Instrumentos financieros: Reconocimiento y Medición y los requerimientos de revelación de la  Sección 11: Instrumentos financieros básicos y de la Sección 12: Otros problemas relacionados con los instrumentos financieros, de la NIIF para PYMES, para contabilizar todos sus instrumentos financieros. "]
["-G",null,null,null,null,null,"Sección 12.2","La escogencia que la entidad haga de (a) o (b) es una selección de política de contabilidad. "]
["-G",null,null,null,null,null,"Q&A 2012/03 parágrafo  2","La NIIF para PYMES se refuere de manera específica a la Norma Internacional de Contabilidad 39: Instrumentos financieros: Reconocimiento y Medición. A las  entidades de tamaño pequeño y mediano no se les permite aplicar la  Norma Internacional de Información Financiera 9: Instrumentos financieros.\n"]
["-G",null,null,null,null,null,null,"La entidad que elige aplicar la Norma Internacional de Contabilidad 39: Instrumentos financieros: Reconocimiento y Medición debe hacer uso de la lista de verificación de las NIIF en lugar de esta parte de la lista de verificación sobre la presentación y revelación  de la NIIF para PYMES."]
[null,null,null,null,"PA Group",null,"Referencia","Requerimiento de presentación/revelación","Yes / No / N/A","Comentarios"]
[null,null,null,null,null,null,null,"Otros problemas relacionados con los instrumentos financieros"]
[null,null,null,null,12,null,"Sección 12.26","La entidad que aplique esta Sección tiene que hacer todas las revelaciones requeridas en la Sección 11 incorporando en esas revelaciones los instrumentos financieros que estén dentro del alcance de esta Sección  así como también los que estén dentro del alcance de la Sección 11. Además, si la entidad usa la contabilidad de cobertura, tiene que hacer las revelaciones adicionales (vea abajo).","No"]
[null,null,null,null,null,null,null,"Revelaciones sobre la contabilidad de cobertura"]
[null,null,"12A",1,"12A","12A",null,"¿Durante el período de presentación de reporte la entidad aplicó la contabilidad de cobertura?","N/A"]
[null,null,null,null," ",null,null,"If Yes :"]
["12A-Y",null,"12AC1",2,"12A"," ",null,"La entidad tiene que revelar lo siguiente por separado para las coberturas de cada uno de los cuatro tipos de riesgos que se describen en el parágrafo  12.17:"]
["12A-Y",null,null,null,"12A",null,"Sección 12.27(a)","(a) una descripción de la cobertura."]
["12A-Y",null,null,null,"12A",null,"Sección 12.27(b)","(b) una descripción de los instrumentos financieros designados como instrumentos de cobertura y su  valor razonable a la fecha de presentación de reporte."]
["12A-Y",null,null,null,"12A",null,"Sección 12.27(c)","(c) la naturaleza de los riesgos que se estén cubriendo, incluyendo una descripción del elemento cubierto."]
["12A-Y","12AC1-G",null,null,null,null,null,"Esta NIIF permite la contabilidad de cobertura solo para los siguientes riesgos:"]
["12A-Y","12AC1-G",null,null,null,null,"Sección 12.17(a)","(a) riesgo de tasa de interés de un instrumento de deuda medido a costo amortizado."]
["12A-Y","12AC1-G",null,null,null,null,"Sección 12.17(b)","(b) riesgo de cambio o riesgo de tasa de interés en un compromiso en firme o en una transacción proyectada altamente probable."]
["12A-Y","12AC1-G",null,null,null,null,"Sección 12.17(c)","(c) riesgo de precio de una materia prima básica que tiene o en un compromiso en firme o en una transacción proyectada altamente probable para comprar o vender la materia prima básica."]
["12A-Y","12AC1-G",null,null,null,null,"Sección 12.17(d)","(d) riesgo de cambio en la inversión neta en una operación en el extranjero."]
["12A-Y",null,null,null,null,null,null,"Riesgo cubierto - Riesgo de tasa de interés fija o riesgo de precio de materia prima básica fija "]
["12A-Y",null,null,null,"12A",null,null,"Si la entidad usa la contabilidad de cobertura para la cobertura del riesgo de tasa de interés fija o del riesgo de precio de materia prima básica de una materia prima básica tenida tiene que revelar lo siguiente:"]
["12A-Y",null,null,null,"12A",null,"Sección 12.28(a)","(a) la cantidad del cambio en el valor razonable del instrumento de cobertura reconocida en utilidad o pérdida."]
["12A-Y",null,null,null,"12A",null,"Sección 12.28(b)","(b) la cantidad del cambio en el valor razonable del elemento cubierto reconocida en utilidad o pérdida."]
["12A-Y",null,null,null,null,null,null,"Riesgo cubierto - Riesgo de tasa de interés variable, riesgo de cambio, riesgo de precio de materia prima básica variable"]
["12A-Y",null,null,null,"12A",null,null,"Si la entidad usa contabilidad de coberturaIf para la cobertura del riesgo de tasa de interés variable, el riesgo de cambio, el riesgo de precio de materia prima básica en un compromiso en firme o en una transacción proyectada altamente probable, o en la inversión neta en una operación en el extranjero tiene que revelar lo siguiente:"]
["12A-Y",null,null,null,"12A",null,"Sección 12.29(a)","(a) los períodos en los que los flujos de efectivo se espera ocurran y cuándo se espera que afecten la utilidad o pérdida."]
["12A-Y",null,null,null,"12A",null,"Sección 12.29(b)","(b) una descripción de cualquier transacción proyectada para la cual la contabilidad de cobertura previamente haya sido usada, pero que ya no se espera que ocurra."]
["12A-Y",null,null,null,"12A",null,"Sección 12.29(c)","(c) la cantidad del cambio en el valor razonable del instrumento de cobertura que fue reconocida en otros ingresos comprensivos durante el período."]
["12A-Y",null,null,null,"12A",null,"Sección 12.29(d)","(d) la cantidad que fue reclasificada desde otros ingresos comprensivos hacia utilidad o pérdida del período."]
["12A-Y",null,null,null,"12A",null,"Sección 12.29(e)","(e) la cantidad de cualquier exceso del valor razonable del instrumento de cobertura sobre el cambio en el valor razonable  de los flujos de efectivo esperados que fue reconocida en utilidad o pérdida."]

{"sheet":"IFS13P","index":14,"n_rows":15,"n_cols":10,"rows_kept":15,"cut":false,"hidden":false,"merged":[]}
["p/c","parent","level",null,null,"Index",null,null,"PresentTQSummary","Yes"]
[null,null,null,null,null,"Sección 13","Inventarios",null,null,"No"]
[null,null,null,null,"PA","Referencia","Requerimiento de presentación/revelación",null,null,"N/A"]
[null,null,null,null,null,null,"Esta Sección de la lista de verificación aborda los requerimientos de presentación y revelación  de la Sección 13, que prescribe el tratamiento contable para los inventarios. Los principales problemas son: los costos que pueden ser capitalizados como activo, el reconocimiento subsiguiente como gasto, incluyendo el castigo al including castigo al valor realizable neto, y la determinación de las fórmulas del costo a ser usadas en  la asignación de los costos a los inventarios.",null,null,"Guidance"]
[null,null,null,null,null,null,"Para orientación adicional, seleccione Show en la siguiente columna","Hide",null,"Show"]
["-G",null,null,null,null,null,"Requerimientos de presentación/revelación, nuevos o enmendados, efectivos por primera vez\n\nNinguno\n",null,null,"Hide"]
[null,null,null,"PA Group","PA","Referencia","Requerimiento de presentación/revelación","Yes / No / N/A","Comentarios"]
[null,"13A",1,"13A","13A",null,"¿La entidad tuvo inventarios?","N/A"]
[null,null,null," ",null,null,"If Yes :"]
["13A-Y",null,null,"13A",null,null,"La entidad tiene que revelar lo siguiente:"]
["13A-Y",null,null,null,null,"Sección 13.22(a)","(a) las  políticas de contabilidad adoptadas en la medición de los inventarios, incluyendo la fórmula del costo usada."]
["13A-Y",null,null,null,null,"Sección 13.22(b)","(b) el valor en libros de los inventarios y el valor en libros en las clasificaciones apropiadas para la entidad."]
["13A-Y",null,null,null,null,"Sección 13.22(c)","(c) la cantidad de los inventarios reconocida como gasto durante el período."]
["13A-Y",null,null,null,null,"Sección 13.22(d)","(d) las pérdidas por deterioro reconocidas o reversadas en utilidad o pérdida de acuerdo con la Sección 27."]
["13A-Y",null,null,null,null,"Sección 13.22(e)","(e) el total del valor en libros de los inventarios pignorados como garantía por pasivos."]

{"sheet":"IFS14P","index":15,"n_rows":22,"n_cols":10,"rows_kept":22,"cut":false,"hidden":false,"merged":[]}
["p/c","parent","level",null,null,"Index",null,null,"PresentTQSummary","Yes"]
[null,null,null,null,null,"Sección 14","Inversiones en asociadas",null,null,"No"]
[null,null,null,null,"PA","Referencia","Requerimiento de presentación/revelación",null,null,"N/A"]
[null,null,null,null,null,null,"Esta Sección de la lista de verificación aborda los requerimientos de presentación y revelación de la Sección 14, que prescribe la contabilidad para las inversiones en asociadas: \n1) En los estados financieros consolidados de la matriz  (elparágrafo  9.26 establece los requerimientos para la contabilidad de las asociadas en los estados financieros separados (independientes) de la matriz); y\n2) En los estados financieros del inversionista que no es la matriz pero que tiene una inversión en una o más asociadas.\nLos problemas principales son identificar si existe influencia importante y la aplicación del modelo del costo, el método del patrimonio o el modelo del valor razonable.\n",null,null,"Guidance"]
[null,null,null,null,null,null,"Para orientación adicional, seleccione Show en la siguiente columna","Hide",null,"Show"]
["-G",null,null,null,null,null,"Requerimientos de presentación/revelación, nuevos o enmendados, efectivos por primera vez\n\nNinguno\n",null,null,"Hide"]
[null,null,null,"PA Group","PA","Referencia","Requerimiento de presentación/revelación","Yes / No / N/A","Comentarios"]
[null,"14A",1,"14A","14A",null,"¿La entidad tuvo cualesquiera inversiones en asociadas?","N/A"]
[null,null,null," ",null,null,"If Yes :"]
["14A-Y",null,null,null,null,null,"Presentación del estado financiero"]
["14A-Y",null,null,"14A",null,"Sección 14.11","El inversionista tiene que clasificar como activos no-corrientes las inversiones en asociadas."]
["14A-Y",null,null,null,null,null,"Revelación"]
["14A-Y",null,null,"14A",null,null,"El inversionista en una asociada tiene que revelar lo siguiente:"]
["14A-Y",null,null,"14A",null,"Sección 14.12(a)","(a) su política de contabilidad para las inversiones en asociadas."]
["14A-Y",null,null,"14A",null,"Sección 14.12(b)","(b) el valor en libros de las inversiones en asociadas."]
["14A-Y",null,null,"14A",null,"Sección 14.12(c)","(c) el valor razonable  de las inversiones en asociadas contabilizadas usando el método del patrimonio para las cuales se publiquen cotizaciones del precio."]
["14A-Y",null,null,null,null,null," Inversiones en asociadas contabilizadas según el modelo del costo"]
["14A-Y",null,null,"14A",null,"Sección 14.13","Para las inversiones en asociadas contabilizadas según el modelo del costo, el inversionista tiene que revelar la cantidad de los dividendos y las otras distribuciones reconocidos como ingresos."]
["14A-Y",null,null,null,null,null," Inversiones en asociadas contabilizadas según el método del patrimonio"]
["14A-Y",null,null,"14A",null,"Sección 14.14","For Inversiones en asociadas contabilizadas según el método del patrimonio, el inversionista tiene que revelar por separado su participación de la utilidad o pérdida de tales asociadas y su participación de cualesquiera operaciones descontinuadas de tales asociadas."]
["14A-Y",null,null,null,null,null," Inversiones en asociadas contabilizadas según el modelo del valor razonable"]
["14A-Y",null,null,"14A",null,"Sección 14.15","Para las inversiones en asociadas contabilizadas según el modelo del valor razonable, el inversionista tiene que hacer las revelaciones requeridas por los parágrafos 11.41–11.44."]

{"sheet":"IFS15P","index":16,"n_rows":20,"n_cols":10,"rows_kept":20,"cut":false,"hidden":false,"merged":[[16,7,17,7]]}
["p/c","parent","level",null,null,"Index",null,null,"PresentTQSummary","Yes"]
[null,null,null,null,null,"Sección 15","Inversiones en negocios conjuntos",null,null,"No"]
[null,null,null,null,"PA","Referencia","Requerimiento de presentación/revelación",null,null,"N/A"]
[null,null,null,null,null,null,"Esta Sección de la lista de verificación aborda los requerimientos de presentación y revelación  de la Sección 15, que prescribe la contabilidad para las inversiones en negocios conjuntos: \n1) En los estados financieros consolidados de la matriz  (el parágrafo  9.26 establece los requerimientos para  interés del participante en un negocio conjunto en los estados financieros separados de la matriz); y\n2) En los estados financieros de un inversionista que no es la matriz pero que tiene un interés de participación en uno o más negocios conjuntos.\nLos problemas principales son identificar si existe control conjunto y la aplicación de la consolidación proporcional para los activos u operaciones controlados conjuntamente y la aplicación del modelo del costo, el método del patrimonio o el modelo del valor razonable a las entidades controladas conjuntamente.",null,null,"Guidance"]
[null,null,null,null,null,null,"Para orientación adicional, seleccione Show en la siguiente columna","Hide",null,"Show"]
["-G",null,null,null,null,null,"Requerimientos de presentación/revelación, nuevos o enmendados, efectivos por primera vez\n\nNinguno\n",null,null,"Hide"]
[null,null,null,"PA Group","PA","Referencia","Requerimiento de presentación/revelación","Yes / No / N/A","Comentarios"]
[null,"15A",1,"15A","15A",null,"¿La entidad tuvo un interés de participación en un negocio conjunto que le proporcionó al participante control conjunto sobre cualquier operación, activo o entidad, controlado conjuntamente?","N/A"]
[null,null,null," ",null,null,"If Yes :"]
["15A-Y",null,null,null,null,null,"Revelación"]
["15A-Y",null,null,"15A",null,null,"El inversionista en un negocio conjunto tiene que revelar:"]
["15A-Y",null,null,"15A",null,"Sección 15.19(a)","(a)  la política de contabilidad que usa para reconocer sus intereses en las entidades controladas conjuntamente."]
["15A-Y",null,null,"15A",null,"Sección 15.19(b)","(b) el valor en libros de las inversiones en entidades controladas conjuntamente."]
["15A-Y",null,null,"15A",null,"Sección 15.19(c)","(c) el valor razonable  de las inversiones en entidades controladas conjuntamente contabilizadas usando el método del patrimonio para las cuales haya cotizaciones de precios publicadas."]
["15A-Y",null,null,"15A",null,"Sección 15.19(d)","(d) la cantidad agregada de sus compromisos relacionados con negocios conjuntos,  incluyendo su participación en los compromisos de capital que hayan sido incurridos conjuntamente con otros participantes, así como también su participación en los compromisos de capital de los negocios conjuntos mismos."]
["15A-Y",null,null,null,null,null," Entidades controladas conjuntamente contabilizadas según el método del patrimonio"]
["15A-Y",null,null,"15A",null,"Sección 14.14 ","Para las  entidades controladas conjuntamente contabilizadas de acuerdo con el "]
["15A-Y",null,null,null,null,"Sección 15.20","método del patrimonio, el participante tiene que revelar por separado su participación de la utilidad o pérdida de tales entidades controladas conjuntamente y su participación de cualesquiera operaciones descontinuadas de tales entidades controladas conjuntamente."]
["15A-Y",null,null,null,null,null," Inversiones en asociadas contabilizadas según el modelo del valor razonable"]
["15A-Y",null,null,"15A",null,"Sección 15.21","Para las entidades controladas conjuntamente contabilizadas de acuerdo con el modelo del valor razonable, el participante tiene que hacer las revelaciones requeridas por los parágrafos 11.41–11.44."]

{"sheet":"IFS16P","index":17,"n_rows":29,"n_cols":11,"rows_kept":29,"cut":false,"hidden":false,"merged":[]}
["p/c","p/c","parent","level",null,null,"Index",null,null,"PresentTQSummary","Yes"]
[null,null,null,null,null,null,"Sección 16","Propiedad para inversión",null,null,"No"]
[null,null,null,null,null,"PA","Referencia","Requerimiento de presentación/revelación",null,null,"N/A"]
[null,null,null,null,null,null,null,"Esta Sección de la lista de verificación aborda los requerimientos de presentación y revelación  de la Sección 16, que prescribe el tratamiento contable para  el reconocimiento y la medición de la sinversiones en terreno o edificaciones que satisfacen la definición de propiedad para inversión y de algunos intereses de propiedad tenidos por un arrendatario según un arrendamiento operacional que sean tratados como propiedad para inversión y los requerimientos relacionados de revelación. La propiedad para inversión cuyo valor razonable puede ser medido confiablemente sin costo o esfuerzo indebido sobre una base continua se contabiliza a valor razonable a través de utilidad o pérdida.  Toda la otra propiedad para inversión se contabiliza como propiedad, planta y equipo usando el modelo de costo-depreciación-deterioro contenido en la Sección 17 Propiedad, planta y equipo y permanece dentro del alcance de la Sección 17 a menos que esté disponible una medida confiable del valor razonable y se espere que ese valor razonable será medible confiablemente sobre una base continua. \n\n",null,null,"Guidance"]
[null,null,null,null,null,null,null,"Para orientación adicional, seleccione Show en la siguiente columna","Hide",null,"Show"]
["-G",null,null,null,null,null,"Sección 16.11","Cuando propiedad para inversión es tenida bajo arrendamientos, los requerimientos de revelación contenidos en esta Sección aplican además de los de la  Sección 20 Arrendamientos (vea la Sección relevante de esta  lista de verificación). De acuerdo con la Sección 20, el propietario de una propiedad para inversión proporciona las revelaciones de los arrendadores acerca de los arrendamientos en los cuales ha participado. La entidad que tiene una propiedad para inversión según un arrendamiento financiero o un arrendamiento operacional proporciona las revelaciones de los arrendatarios para los arrendamientos financieros y las revelaciones de los arrendadores para cualesquiera arrendamientos operacionales en los cuales haya participado.",null,null,"Hide"]
["-G",null,null,null,null,null,null,"Requerimientos de presentación/revelación, nuevos o enmendados, efectivos por primera vez\n\nNinguno\n"]
[null,null,null,null,"PA Group","PA","Referencia","Requerimiento de presentación/revelación","Yes / No / N/A","Comentarios"]
[null,null,"16A",1,"16A","16A",null,"¿La entidad tiene cualquier propiedad para inversión?","N/A"]
[null,null,null,null," ",null,null,"If Yes :"]
["16A-Y",null,null,null,null,null,null," Revelaciones"]
["16A-Y",null,null,null,"16A",null,null,"La entidad tiene que revelar lo siguiente para toda la propiedad para inversión contabilizada a  valor razonable a través de utilidad o pérdida:"]
["16A-Y",null,null,null,"16A",null,"Sección 16.10(a)","(a) los métodos y los supuestos importantes aplicados en la determinación del valor razonable de la propiedad para inversión."]
["16A-Y",null,null,null,"16A",null,"Sección 16.10(b)","(b) la extensión en la cual el valor razonable de la propiedad para inversión (tal y como se midió o reveló en los estados financieros) se basa en una valuación realizada por un valuador independiente que tiene una calificación profesional reconocida y relevante y tiene experiencia reciente en la localización y clase de  propiedad para inversión que está siendo valuada. Si no ha habido tal valuación, se tiene que revelar ese hecho."]
["16A-Y",null,null,null,"16A",null,"Sección 16.10(c)","(c) la existencia y las cantidades de las restricciones a la realizabilidad de la propiedad para inversión o a la remisión de los ingresos y producidos de la disposición."]
["16A-Y",null,null,null,"16A",null,"Sección 16.10(d)","(d) las obligaciones contractuales para comprar, construir o desarrollar propiedad para inversión o o para reparaciones, mantenimiento o mejoras."]
["16A-Y",null,null,null,"16A",null,"Sección 16.10(e)","(e) la conciliación entre los valores en libros de la propiedad para inversión al comienzo y al final del período, mostrando por separado:"]
["16A-Y",null,null,null,"16A",null,null,"(i) adiciones, revelando por separado las adiciones que resulten de adquisiciones mediante combinaciones de negocios."]
["16A-Y",null,null,null,"16A",null,null,"(ii) ganancias o pérdidas netas provenientes de ajustes al valor razonable."]
["16A-Y",null,null,null,"16A",null,null,"(iii) transferencias a propiedad, planta y equipo cuando la medida confiable del valor razonable ya no está disponible sin costo o esfuerzo indebido."]
["16A-Y",null,null,null,"16A",null,null,"(iv) transferencias a y6 desde inventarios y propiedad ocupada por el propietario."]
["16A-Y",null,null,null,"16A",null,null,"(v) otros cambios."]
["16A-Y",null,null,null,"16A",null,"Sección 16.10","Esta conciliación no necesita ser presentada para los períodos anteriores."]
["16A-Y",null,null,null,null,null,null,"Propiedad para inversión cuyo valor razonable no podría ser medido confiablemente sin costo o esfuerzo indebido sobre una base continua "]
["16A-Y",null,"16AC1",2,"16A-1",null,null,"¿La entidad tuvo cualquier propiedad para inversión cuyo valor razonable no podría ser medido confiablemente sin costo o esfuerzo indebido sobre una base continua?"]
["16A-Y","16AC1-G",null,null,null,null,"Sección 16.8","SI una medida confiable del valor razonable ya no está disponible sin costo o esfuerzo indebido para un elemento de propiedad para inversión medido usando el modelo del valor razonable,  la entidad después de eso tiene que contabilizar ese elemento como propiedad, planta y equipo de acuerdo con la Sección 17 hasta tanto esté disponible una medida confiable del valor razonable.  El valor en libros de la propiedad para inversión en esa fecha se convierte en su costo según la Sección 17. El parágrafo  16.10(e)(iii) requiere la revelación de este cambio. Es un cambio de las circunstancias y no un cambio de la política de contabilidad."]
["16A-Y","16AC1-G",null,null,null,null,"Q&A 2012/01 parágrafo  2","Nota: ‘Costo o esfuerzo indebido’ de manera deliberada no es definido en la NIIF para PYMES, porque dependería de las circunstancias específicas de la PYME y del juicio profesional de la administración en la valoración de los costos y beneficios. Si la cantidad del costo o esfuerzo es excesiva (indebida) necesariamente requiere la consideración de cómo las decisiones económicas de los usuarios de los estados financieros podrían ser afectadas por la disponibilidad de la información. La aplicación de un requerimiento resultaría en ‘costo o esfuerzo indebido’ a causa ya sea de costo excesivo (e.g., si los honorarios de los valuadores son excesivos) o excesivo trabajo de los empleados en comparación con los beneficios que los usuarios de los estados financieros de la PYME recibirían a partir de tener la información. La valoración de si un requerimiento resultará en ‘costo o esfuerzo indebido’ se debe basar en la información disponible en el momento de la transacción o evento acerca de los costos y beneficios del requerimiento. En cualquier medición subsiguiente, el ‘costo o esfuerzo indebido’ se debe basar en la información disponible a la fecha de la medición subsiguiente (e.g., la fecha de presentación de reporte)."]
[null,null,null,null," ",null,null,"If Yes :"]
["16A-Y","16AC1-Y",null,null,"16A-1",null,"Sección 16.1","¿Fue esta propiedad para inversión contabilizada como propiedad, planta y equipo usando el modelo de costo-depreciación-deterioro contenido en la Sección 17 Propiedad, planta y equipo  y esa propiedad para inversión permaneció dentro del alcance de la Sección 17 a menos que esté disponible la medida confiable del valor razonable y se espere que ese valor razonable será medible de manera confiable sobre una base continua para la propiedad para inversión?"]

{"sheet":"IFS17P","index":18,"n_rows":26,"n_cols":10,"rows_kept":26,"cut":false,"hidden":false,"merged":[]}
["p/c","parent","level",null,null,"Index",null,null,"PresentTQSummary","Yes"]
[null,null,null,null,null,"Sección 17","Propiedad, planta y equipo ",null,null,"No"]
[null,null,null,null,"PA","Referencia","Requerimiento de presentación/revelación",null,null,"N/A"]
[null,null,null,null,null,null,"Esta Sección de la lista de verificación aborda los requerimientos de presentación y revelación  de la Sección 17, que prescribe el tratamiento contable para  Propiedad, planta y equipo y para Propiedad para inversión cuyo valor razonable no puede ser medido confiablemente sin costo o esfuerzo indebido. Los problemas principales en la contabilidad de la Propiedad, planta y equipo son: el reconocimiento de los activos, la determinación de sus valores en libros y el recoocimiento de los cargos por depreciación y las pérdidas por deterioro.",null,null,"Guidance"]
[null,null,null,null,null,null,"Para orientación adicional, seleccione Show en la siguiente columna","Hide",null,"Show"]
["-G",null,null,null,null,null,"Requerimientos de presentación/revelación, nuevos o enmendados, efectivos por primera vez\n\nNinguno\n",null,null,"Hide"]
[null,null,null,"PA Group","PA","Referencia","Requerimiento de presentación/revelación","Yes / No / N/A","Comentarios"]
[null,"17A",1,"17A","17A",null,"¿La entidad tuvo o adquirió cualquier propiedad, planta o equipo?","N/A"]
[null,null,null," ",null,null,"If Yes :"]
["17A-Y",null,null,"17A",null,null,"La entidad tiene que revelar lo siguiente por cada clase de Propiedad, planta y equipo de acuerdo con las clasificaciones que fueron consideradas apropiadas para la entidad:"]
["17A-Y",null,null,"17A",null,"Sección 17.31(a)","(a) las bases de medición usadas para determinar el valor en libros bruto."]
["17A-Y",null,null,"17A",null,"Sección 17.31(b)","(b) los métodos de depreciación usados."]
["17A-Y",null,null,"17A",null,"Sección 17.31(c)","(c) las vidas útiles o las tasas de depreciación usadas."]
["17A-Y",null,null,"17A",null,"Sección 17.31(d)","(d) el valor en libros bruto y la depreciación acumulada (agregada con las pérdidas por deterioro acumuladas) al comienzo y al final del período de presentación de reporte."]
["17A-Y",null,null,"17A",null,"Sección 17.31(e)","(e) la conciliación del valor en libros al comienzo y al final del período de presentación de reporte mostrando por separado:"]
["17A-Y",null,null,"17A",null,null,"(i) adiciones."]
["17A-Y",null,null,"17A",null,null,"(ii) disposiciones."]
["17A-Y",null,null,"17A",null,null,"(iii) adquisiciones mediante combinaciones de negocios."]
["17A-Y",null,null,"17A",null,null,"(iv) transferencias a propiedad para inversión si se vuelve disponible la medida confiable de valor razonable."]
["17A-Y",null,null,"17A",null,null,"(v) pérdidas por deterioro reconocidas o reversadas en utilidad o pérdida de acuerdo con la Sección 27."]
["17A-Y",null,null,"17A",null,null,"(vi) depreciación."]
["17A-Y",null,null,"17A",null,null,"(vii) otros cambios."]
["17A-Y",null,null,"17A",null,null,"Esta conciliación no necesita ser presentada para períodos anteriores."]
["17A-Y",null,null,"17A",null,null,"La entidad también tiene que revelar lo siguiente:"]
["17A-Y",null,null,"17A",null,"Sección 17.32(a)","(a) la existencia y los valores en libros de la propiedad, planta y equipo para la cual la entidad tenga restringido el título o la haya pignorado como garantía por pasivos."]
["17A-Y",null,null,"17A",null,"Sección 17.32(b)","(b) la cantidad de los compromisos contractuales para la adquisición de propiedad, planta y equipo."]

{"sheet":"IFS18P","index":19,"n_rows":31,"n_cols":10,"rows_kept":31,"cut":false,"hidden":false,"merged":[]}
["p/c","parent","level",null,null,"Index",null,null,"PresentTQSummary","Yes"]
[null,null,null,null,null,"Sección 18","Activos intangibles diferentes a la Plusvalía",null,null,"No"]
[null,null,null,null,"PA","Referencia","Requerimiento de presentación/revelación",null,null,"N/A"]
[null,null,null,null,null,null,"Esta Sección de la lista de verificación aborda los requerimientos de presentación y revelación  de la Sección 18, que prescribe el tratamiento contable para todos los activos intangibles diferentes a la plusvalía (vea la Sección 19 Combinaciones de negocios y plusvalía) y los activos intangibles tenidos por la entidad para la venta en el curso ordinario de los negocios (vea la Sección 13 Inventarios y la Sección 23 Ingresos ordinarios). Los principales problemas son cuándo puede ser reconocido un acivo intangible, asi como también la determinación del valor en libros subsiguiente. El estánda prescribe ciertos criterios que deben ser satisfechos antes que se pueda reconocer el activo intangible. ",null,null,"Guidance"]
[null,null,null,null,null,null,"Para orientación adicional, seleccione Show en la siguiente columna","Hide",null,"Show"]
["-G",null,null,null,null,null,"Requerimientos de presentación/revelación, nuevos o enmendados, efectivos por primera vez\n\nNinguno\n",null,null,"Hide"]
[null,null,null,"PA Group","PA","Referencia","Requerimiento de presentación/revelación","Yes / No / N/A","Comentarios"]
[null,"18A",1,"18A","18A",null,"¿La entidad reconoció cualesquiera activos intangibles en su estado de posición financiera?","N/A"]
[null,null,null," ",null,null,"If Yes :"]
["18A-Y",null,null,"18A",null,null,"La entidad tiene que revelar lo siguiente por cada clase de activos intangibles:"]
["18A-Y",null,null,"18A",null,"Sección 18.27(a)","(a) las vidas útiles o las tasas de amortización usadas."]
["18A-Y",null,null,"18A",null,"Sección 18.27(b)","(b) los métodos de amortización usados."]
["18A-Y",null,null,"18A",null,"Sección 18.27(c)","(c) el valor en libros bruto y cualquier amortización acumulada (agregada con las pérdidas por deterioro acumuladas) al comienzo y al final del período de presentación de reporte."]
["18A-Y",null,null,"18A",null,"Sección 18.27(d)","(d) el(os) elemento(s) de línea en el estado de ingresos comprensivos (y en el estado de ingresos,si se presenta) en el cual se incluya cualquier amortización de activos intangibles."]
["18A-Y",null,null,"18A",null,"Sección 18.27(e)","(e) una conciliación del valor en libros al comienzo y al final del período de presentación de reporte mostrando por separado:"]
["18A-Y",null,null,"18A",null,null,"(i) adiciones ."]
["18A-Y",null,null,"18A",null,null,"(ii) disposiciones."]
["18A-Y",null,null,"18A",null,null,"(iii) adquisiciones mediante combinaciones de negocios."]
["18A-Y",null,null,"18A",null,null,"(iv) amortización."]
["18A-Y",null,null,"18A",null,null,"(v) pérdidas por deterioro."]
["18A-Y",null,null,"18A",null,null,"(vi) otros cambios."]
["18A-Y",null,null,"18A",null,null,"Esta conciliación no necesita ser presentada para períodos anteriores."]
["18A-Y",null,null,"18A",null,null,"La entidad también tiene que revelar:"]
["18A-Y",null,null,"18A",null,"Sección 18.28(a)","(a) una descripción del valor en libros y de la amortización restante del período de cualquier intangible asset individual que sea material para los estados financieros de la entidad."]
["18A-Y",null,null,"18A",null,"Sección 18.28(b)","(b) para los activos intangibles adquiridos por medio de una subvención gubernamental e inicialmente reconocidos a valor razonable:"]
["18A-Y",null,null,"18A",null,null,"(i) el valor razonable inicialmente reconocido por esos activos, y"]
["18A-Y",null,null,"18A",null,null,"(ii) sus valores en libros."]
["18A-Y",null,null,"18A",null,"Sección 18.28(c)","(c) la existencia y los valores en libros de los activos intangibles para los cuales la entidad tenga título restringido o que estén pignorados como garantía por pasivos."]
["18A-Y",null,null,"18A",null,"Sección 18.28(d)","(d) la cantidad de los compromisos contractuales para la adquisición de activos intangibles."]
["18A-Y",null,null,null,null,null,"Investigación y desarrollo"]
["18A-Y",null,null,"18A",null,"Sección 18.29","La entidad tiene que revelar la cantidad agregada de los desembolsos por investigación y desarrollo reconocidos como gasto durante el período (i.e. la cantidad del desembolso incurrida internamente en investigación y desarrollo que no ha sido capitalizada como parte del costo de otro activo que satisface el criterio de reconocimiento contenido en esta NIIF)."]

{"sheet":"IFS19P","index":20,"n_rows":24,"n_cols":10,"rows_kept":24,"cut":false,"hidden":false,"merged":[]}
["p/c","parent","level",null,null,"Index",null,null,"PresentTQSummary","Yes"]
[null,null,null,null,null,"Sección 19","Combinaciones de negocios y plusvalía",null,null,"No"]
[null,null,null,null,"PA","Referencia","Requerimiento de presentación/revelación",null,null,"N/A"]
[null,null,null,null,null,null,"Esta Sección de la lista de verificación aborda los requerimientos de presentación y revelación  de la Sección 19, que aplica a la contabilidad para las combinaciones de negocios. Proporciona orientación sobre la identificación del adquiriente, la medición del costo de la combinación de negocios, y la asignación de ese costo a los activos adquiridos y a los pasivos y provisiones por pasivos contingentes asumidos. También aborda la contabilidad para la  plusvalía tanto en el momento de la combinación de negocios como subsiguientemente.",null,null,"Guidance"]
[null,null,null,null,null,null,"Para orientación adicional, seleccione Show en la siguiente columna","Hide",null,"Show"]
["-G",null,null,null,null,null,"Requerimientos de presentación/revelación, nuevos o enmendados, efectivos por primera vez\n\nNinguno\n",null,null,"Hide"]
[null,null,null,"PA Group","PA","Referencia","Requerimiento de presentación/revelación","Yes / No / N/A","Comentarios"]
[null,"19A",1,"19A","19A",null,"¿Durante el período de presentación de reporte corriente o anterior la entidad ha participado en una combinación de negocios?","N/A"]
[null,null,null," ",null,null,"If Yes :"]
["19A-Y",null,null,null,null,null,"Para la(s) combinación(es) de negocios efectuadas durante el período de presentación de reporte"]
["19A-Y",null,null,"19A",null,null,"Para cada combinación de negocios que fue efectuada durante el período, el adquiriente tiene que revelar lo siguiente:"]
["19A-Y",null,null,"19A",null,"Sección 19.25(a)","(a) los nombres y las descripciones de las entidades o negocios que se combinan."]
["19A-Y",null,null,"19A",null,"Sección 19.25(b)","(b) la fecha de adquisición."]
["19A-Y",null,null,"19A",null,"Sección 19.25(c)","(c) el porcentaje de instrumentos de patrimonio con derechos de voto adquiridos."]
["19A-Y",null,null,"19A",null,"Sección 19.25(d)","(d) el costo de la combinación y una descripción de los componentes de ese costo (tales como efectivo, instrumentos de patrimonio e instrumentos de deuda)."]
["19A-Y",null,null,"19A",null,"Sección 19.25(e)","(e) las cantidades reconocidas a la fecha de adquisición por cada clase de activos, pasivos y pasivos contingentes del adquirido, incluyendo la plusvalía."]
["19A-Y",null,null,"19A",null,"Sección 19.25(f)","(f) la cantidad de cualquier exceso reconocido en utilidad o pérdida, y el elemento de línea en el estado de ingresos comprensivos (y en el estado de ingresos, si se presenta) en el cual se reconoce el exceso."]
["19A-Y",null,null,null,null,null,"Para todas las combinaciones de negocios"]
["19A-Y",null,null,"19A",null,null,"El adquiriente tiene que revelar la conciliación del valor en libros de la plusvalía al comienzo y al final del período de presentación de reporte, mostrando por separado:"]
["19A-Y",null,null,"19A",null,"Sección 19.26(a)","(a) los cambios que surgen de nuevas combinaciones de negocios."]
["19A-Y",null,null,"19A",null,"Sección 19.26(b)","(b) pérdidas por deterioro."]
["19A-Y",null,null,"19A",null,"Sección 19.26(c)","(c) disposiciones  de negocios previamente adquiridos."]
["19A-Y",null,null,"19A",null,"Sección 19.26(d)","(d) otros cambios."]
["19A-Y",null,null,"19A",null,null,"Esta conciliación no necesita ser presentada para períodos anteriores."]

{"sheet":"IFS20P","index":21,"n_rows":58,"n_cols":10,"rows_kept":58,"cut":false,"hidden":false,"merged":[]}
["p/c","parent","level",null,null,"Index",null,null,"PresentTQSummary","Yes"]
[null,null,null,null,null,"Sección 20","Arrendamientos ",null,null,"No"]
[null,null,null,null,"PA","Referencia","Requerimiento de presentación/revelación",null,null,"N/A"]
[null,null,null,null,null,null,"Esta Sección de la lista de verificación aborda los requerimientos de presentación y revelación  de la Sección 20, que se refiere a la contabilidad para los arrendamientos desde la perspectiva tanto del arrendatario como del arrendador. Esta Sección aplica a los acuerdos que transfieren el derecho de uso de activos. Algunos acuerdos, tales como los acuerdos de tercerización, contratos de telecomunicación que proporcionan derechos a capacidad, y contratos tome-o-pague, no tienen la forma legal de un arrendamiento pero transmiten derechos a usar activos a cambios por pagos. Tales acuerdos son en sustancia arrendamientos de activos, y deben ser contabilizados según esta Sección.",null,null,"Guidance"]
[null,null,null,null,null,null,"Para orientación adicional, seleccione Show en la siguiente columna","Hide",null,"Show"]
["-G",null,null,null,null,null,"Requerimientos de presentación/revelación, nuevos o enmendados, efectivos por primera vez\n\nNinguno\n",null,null,"Hide"]
[null,null,null,"PA Group","PA","Referencia","Requerimiento de presentación/revelación","Yes / No / N/A","Comentarios"]
[null,null,null,null,null,null,"Estados financieros de los arrendatarios"]
[null,null,null,null,null,null,"Arrendamientos financieros"]
[null,"20A",1,"20A","20A",null,"¿La entidad tuvo cualesquiera activos según arrendamientos financieros (i.e. la entidad es un arrendatario según un arrendamiento financiero)?","N/A"]
[null,null,null," ",null,null,"If Yes :"]
["20A-Y",null,null,"20A",null,null,"El arrendatario tiene que hacer las siguientes revelaciones para los arrendamientos financieros:"]
["20A-Y",null,null,"20A",null,"Sección 20.13(a)","(a) por cada clase de activo, el valor en libros neto al final del período de presentación de reporte."]
["20A-Y",null,null,"20A",null,"Sección 20.13(b)","(b) el total de los pagos de arrendamiento mínimos futuros al final del período de presentación de reporte, por cada uno de los siguientes períodos:"]
["20A-Y",null,null,"20A",null,null,"(i) no mayor a un año;"]
["20A-Y",null,null,"20A",null,null,"(ii) mayor a un año pero no mayor que cinco años; y"]
["20A-Y",null,null,"20A",null,null,"(iii) mayor que cinco años."]
["20A-Y",null,null,"20A",null,"Sección 20.13(c)","(c) una descripción general de los acuerdos de arrendamiento más importantes del arrendatario incluyendo, por ejemplo, información acerca de alquiler contingente, opciones de renovación o compra y cláusulas de escalonamiento, subarrendamientos, y restricciones impuestas por los acuerdos de arrendamiento."]
["20A-Y",null,null,"20A",null,"Sección 20.14","Además, los requerimientos para revelación acerca de los activos de acuerdo con las Secciones 17, 18, 27 y 34  aplican a los arrendatarios por los activos arrendados según unrrendamientos financieros."]
[null,null,null,null,null,null,"Arrendamientos operacionales"]
[null,"20B",1,"20B","20B",null,"¿La entidad es un arrendatario según cualquier arrendamiento operacional?","N/A"]
[null,null,null," ",null,null,"If Yes :"]
["20B-Y",null,null,"20B",null,null,"El arrendatario tiene que hacer las siguientes revelaciones por los arrendamientos operacionales:"]
["20B-Y",null,null,"20B",null,"Sección 20.16(a)","(a) el total de los pagos mínimos de arrendamiento futuros según arrendamientos operacionales no cancelables, por cada uno de los siguientes períodos:"]
["20B-Y",null,null,"20B",null,null,"(i) no mayor que un año;"]
["20B-Y",null,null,"20B",null,null,"(ii) mayor que un año y no mayor que cinco años; y"]
["20B-Y",null,null,"20B",null,null,"(iii) mayor que cinco años."]
["20B-Y",null,null,"20B",null,"Sección 20.16(b)","(b) pagos de arrendamiento reconocidos como gasto."]
["20B-Y",null,null,"20B",null,"Sección 20.16(c)","(c) una descripción general de los acuerdos de arrendamiento importantes del arrendatario incluyendo, por ejemplo, información acerca de alquiler contingente, opciones de renovación o compra y cláusulas de escalonamiento, subarrendamientos, y restricciones impuestas por los acuerdos de arrendamiento."]
[null,null,null,null,null,null,"Estados financieros de los arrendadores"]
[null,null,null,null,null,null,"Arrendamientos financieros"]
[null,"20C",1,"20C","20C",null,"¿La entidad es un arrendador según cualquier arrendamiento financiero?","N/A"]
[null,null,null," ",null,null,"If Yes :"]
["20C-Y",null,null,"20C",null,null,"El arrendador tiene que hacer las siguientes revelaciones por los arrendamientos financieros:"]
["20C-Y",null,null,"20C",null,"Sección 20.23(a)","(a) una conciliación entre la inversión bruta en el arrendamiento a final del período de presentación de reporte, y el valor presente de los pagos mínimos de arrendamiento por cobrar al final del período de presentación de reporte. Además, el arrendador tiene que revelar la inversión bruta en el arrendamiento y el valor presente de los pagos mínimos de arrendamiento por cobrar al final del período de presentación de reporte, por cada uno de los siguientes períodos:"]
["20C-Y",null,null,"20C",null,null,"(i) no mayor que un año;"]
["20C-Y",null,null,"20C",null,null,"(ii) mayor que un año y no mayor que cinco años; y"]
["20C-Y",null,null,"20C",null,null,"(iii) mayor que cinco años."]
["20C-Y",null,null,"20C",null,"Sección 20.23(b)","(b) ingresos financieros no ganados."]
["20C-Y",null,null,"20C",null,"Sección 20.23(c)","(c) los valores residuales no garantizados reconocidos a favor del arrendador."]
["20C-Y",null,null,"20C",null,"Sección 20.23(d)","(d) la provisión acumulada por los pagos mínimos de arrendamiento por cobrar incobrables."]
["20C-Y",null,null,"20C",null,"Sección 20.23(e)","(e) alquileres contingentes reconocidos como ingresos en el período."]
["20C-Y",null,null,"20C",null,"Sección 20.23(f)","(f) una descripción general de los acuerdos de arrendamiento importantes del arrendador, incluyendo, por ejemplo, información acerca de alquiler contingente, opciones de compra o renovación y cláusulas de escalonamiento, subarrendamientos, y restricciones impuestas por los acuerdos de arrendamiento."]
[null,null,null,null,null,null,"Arrendamientos operacionales"]
[null,"20D",1,"20D","20D",null,"¿La entidad tuvo cualesquiera activos que sean arrendados según arrendamientos operacionales (i.e. la entidad es el arrendador según un arrendamiento operacional)?","N/A"]
[null,null,null," ",null,null,"If Yes :"]
["20D-Y",null,null,"20D",null,null,"El arrendador tiene que revelar lo siguiente por los arrendamientos operacionales:"]
["20D-Y",null,null,"20D",null,"Sección 20.30(a)","(a) los pagos mínimos de arrendamiento futuros según arrendamientos operacionales no cancelables, por cada uno de los siguientes períodos:"]
["20D-Y",null,null,"20D",null,null,"(i) no mayor que un año; y "]
["20D-Y",null,null,"20D",null,null,"(ii) mayor que un año y no mayor que cinco años; y"]
["20D-Y",null,null,"20D",null,null,"(iii) mayor que cinco años."]
["20D-Y",null,null,"20D",null,"Sección 20.30(b)","(b) total de alquileres contingentes reconocidos como ingresos."]
["20D-Y",null,null,"20D",null,"Sección 20.30(c)","(c) una descripción de los acuerdos de arrendamiento importantes del arrendador, incluyendo, por ejemplo, información acerca de alquiler contingente, opciones de renovación o compra y cláusulas de escalonamiento, y restricciones impuestas por los acuerdos de arrendamiento."]
["20D-Y",null,null,"20D",null,"Sección 20.31","Además, los requerimientos para revelación acerca de los activos de acuerdo con las Secciones 17, 18, 27 y 34 aplican a los arrendadores por los  activos proporcionados según según arrendamientos operacionales."]
[null,null,null,null,null,null,"Transacciones de venta y retroarriendo"]
[null,"20E",1,"20E","20E",null,"¿Cualquiera de los acuerdos en que la entidad esté actuando como arrendador o como arrendatario (ya sea según cualquier arrendamiento operacional o según un arrendamiento financiero) es un acuerdo de venta y retroarriendo?","N/A"]
[null,null,null," ",null,null,"If Yes :"]
["20E-Y",null,null,"20E",null,"Sección 20.35","Los requerimientos de revelación par los arrendatarios y los arrendadores aplican igualmente a las transacciones de venta y retroarriendo. La descripción requerida de los acuerdos de arrendamiento importantes incluye la descripción de las determinaciones únicas o inusuales del acuerdo o de los términos de las transacciones de venta y retroarriendo."]

{"sheet":"IFS21P","index":22,"n_rows":43,"n_cols":11,"rows_kept":43,"cut":false,"hidden":false,"merged":[]}
["p/c",null,"parent","level",null,null,"Index",null,null,"PresentTQSummary","Yes"]
[null,null,null,null,null,null,"Sección 21","Provisiones y contingenciass",null,null,"No"]
[null,null,null,null,null,"PA","Referencia","Requerimiento de presentación/revelación",null,null,"N/A"]
[null,null,null,null,null,null,null,"Esta Sección de la lista de verificación aborda los requerimientos de presentación y revelación  de la Sección 21, que prescribe la contabilidad para las provisiones (incluyendo provisiones para reestructuración y contratos onerosos), pasivos contingentes y activos contingentes.",null,null,"Guidance"]
[null,null,null,null,null,null,null,"Para orientación adicional, seleccione Show en la siguiente columna","Hide",null,"Show"]
["-G",null,null,null,null,null,null,"Requerimientos de presentación/revelación, nuevos o enmendados, efectivos por primera vez\n\nNinguno\n",null,null,"Hide"]
[null,null,null,null,"PA Group","PA","Referencia","Requerimiento de presentación/revelación","Yes / No / N/A","Comentarios"]
[null,null,null,null,null,null,null,"Reembolsos"]
[null,null,"21A",1,"21A","21A",null,"¿La entidad tenía cualquier derecho a reembolso relacionado con una provisión?","N/A"]
[null,null,null,null," ",null,null,"If Yes :"]
["21A-Y",null,"21AC1",2,"21A",null,"Sección 21.9","Cuando alguna o toda la cantidad requerida para liquidar una provisión puede ser reembolsada por otra parte (e.g. mediante un reclamo de seguro, la entidad tiene que reconocer el reembolso como un activo separado."]
["21A-Y","21AC1-G",null,null,null,null,"Sección 21.9","Nota: El reembolso tiene que ser reconocido cuando, y solo cuando, sea virtualmente cierto que la entidad recibirá el reembolso en la liquidación de la obligación. La cantidad reconocida por el reembolso no puede exceder la cantidad de la provisión. "]
["21A-Y",null,"21AC2",2,"21A",null,"Sección 21.9","El reembolso por cobrar tiene que ser presentado en el estado de posición financiera como un activo y no puede ser compensado contra la provisión. En el estado de ingresos comprensivos, la entidad puede compensar cualquier reembolso proveniente de otra parte contra el gasto relacionado con la provisión."]
["21A-Y","21AC2-G",null,null,null,null,"Sección 21.9","Nota: La presentación neta tal y como se describe es permitida, pero no requerida."]
[null,null,null,null,null,null,null,"Provisiones"]
[null,null,"21B",1,"21B","21B",null,"¿La entidad tenía cualesquiera provisiones?","N/A"]
[null,null,null,null," ",null,null,"If Yes :"]
["21B-Y",null,null,null,"21B",null,null,"Por cada clase de provisión, la entidad tiene que revelar todo lo siquiente:"]
["21B-Y",null,null,null,null,null,"Sección 21.14(a)","(a) una conciliación que muestre"]
["21B-Y",null,null,null,null,null,null,"(i) el valor en libros al comienzo y al final del período;"]
["21B-Y",null,null,null,null,null,null,"(ii) las adiciones durante el período, incluyendo los ajustes que resulten de los cambios en la medición de la cantidad descontada;"]
["21B-Y",null,null,null,"21B",null,null,"(iii) las cantidades cargadas contra la provisión durante el período; y"]
["21B-Y",null,null,null,"21B",null,null,"(iv) las cantidades no usadas reversadas durante el período."]
["21B-Y",null,null,null,"21B",null,"Sección 21.14(b)","(b) una descripción breve de la naturaleza de la obligación y la cantidad y oportunidad esperadas de cualesquiera pagos resultantes."]
["21B-Y",null,null,null,"21B",null,"Sección 21.14(c)","(c) un indicador de las incertidumbres acerca de la cantidad u oportunidad de esas salidas de flujos."]
["21B-Y",null,null,null,"21B",null,"Sección 21.14(d)","(d) la cantidad de cualquier reembolso esperado, señalando la cantidad de cualquier activo que haya sido reconocido por ese reembolso esperado."]
["21B-Y",null,null,null,"21B",null,"Sección 21.14","No se requiere información comparativa para los períodos anteriores."]
[null,null,null,null,null,null,null,"Pasivos contingentes"]
[null,null,"21C",1,"21C","21C",null,"¿La entidad tenía cualesquiera pasivos contingentes?","N/A"]
[null,null,null,null," ",null,null,"If Yes :"]
["21C-Y",null,null,null,"21C",null,null,"A menos que sea remota la posibilidad de cualquier salida de recursos en la liquidación, la entidad tiene que revelar, por cada clase de pasivos contingentes a la fecha de presentación de reporte, una descripción breve de la naturaleza del pasivo contingente y, cuando sea practicable:"]
["21C-Y",null,null,null,"21C",null,"Sección 21.15(a)","(a) un estimado de su efecto financiero, medido de acuerdo con los parágrafos 21.7–21.11;"]
["21C-Y",null,null,null,"21C",null,"Sección 21.15(b)","(b) un indicador de las incertidumbres relacionadas con la cantidad u oportunidad de cualquier salida de flujos; y"]
["21C-Y",null,null,null,"21C",null,"Sección 21.15(c)","(c) la posibilidad de cualquier reembolso."]
["21C-Y",null,null,null,"21C",null,"Sección 21.15","Si es impracticable hacer una o más de esas revelaciones, se debe establecer ese hecho."]
[null,null,null,null,null,null,null,"Activos contingentes"]
[null,null,"21D",1,"21D","21D",null,"¿La entidad tenía cualesquiera activos contingentes?","N/A"]
[null,null,null,null," ",null,null,"If Yes :"]
["21D-Y",null,"21DC1",2,"21D",null,"Sección 21.16","Si la entrada de beneficios económicos es probable (más probable que no)  pero no virtualmente cierta, la entidad tiene que revelar una descripción de la naturaleza de los activos contingentes al final del período de presentación de reporte, y, cuando sea practicable sin costo o esfuerzo indebido, un estimado de su efecto financiero."]
["21D-Y","21DC1-G",null,null,"21D",null,"Q&A 2012/01 parágrafo  2","Nota: ‘Costo o esfuerzo indebido’ de manera deliberada no es definido en la NIIF para PYMES, porque ello dependería de  las circunstancias específicas de la PYME y del juicio profesional de la administración en la valoración de los costos y beneficios. Si la cantidad del costo o esfuerzo es excesiva (indebida) necesariamente requiere la consideración de cómo las decisiones económicas de los usuarios de los the estados financieros podrían ser afectadas por la disponibilidad de la información. Aplicar un requerimiento resultaría en  ‘costo o esfuerzo indebido’ a causa ya sea de costo excesivo (e.g. si los honorarios de los valuadores son excesivos) o trabajos excesivos de los empleadores en comparación con los beneficios que los usuarios de los estados financieros de la PYME recibirían a partir de tener la información. La valoración de si un requerimiento resultará en ‘costo o esfuerzo indebido’ se debe basar en la información disponible en el momento de la transacción o evento acerca de los costos y beneficios del requerimiento. En cualquier medición subsiguiente,  el ‘costo o esfuerzo indebido’ se debe basar en la información disponible en la fecha de la medición subsiguiente (e.g. the fecha de presentación de reporte)."]
["21D-Y",null,null,null,"21D",null,"Sección 21.16","Si es impracticable hacer esta revelación, se tiene que establecer ese hecho."]
["OR,21A-Y,21B-Y,21C-Y,21D-Y",null,null,null,"21A, 21B, 21C, 21D",null,null,"Revelaciones perjudiciales"]
["OR,21A-Y,21B-Y,21C-Y,21D-Y",null,null,null,"21A, 21B, 21C, 21D",null,"IAS 37:92","En casos extremadamente raros, la revelación de alguna o toda la información requerida arriba puede esperarse que perjudique seriamente la posición de la  entidad en una disputa con otras partes sobre la materia sujeto de una provisión, pasivo contingente o activo contingente. En tales casos, la entidad no necesita revelar la información, pero tiene que revelar la naturaleza general de la disputa, junto con el hecho, y la razón por la cual, la información no ha sido revelada."]

{"sheet":"IFS23P","index":23,"n_rows":31,"n_cols":10,"rows_kept":31,"cut":false,"hidden":false,"merged":[]}
[null,null,null,null,null,"Index",null,null,"PresentTQSummary","Yes"]
[null,null,null,null,null,"Sección 23","Ingresos ordinarios ",null,null,"No"]
[null,null,null,null,"PA","Referencia","Requerimiento de presentación/revelación",null,null,"N/A"]
[null,null,null,null,null,null,"Esta Sección de la lista de verificación aborda los requerimientos de presentación y revelación  de la Sección 23. Los ingresos ordinarios son los ingresos que surgen en el curso de las actividades ordinarias de la entidad y a los cuales se les refiere por una variedad de nombres diferentes incluyendo ventas, honorarios, contratos de construcción, intereses, dividendos y regalías. El problema principal en la contabilidad para los ingresos ordinarios es determinar cuándo reconocer los ingresos ordinarios. El contrato de construcción se define como el contrato negociado de manera específica para la construcción de un activo o una combinación de activos que estén interrelacionados de manera estecha o sean interdependientes en términos de su diseño, tecnología y función o su propósito o uso último. No se define el término contratista.",null,null,"Guidance"]
[null,null,null,null,null,null,"Para orientación adicional, seleccione \"Show\" en la siguiente columna","Hide",null,"Show"]
["-G",null,null," ",null,null,"Requerimientos de presentación/revelación, nuevos o enmendados, efectivos por primera vez\n\nNinguno\n",null,null,"Hide"]
[null,null,null,"PA Group","PA","Referencia","Requerimiento de presentación/revelación","Yes / No / N/A","Comentarios"]
[null,"23A",1,"23A","23A",null,"¿La entidad reconoció cualesquiera ingresos ordinarios?","N/A"]
[null,null,null," ",null,null,"If Yes :"]
["23A-Y",null,null,null,null,null,"Revelaciones generales acerca de los ingresos ordinarios"]
["23A-Y",null,null,"23A",null,null,"La entidad tiene que revelar:"]
["23A-Y",null,null,null,null,"Sección 23.30(a)","(a) las políticas de contabilidad adoptadas para el reconocimiento de los ingresos ordinarios, incluyendo los métodos adoptados para determinar la etapa de terminación de las transacciones que implican la prestación de los servicios."]
["23A-Y",null,null,null,null,"Sección 23.30(b)","(b) la cantidad de cada categoría de ingresos ordinarios reconocida durante el período, mostrando por separado, como mínimo, los ingresos ordinarios que surgen de:"]
["23A-Y",null,null,null,null,null,"(i) la venta de bienes."]
["23A-Y",null,null,null,null,null,"(ii) la prestación de servicios."]
["23A-Y",null,null,null,null,null,"(iii) intereses."]
["23A-Y",null,null,null,null,null,"(iv) regalías."]
["23A-Y",null,null,null,null,null,"(v) dividendos."]
["23A-Y",null,null,null,null,null,"(vi) comisiones."]
["23A-Y",null,null,null,null,null,"(vii) subvenciones del gobierno."]
["23A-Y",null,null,null,null,null,"(viii) cualesquiera otros tipos importantes de ingresos ordinarios."]
[null,"23B",1,"23B","23B",null,"¿La entidad ha tenido cualesquiera contratos de construcción, para los cuales sea el contratista?","N/A"]
[null,null,null," ",null,null,"If Yes :"]
["23B-Y",null,null,null,null,null," Revelaciones relacionadas con los ingresos ordinarios provenientes de contratos de construcción"]
["23B-Y",null,null,"23B",null,null,"La entidad tiene que revelar:"]
["23B-Y",null,null,null,null,"Sección 23.31(a)","(a) la cantidad de los ingresos ordinarios del contrato reconocidas como ingresos ordinarios en el período; "]
["23B-Y",null,null,null,null,"Sección 23.31(b)","(b) los métodos usados para determinar los ingresos ordinarios del contrato reconocidos en el período; y"]
["23B-Y",null,null,null,null,"Sección 23.31(c) ","(c) los métodos usados para determinar la etapa de terminación de los contratos en progreso."]
["23B-Y",null,null,"23B",null,null,"La entidad tiene que presentar:"]
["23B-Y",null,null,null,null,"Sección 23.32(a)","(a) la cantidad bruta debida por los clientes por el trabajo del contrato, como un activo."]
["23B-Y",null,null,null,null,"Sección 23.32(b)","(b) la cantidad bruta debida a los clientes por el trabajo del contrato, como un pasivo."]

{"sheet":"IFS24P","index":24,"n_rows":14,"n_cols":11,"rows_kept":14,"cut":false,"hidden":false,"merged":[]}
[null,null,null,null,null,null,"Index",null,null,"PresentTQSummary","Yes"]
[null,null,null,null,null,null,"Sección 24","Subvenciones del gobierno",null,null,"No"]
[null,null,null,null,null,"PA","Referencia","Requerimiento de presentación/revelación",null,null,"N/A"]
[null,null,null,null,null,null,null,"Esta Sección de la lista de verificación aborda los requerimientos de presentación y revelación  de la Sección 24. La Sección distingue entre subvenciones del gobierno (para las cuales prescribe el tratamiento contable) y ayuda del gobierno (a la cual razonablemente no se le puede dar un valor, pero puede tener un impacto importante en la entidad y, por consiguiente, debe ser revelada).",null,null,"Guidance"]
[null,null,null,null,null,null,null,"Para orientación adicional, seleccione \"Show\" en la siguiente columna","Hide",null,"Show"]
["-G",null,null,null,null,null,null,"Requerimientos de presentación/revelación, nuevos o enmendados, efectivos por primera vez\n\nNinguno\n",null,null,"Hide"]
[null,null,null,null,"PA Group","PA","Referencia","Requerimiento de presentación/revelación","Yes / No / N/A","Comentarios"]
[null,null,"24A",1,"24A","24A",null,"¿La entidad recibió cualesquiera subvenciones del gobierno?","N/A"]
[null,null,null,null," ",null,null,"If Yes :"]
["24A-Y",null,null,null,"24A",null,null,"La entidad tiene que revelar lo siguiente acerca de las subvenciones del gobierno:"]
["24A-Y",null,null,null,"24A",null,"Sección 24.6(a)","(a) la naturaleza y las cantidades de las subvenciones del gobierno reconocidas en los estados financieros."]
["24A-Y",null,null,null,"24A",null,"Sección 24.6(b)","(b) las condiciones y las otras condiciones no satisfechas vinculadas con las subvenciones del gobierno que no hayan sido reconocidas en ingresos."]
["24A-Y",null,"24AC1",2,"24A",null,"Sección 24.6(c)","(c) un indicador de las otras formas de ayuda del gobierno de las cuales la entidad se haya beneficiado de manera directa."]
["24A-Y","24AC1-G",null,null,null,null,"Sección 24.7","Notas: \nPara los propósitos de la revelación requerida por el parágrafo  24.6(c), ayuda del gobierno es la acción del gobierno diseñada para proporcionar un beneficio económico específico para una entidad o un rango de entidades que califiquen según los criterios especificados. Los ejemplos incluyen asesoría gratis técnica o de mercadeo, el suministro de garantías, y préstamos a tasas de interés cero o bajas."]

{"sheet":"IFS25P","index":25,"n_rows":10,"n_cols":10,"rows_kept":10,"cut":false,"hidden":false,"merged":[]}
[null,null,null,null,null,"Index",null,null,"PresentTQSummary","Yes"]
[null,null,null,null,null,"Sección 25","Costos por préstamos",null,null,"No"]
[null,null,null,null,"PA","Referencia","Requerimiento de presentación/revelación",null,null,"N/A"]
[null,null,null,null,null,null,"Esta Sección de la lista de verificación aborda los requerimientos de presentación y revelación  de la Sección 25, que prescribe el tratamiento contable para los costos por préstamos. Esta Sección especifica que la entidad tiene que reconocer todos los costos por préstamos como un gasto en utilidad o pérdida en el período en el cual se incurren.",null,null,"Guidance"]
[null,null,null,null,null,null,"Para orientación adicional, seleccione \"Show\" en la siguiente columna","Hide",null,"Show"]
["-G",null,null,null,null,null,"Requerimientos de presentación/revelación, nuevos o enmendados, efectivos por primera vez\n\nNinguno\n",null,null,"Hide"]
[null,null,null,"PA Group","PA","Referencia","Requerimiento de presentación/revelación","Yes / No / N/A","Comentarios"]
[null,"25A",1,"25A","25A",null,"¿La entidad incurrió en cualesquiera costos por préstamos?","N/A"]
[null,null,null," ",null,null,"If Yes :"]
["25A-Y",null,null,"25A",null,"Sección 25.3","El parágrafo  5.5(b) requiere la revelación de los costos financieros. El parágrafo  11.48(b) requiere la revelación del total de gastos por intereses (usando el método del interés efectivo) para los pasivos financieros que no sean a valor razonable a través de utilidad o pérdida. Esta Sección no requiere ninguna revelación adicional."]

{"sheet":"IFS26P","index":26,"n_rows":43,"n_cols":11,"rows_kept":43,"cut":false,"hidden":false,"merged":[]}
["p/c","p/c","parent","level",null,null,"Index",null,null,"PresentTQSummary","Yes"]
[null,null,null,null,null,null,"Sección 26","Pago basado-en-acciones",null,null,"No"]
[null,null,null,null,null,"PA","Referencia","Requerimiento de presentación/revelación",null,null,"N/A"]
[null,null,null,null,null,null,null,"Esta Sección de la lista de verificación aborda los requerimientos de presentación y revelación  de la Sección 26, que prescribe la contabilidad para las transacciones en las cuales la consideración pagada por la entidad por los bienes o servicios está vinculada, ya sea directa o indirectamente, a valores de patrimonio de la entidad o a instrumentos de patrimonio de otra entidad del mismo grupo. Los problemas principales se relacionan con la medición de la transacción de pago basado-en-acciones y el consiguiente llevar al gasto.",null,null,"Guidance"]
[null,null,null,null,null,null,null,"Para orientación adicional, seleccione Show en la siguiente columna","Hide",null,"Show"]
["-G",null,null,null,null,null,null,"Requerimientos de presentación/revelación, nuevos o enmendados, efectivos por primera vez\n\nNinguno",null,null,"Hide"]
[null,null,null,null,"PA Group","PA","Referencia","Requerimiento de presentación/revelación","Yes / No / N/A","Comentarios","Yes"]
[null,null,null,null,null,null,null,"PREGUNTAS DETALLADAS DE CUMPLIMIENTO",null,null,"No"]
[null,null,"26A",1,"26A","26A",null,"¿La entidad realizó cualesquiera acuerdos de pago basado-en-acciones que estén dentro del alcance de la Sección 2?","N/A",null,"Guidance"]
[null,null,null,null," ",null,null,"If Yes :"]
["26A-Y",null,null,null," ",null,null,"Naturaleza y extensión de los acuerdos de pago basado-en-acciones que existieron en el período"]
["26A-Y",null,"26AC1",2,"26A",null,"Sección 26.18","La entidad tiene que revelar información que les permita a los usuarios de los estados financieros entender la naturaleza y la extensión de los acuerdos de pago basado-en-acciones arrangements que existieron durante el período."]
["26A-Y","26AC1-G",null,null,null,null,null,"Nota: El parágrafo  26.18 de la Sección 26, que se establece abajo, especifica las revelaciones mínimas requeridas para satisfacer este requerimiento."]
["26A-Y",null,null,null,"26A",null,null,"La entidad tiene que revelar lo siguiente (como mínimo):"]
["26A-Y",null,"26AC2",2,null,null,"Sección 26.18(a)","(a) una descripción de cada tipo de acuerdo de pago basado-en-acciones que existió en cualquier momento durante el período, incluyendo los términos generales y las condiciones de cada acuerdo,"]
["26A-Y","26AC2-G",null,null,null,null,null,"Notas:"]
["26A-Y","26AC2-G",null,null,null,null,"Sección 26.18(a)","1)      Los términos y condiciones generales de los acuerdos de pago basado-en-acciones incluirán elementos tales como requerimientos para la consolidación de la concesión, el término máximo de las opciones otorgadas, y el método de liquidación (efectivo o patrimonio o ambos)."]
["26A-Y","26AC2-G",null,null,null,null,"Sección 26.18(a)","2)      La entidad con acuerdos de pago basado-en-acciones subsiguientemente similares pueden agregar esta información, a menos que la revelación separada de cada acuerdo sea necesaria para satisfacer el principio contenido en el parágrafo  26.18 de la Sección 26 (vea abajo)."]
["26A-Y",null,"26A1",2,"26A-1",null,null,"¿La entidad tenía cualesquiera opciones otorgadas según una transacción de pago basado-en-acciones?"]
[null,null,null,null," ",null,null,"If Yes :"]
["26A-Y","26A1-Y",null,null,"26A-1",null,null,"La entidad tiene que revelar lo siguiente (como mínimo):"]
["26A-Y","26A1-Y",null,null,null,null,"Sección 26.18(b)","(b) el número y el promedio ponderado de los precios de ejercicio de las opciones en acciones para cada uno de los siguientes grupos de opciones:"]
["26A-Y","26A1-Y",null,null,null,null,null,"(i) en circulación al comienzo del período."]
["26A-Y","26A1-Y",null,null,null,null,null,"(ii) otorgadas durante el período."]
["26A-Y","26A1-Y",null,null,null,null,null,"(iii) perdidas durante el período."]
["26A-Y","26A1-Y",null,null,null,null,null,"(iv) ejercidas durante el período."]
["26A-Y","26A1-Y",null,null,null,null,null,"(v) expiradas durante el período."]
["26A-Y","26A1-Y",null,null,null,null,null,"(vi) vigentes al final del período."]
["26A-Y","26A1-Y",null,null,null,null,null,"(vii) ejercibles al final del período."]
["26A-Y",null,null,null,null,null,null,"Medición de las transacciones de pago basado-en-acciones liquidado-en-patrimonio"]
["26A-Y",null,null,null,"26A",null,"Sección 26.19","Para los acuerdos de pago basado-en.acciones liquidado-en-patrimonio, la entidad tiene que revelar información acerca de cómo midió el valor razonable  de los bienes o servicios recibidos o el valor de los instrumentos de patrimonio otorgados. Si se usó una metodología de valuación, la entidad tiene que revelar el método y las razones para seleccionarlo."]
["26A-Y",null,null,null,null,null,null,"Medición de las transacciones de pago basado-en-acciones liquidado-en-efectivo"]
["26A-Y",null,null,null,"26A",null,"Sección 26.20","Paa los acuerdos de pago basado-en-acciones liquidado-en-efectivo, la entidad tiene que revelar información acerca de cómo fue medido el pasivo."]
["26A-Y",null,"26A2",2,"26A-2",null,null,"¿La entidad realizó durante el período cualesquiera modificaciones a los acuerdos basados-en-acciones?"]
[null,null,null,null," ",null,null,"If Yes :"]
["26A-Y","26A2-Y",null,null,"26A-2",null,"Sección 26.21","Para los acuerdos de pago basado-en-acciones basado en acciones que fueron modificados durante el período, la entidad tiene que revelar la explicación de esas modificaciones."]
["26A-Y",null,"26A3",2,"26A-3",null,null,"¿La entidad está participando en un plan de transacción de pago basado-en-acciones de grupo que reconoce y mide sus gastos de pago basado-en-acciones con base en la asignación razonable del gasto reconocido por el grupo?"]
[null,null,null,null," ",null,null,"If Yes :"]
["26A-Y","26A3-Y",null,null,"26A-3",null,"Sección 26.22","La entidad tiene que revelar el hecho de que reconoce y mide sus gastos de pago basado-en-acciones con base en la asignación razonable del gasto reconocido por el grupo y , la base para la asignación."]
["26A-Y",null,null,null,null,null,null,"El efecto que las transacciones de pago basado-en-acciones tiene en la utilidad o pérdida en el períodode la entidad  y en su posición financiera"]
["26A-Y",null,null,null,"26A",null,null,"La entidad tiene que revelar la siguiente información acerca del efecto que las transacciones de pago basado-en-acciones transacciones tienen en la utilidad o pérdida del período de la entidad y en su posición financiera:"]
["26A-Y",null,null,null,"26A",null,"Sección 26.23(a)","(a) el gasto total reconocido en utilidad o pérdida del período."]
["26A-Y",null,null,null,null,null,"Sección 26.23(b)","(b) el total del valor en libros al final del período por los pasivos que surjan de transacciones de pago basado-en-acciones."]

{"sheet":"IFS27P","index":27,"n_rows":22,"n_cols":10,"rows_kept":22,"cut":false,"hidden":false,"merged":[]}
["p/c","parent","level",null,null,"Index",null,null,"PresentTQSummary","Yes"]
[null,null,null,null,null,"Sección 27","Deterioro del valor de los activos",null,null,"No"]
[null,null,null,null,"PA","Referencia","Requerimiento de presentación/revelación",null,null,"N/A"]
[null,null,null,null,null,null,"Esta Sección de la lista de verificación aborda los requerimientos de presentación y revelación  de la Sección 27. El objetivo de esta Sección es asegurar que los activos no sean llevados a una cantidad que sea mayor que su cantidad recuperable. Si un activo es llevado a más que su cantidad recuperable, el activo se describe como deteriorado y la Sección 27 requiere que la entidad reconozca una pérdida por deterioro. ",null,null,"Guidance"]
[null,null,null,null,null,null,"Los principales problemas son: cómo determinar si existe pérdida por deterioro, cómo reconocer la pérdida por deterioro y cuándo la entidad debe reversar la pérdida por deterioro.",null,null,"Show"]
[null,null,null,null,null,null,"Para orientación adicional, seleccione \"Show\" en la siguiente columna","Hide",null,"Hide"]
["-G",null,null,null,null,null,"Requerimientos de presentación/revelación, nuevos o enmendados, efectivos por primera vez\n\nNinguno"]
[null,null,null,"PA Group","PA","Referencia","Requerimiento de presentación/revelación","Yes / No / N/A","Comentarios"]
[null,null,null,null,null,null," Revelaciones generales"]
[null,"27A",1,"27A","27A",null,"¿Durante el período la entidad reconoció cualesquiera pérdidas por deterioro, o reversas de pérdidas por deterioro, sobre activos dentro del alcance de la Sección 27?","N/A"]
[null,null,null," ",null,null,"If Yes :"]
["27A-Y",null,null,"27A",null,null,"La entidad  tiene que revelar lo siguiente por cada clase de activos (vea abajo):"]
["27A-Y",null,null,null,null,"Sección 27.32(a)","(a) la cantidad de las pérdidas por deterioro reconocidas en utilidad o pérdida durante el período y el(os) elemento(s) de línea en el estado de ingresos comprensivos (y en el  estado de ingresos,si se presenta) en el cual se incluyen esas pérdidas por deterioro."]
["27A-Y",null,null,null,null,"Sección 27.32(b)","(b) la cantidad de las reversas de pérdidas por deterioro reconocidas en utilidad o pérdida durante el período y el(os) elemento(s) de línea en el estado de ingresos comprensivos (y en el  estado de ingresos,si se presenta) en el cual se reversaron esas pérdidas por deterioro."]
["27A-Y",null,null,null,null,null,"Clases de activos"]
["27A-Y",null,null,"27A",null,null,"La entidad tiene que revelar la información requerida arriba por cada una de las siguientes clases de activos:"]
["27A-Y",null,null,null,null,"Sección 27.33(a)","(a) Inventarios."]
["27A-Y",null,null,null,null,"Sección 27.33(b)","(b) Propiedad, planta y equipo (incluyendo propiedad para inversión contabilizada según el método del costo)."]
["27A-Y",null,null,null,null,"Sección 27.33(c)","(c) Plusvalía."]
["27A-Y",null,null,null,null,"Sección 27.33(d)","(d)Activos intangibles diferentes a plusvalía."]
["27A-Y",null,null,null,null,"Sección 27.33(e)","(e) Inversiones en asociadas."]
["27A-Y",null,null,null,null,"Sección 27.33(f)","(f) Inversiones en negocios conjuntos."]

{"sheet":"IFS28P","index":28,"n_rows":62,"n_cols":11,"rows_kept":62,"cut":false,"hidden":false,"merged":[]}
["p/c","p/c","parent","level",null,null,"Index",null,null,"PresentTQSummary","Yes"]
[null,null,null,null,null,null,"Sección 28","Beneficios para empleados",null,null,"No"]
[null,null,null,null,null,"PA","Referencia","Requerimiento de presentación/revelación",null,null,"N/A"]
[null,null,null,null,null,null,null,"Esta Sección de la lista de verificación aborda los requerimientos de presentación y revelación  de la Sección 28, que prescribe la contabilidad para  los beneficios para empleados. Los principales problemas se relacionan con la determinación de los pasivos, activos y gastos de beneficios para empleados para beneficios para empleados de corto y de largo plazo.",null,null,"Guidance"]
[null,null,null,null,null,null,null,"Para orientación adicional, seleccione Show en la siguiente columna","Hide",null,"Show"]
["-G",null,null,null,null,null,null,"Requerimientos de presentación/revelación, nuevos o enmendados, efectivos por primera vez\n\nNinguno",null,null,"Hide"]
[null,null,null,null,"PA Group","PA","Referencia","Requerimiento de presentación/revelación","Yes / No / N/A","Comentarios","Yes"]
[null,null,null,null,null,null,null,"Beneficios para empleados de corto plazo",null,null,"No"]
[null,null,"28A",1,"28A","28A",null,"¿la entidad proporcionó cualesquiera beneficios para empleados de corto plazo?","N/A",null,"Guidance"]
[null,null,null,null," ",null,null,"If Yes :"]
["28A-Y",null,null,null,"28A",null,"Sección 28.39","Si bien la Sección 28 no requiere revelaciones específicas acerca de los beneficios para empleados de corto plazo, otra Sección puede requerir las revelaciones (e.g. la Sección 33 Revelaciones de partes relacionadas requiere que la entidad revele información acerca de los beneficios para empleados para el personal clave de la administración). "]
[null,null,null,null,null,null,null,"Beneficios posteriores al empleo - Planes de contribución definida"]
[null,null,"28B",1,"28B","28B",null,"¿La entidad participó en cualesquiera planes de contribuciones definbidas por beneficios posteriores al empleo?","N/A"]
[null,null,null,null," ",null,null,"If Yes :"]
["28B-Y",null,null,null,"28B",null,"Sección 28.40","La entidad tiene que revelar la cantidad reconocida en utilidad o pérdida como gasto por los planes de contribución definida. "]
["28B-Y",null,"28B1",2,"28B-1",null,"Sección 28.40","¿La entidad  hace parte de un plan de múltiples empleadores que contabiliza como un plan de contribución definida porque no está disponible información suficiente para usar la contabilidad de beneficio definido?"]
["28B-Y","28B1-Y",null,null,"28B-1",null,"Sección 28.40","Si la entidad trata al plan de múltiples empleadores de beneficio definido como un plan de contribución definida porque no está disponible información suficiente para usar la contabilidad de beneficio definido tiene que:\n1) revelar el hecho de que es un plan de beneficio definido y \n2) la razón por la cual está siendo contabilizado como un plan de contribución definida, y \n3) cualquier información disponible acerca del superávit o déficit del plan y las implicaciones, si las hay, para la entidad."]
[null,null,null,null,null,null,null,"Beneficios posteriores al empleo - Planes de beneficio definido"]
[null,null,"28C",1,"28C","28C",null,"¿La entidad participó en cualesquiera planes de beneficio definido por beneficios posteriores al empleo?","N/A"]
[null,null,null,null," ",null,null,"If Yes :"]
["28C-Y",null,null,null,"28C",null,null,"La entidad tiene que revelar la siguiente información acerca de los planes de beneficio definido (excepto para cualesquiera planes de beneficio de múltiples empleadores que se contabilicen como planes de contribución definida de acuerdo con el  parágrafo  28.11, para los cuales aplican en lugar de ello las revelaciones contenidas en el parágrafo  28.40  (vea abajo)). \n\nSi la entidad tiene más de un plan de beneficio definido, esas revelaciones pueden ser en total, separadas por cada plan, o en las agrupaciones que se considere sean las más útiles:"]
["28C-Y",null,null,null,null,null,"Sección 28.41(a)","(a) una descripción general del tipo de plan, incluyendo la política de financiación."]
["28C-Y",null,null,null,null,null,"Sección 28.41(b)","(b) la política de contabilidad de la entidad para el reconocimiento de las  ganancias y pérdidas actuariales (ya sea en utilidad o pérdida o como un elemento de   otros ingresos comprensivos) y la cantidad de las ganancias y pérdidas reconocidas durante el período."]
["28C-Y",null,"28CC1",2,null,null,"Sección 28.41(c)","(c) una explicación narrativa si la entidad usa cualesquiera de las simplificaciones contenidas en el parágrafo  28.19 en la medición de su obligación de beneficio definido."]
["28C-Y","28CC1-G",null,null,null,null,null,"Notas:\nSi la entidad no puede, sin costo o esfuerzo indebido, usar el método de la unidad de crédito proyectada para medir su obligación y su costo según los planes de beneficio definido, a la entidad se le permite hacer las siguientes simplificaciones en la medición de su obligación de beneficio definido con relación a los empleados corrientes:"]
["28C-Y","28CC1-G",null,null,null,null,"Sección 28.19(a)","(a) ignorar los incrementos salariales futuros estimados (i.e. asumir que los salarios corrientes continuarán hasta que los empleados corrientes se espere estén recibiendo los beneficios posteriores al empleo);"]
["28C-Y","28CC1-G",null,null,null,null,"Sección 28.19(b)","(b) ignorar el servicio futuro de los empleados corrientes (i.e. asumir la revelación del plan para los empleados existentes así como para cualesquiera empleados nuevos); y"]
["28C-Y","28CC1-G",null,null,null,null,"Sección 28.19(c)","(c) ignorar la posible mortalidad en-servicio de los empleados corrientes entre la fecha de presentación de reporte y la fecha en que los empleados se espera comiencen a recibir los beneficios posteriores al empleo (i.e. asumir que todos los empleados corrientes recibirán los beneficios posteriores al empleo). Sin embargo, todavía se necesita considerar la mortalidad después del servicio (i.e. expectativa de vida)."]
["28C-Y","28CC1-G",null,null,null,null,"Sección 28.19","La entidad que aprovecha las precedentes simplificaciones de la medición tiene no obstante que incluir en la medición de su obligación de beneficio definido  los beneficios tanto que han consolidado la concesión como los que no la han consolidado."]
["28C-Y","28CC1-G",null,null,null,null,"Q&A 2012/01 parágrafo  2","‘Costo o esfuerzo indebido’ de manera deliberado no es definido en la NIIF para PYMES, dado que dependería de las circunstancias específicas de la PYME y del juicio profesional de la administración en la valoración de los costos y beneficios. Si la cantidad del costo o esfuerzo es excesiva (indebida) necesariamente requiere consideración de cómo las decisiones económicas de los usuarios de los estados financieros podrían ser afectadas por la disponibilidad de la  información. La aplicación de un requerimiento resultaría en ‘costo o esfuerzo indebido’ a causa ya sea de su costo excesivo (e.g. si los honorarios de los valuadores son excesivos) o excesivos trabajos de los empleados en comparación con los beneficios que los usuarios de los estados financieros de la PYME recibirían de tener la información. La valoración de si un requerimiento resultará en ‘costo o esfuerzo indebido’ se debe basar en la información disponible en el momento de la transacción o evento acerca de los costos y benefcios del requerimiento. En cualquier medición subsiguiente,  el ‘costo o esfuerzo indebido’ se debe basar en la información disponible a la fecha de la medición subsiguiente (e.g. la fecha de presentación de reporte)."]
["28C-Y",null,null,null,null,null,"Sección 28.41(d)","(d) la fecha de la valuación actuarial comprensiva más reciente y, si no fue a la fecha de presentación de reporte, una descripción de los ajustes que fueron realizados para medir la obligación de beneficio definido a la fecha de presentación de reporte."]
["28C-Y",null,null,null,null,null,"Sección 28.41(e)","(e) la conciliación de los saldos de apertura y de cierre de la obligación de beneficio definido mostrando por separado los beneficios pagados y todos los otros   cambios."]
["28C-Y",null,null,null,null,null,"Sección 28.41(f)","(f) la conciliación de los saldos de apertura y de cierre del valor razonable de los activos del plan y los saldos de apertura y de cierre de cualquier derecho de reembolso reconocido como activo, mostrando por separado, si es aplicable:"]
["28C-Y",null,null,null,null,null,null,"(i) contribuciones;"]
["28C-Y",null,null,null,null,null,null,"(ii) beneficios pagados; y "]
["28C-Y",null,null,null,null,null,null,"(iii) otros cambios en los activos del plan."]
["28C-Y",null,null,null,null,null,"Sección 28.41(g)","(g) el costo total relacionado con los planes de beneficio definido del período, revelando por separado las cantidades"]
["28C-Y",null,null,null,null,null,null,"(i) reconocidas en utilidad o pérdida como un gasto, e"]
["28C-Y",null,null,null,null,null,null,"(ii) incluidas en el costo del activo."]
["28C-Y",null,null,null,null,null,"Sección 28.41(h)","(h) por cada clase principal de activos del plan, que tiene que incluir, pero no está limitada a, instrumentos de patrimonio, instrumentos de deuda, propiedad y todos los otros activos, el porcentaje o la cantidad de cada clase principal que constituye el valor razonable del total de los activos del plan a la fecha de presentación de reporte."]
["28C-Y",null,null,null,null,null,"Sección 28.41(i)","(i) las cantidades incluidas en el valor razonable de los activos del plan para:"]
["28C-Y",null,null,null,null,null,null,"(ii) cada clase de instrumento financieros propios de la entidad, y "]
["28C-Y",null,null,null,null,null,null,"(iii) cualquier propiedad ocupada por, u otros activos usados por, la entidad."]
["28C-Y",null,null,null,null,null,"Sección 28.41(j)","(j) el retorno actual en los activos del plan."]
["28C-Y",null,null,null,null,null,"Sección 28.41(k)","(k) los principales supuestos actuariales usados, incluyendo, cuando sea aplicable:"]
["28C-Y",null,null,null,null,null,null,"(i) las tasas de descuento;"]
["28C-Y",null,null,null,null,null,null,"(ii) las tasas de retorno esperadas en cualesquiera activos del plan por los períodos presentados en los estados financieros;"]
["28C-Y",null,null,null,null,null,null,"(iii) las tasas esperadas de los incrementos salariales;"]
["28C-Y",null,null,null,null,null,null,"(iv) las tasas de las tendencias de los costos médicos; y "]
["28C-Y",null,null,null,null,null,null,"(v) cualesquiera otros supuestos actuariales materiales usados."]
["28C-Y",null,null,null,null,null,null,"Planes de beneficio definido del grupo"]
["28C-Y",null,"28CC2",2,"28C",null,"Sección 28.41","Las conciliaciones contenidas en (e) y (f) arriba no necesitan ser presentadas para los períodos anteriores. La subsidiaria que reconoce y mide  el gasto de beneficios para empleados con base en la asignación razonable del gasto reconocido por el grupo (vea el parágrafo  28.38) tiene que, en sus estados financieros separados, describir su política para hacer la asignación y tiene que hacer las revelaciones contenidas en (a)–(k) arriba para el plan en su conjunto."]
["28C-Y","28CC2-G",null,null,null,null,"Sección 28.38","Nota:\nSi la entidad matriz proporciona beneficios a los empleados de una o más subsidiarias del grupo, y la matriz presenta estados financieros consolidados usando ya sea la NIIF para PYMES  o las NIIF plenas, a tales subsidiarias se les permite reconocer y medir el gasto por beneficios para empleados con base en la asignación razonable del gasto reconocido por el grupo."]
[null,null,null,null,null,null,null,"Beneficios posteriores al empleo - Otros beneficios de largo plazo"]
[null,null,"28D",1,"28D","28D",null,"¿La entidad participó en cualesquiera planes de beneficio definido por beneficios posteriores al empleo?","N/A"]
[null,null,null,null," ",null,null,"If Yes :"]
["28D-Y",null,null,null,"28D",null,"Sección 28.42","Por cada categoría de otros beneficios de largo plazo que la entidad le proporcione a sus empleados, la entidad  tiene que revelar la naturaleza del beneficio, la cantidad de su obligación y la extensión de la financiación a la fecha de presentación de reporte."]
[null,null,null,null,null,null,null,"Beneficios de terminación"]
[null,null,"28E",1,"28E","28E",null,"¿La entidad ofreció u otorgó cualesquiera beneficios de terminación?","N/A"]
[null,null,null,null," ",null,null,"If Yes :"]
["28E-Y",null,null,null,"28E",null,"Sección 28.43","Por cada categiría de beneficios de terminación que la entidad le proporcione a sus empleados or each category of termination benefits, la entidad tiene revelar la naturaleza del beneficio, su política de contabilidad, y la cantidad de su obligación, asi como la extensión de la financiación a la fecha de presentación de reporte."]
["28E-Y",null,null,null,"28E",null,"Sección 28.44","Cuando haya incertidumbre acerca del número de empleados que aceptará la oferta de beneficios de terminación, existe un pasivo contingente. La Sección 21 Provisiones y contingenciass requiere que la entidad revele información acerca de sus pasivos contingentes a menos que la posibilidad de la salidad de recursos en la liquidación sea remota."]

{"sheet":"IFS29P","index":29,"n_rows":39,"n_cols":10,"rows_kept":39,"cut":false,"hidden":false,"merged":[]}
["p/c","parent","level",null,null,"Index",null,null,null,"Yes"]
[null,null,null,null,null,"Sección 29","Impuestos a los ingresos",null,null,"No"]
[null,null,null,null,"PA","Referencia","Requerimiento de presentación/revelación",null,null,"N/A"]
[null,null,null,null,null,null,"Esta Sección de la lista de verificación aborda los requerimientos de presentación y revelación  de la Sección 29 que prescribe el tratamiento contable para los  Impuestos a los ingresos. ",null,null,"Guidance"]
[null,null,null,null,null,null,"Para orientación adicional, seleccione Show en la siguiente columna","Hide",null,"Show"]
["-G",null,null,null,null,"Sección 29.1 and 29.2","Para el propósito de esta NIIF, los impuestos a los ingresos incluyen todos los impuestos locales y domésticos que se basen en la utilidad sujeta a impuestos. Los impuestos a los ingresos también incluyen impuestos, tales como retenciones, que son pagables por una subsidiaria, asociada o negocio conjunto en las distribuciones a la entidad que reporta. Esta Sección cubre la contabilidad para los impuestos a los ingresos. Requiere que la entidad reconozca las consecuencias tributarias corrientes y futuras de las transacciones y otros eventos que hayan sido reconocidos en los estados financieros. Esas cantidades tributarias reconocidas coprenden los impuestos corrientes y los impuestos diferidos. Impuestos corrientes son los impuestos pagables (reembolsables) con relación a la utilidad sujeta a impuestos (pérdida tributaria) por el período corriente o por períodos pasados. Impuesto diferido es el impuesto pagable o recuperable en períodos futuros, generalmente como resultado de que la entidad recupere o liquide sus activos y pasivos por su valor en libros corrientes, y el efecto tributario del traslado de las pérdidas tributarias y los créditos tributarios actualmente no usados.",null,null,"Hide"]
["-G",null,null,null,null,null,"Parágrafos nuevos o enmendados efectivos por primera vez\n\nNinguno",null,null,"Yes"]
[null,null,null,"PA Group","PA","Referencia","Requerimiento de presentación/revelación","Yes / No / N/A","Comentarios","No"]
[null,null,null,null,null,null,"Presentacón",null,null,"Guidance"]
[null,null,null,null,null,null,"Asignación en ingresos comprensivos y patrimonio"]
[null,null,null,29,null,"Sección 29.27","La entidad tiene que reconocer los gastos por impuestos en el mismo componente del total de ingresos comprensivos (ie operaciones continuadas, operaciones descontinuadas, u otros ingresos comprensivos) o de patimonio como la transacción u otro evento que resultó en los gastos por impuestos.","N/A"]
[null,null,null,null,null,null,"Distinción corriente/no-corriente"]
[null,null,null,29,null,"Sección 29.28","Cuando la entidad presenta activos corrientes y no-corrientes, y pasivos corrientes y no-corrientes, como clasificaciones separadas en su estado de posición financiera, no puede clasificar ningún activo (pasivo) tributario diferido como activo (pasivo) corriente.","N/A"]
[null,null,null,null,null,null,"Compensación"]
[null,null,null,29,null,"Sección 29.29","La entidad tiene que compensar los activos por impuestos corrientes y los pasivos por impuestos corrientes, o compensar los activos tributarios diferidos y los pasivos tributarios diferidos, solo cuando:"]
[null,null,null,null,null,null,"(a) tiene un derecho legal de cumplimiento forzoso para establecer las cantidades y, ","N/A"]
[null,null,null,null,null,null,"(b) tiene la intención ya sea de liquidar sobre una base neta o realizar el activo y liquidar el pasivo simultáneamente.","N/A"]
[null,null,null,null,null,null,"Revelación"]
[null,null,null,null,null,"Sección 29.30","La entidad tiene que revelar información que les permita a los usuarios de sus estados financieros evaluar la naturaleza y el efecto financiero de las consecuencias tributarias corrientes y diferidas de las transacciones y otros eventos reconocidos.","N/A"]
[null,"29C1",1,29,null,"Sección 29.31","Los principales componentes de los gastos (ingresos) por impuestos se tienen que revelar por separado.","N/A"]
["29C1-G",null,null,null,null,"Sección 29.31","Nota: Los componentes de los gastos (ingresos) por impuestos pueden incluir:"]
["29C1-G",null,null,null,null,null,"a) gastos (ingresos) por impuestos corrientes;"]
["29C1-G",null,null,null,null,null,"b) cualesquiera ajustes reconocidos en el período por impuestos corrientes de períodos anteriores;"]
["29C1-G",null,null,null,null,null,"c) la cantidad de los gastos (ingresos) por impuestos diferidos relacionada con la originación y la reversa de diferencias temporales;"]
["29C1-G",null,null,null,null,null,"d) la cantidad de los gastos (ingresos) por impuestos diferidos relacionada con los cmabios en las tarifas tributarias o en la imposición de nuevas tasas;"]
["29C1-G",null,null,null,null,null,"(e) el efecto en los gastos por impuestos diferidos que surge del cambio en el efecto de los posibles resultados de una revisión por las autoridades tributarias."]
["29C1-G",null,null,null,null,null,"(f) ajustes a los gastos por impuestos diferidos que surgen de un cambio en la condición tributaria de la entidad o de sus accionistas."]
["29C1-G",null,null,null,null,null,"(g) cualquier cambio en la provisión por valuación reconocido contra activos tributarios diferidos."]
["29C1-G",null,null,null,null,null,"(h) la cantidad d elos gastos por impuestos relacionada con los cambios en políticas de contabilidad y errores (vea la Sección 10 Políticas de contabilidad, estimados y errores)."]
[null,null,null,29,null,null,"Lo siguiente también debe ser revelado por separado:"]
[null,null,null,null,null,"Sección 29.32(a)","(a) el agregado del impuesto corriente y diferido relacionado con los elementos que se reconocen como elementos de otros ingresos comprensivos.","N/A"]
[null,null,null,null,null,"Sección 29.32(b)","(b) una explicación de las diferencias importantes en las cantidades presentadas en el estado de ingresos comprensivos y las cantidades reportadas a las autoridades tributarias.","N/A"]
[null,null,null,null,null,"Sección 29.32(c)","(c) una explicación de los cambios en la(s) tarifa(s) tributaria(s) aplicable(s) comparada(s) con el período anterior de presentación de reporte.","N/A"]
[null,null,null,null,null,"Sección 29.32(d)","(d) por cada tipo de diferencia tamporaria y por cada tipo d epérdidas tributarias y créditos tributarios no utilizados:"]
[null,null,null,null,null,null,"(i) la cantidad de los pasivos tributarios diferidos, activos tributarios diferidos y provisiones por valuación al final del período de presentación de reporte, y","N/A"]
[null,null,null,null,null,null,"(ii) un análisis del cambio en pasivos tributarios diferidos, activos tributarios diferidos y provisiones por valuación durante el período.","N/A"]
[null,null,null,null,null,"Sección 29.32(e)","(e) la fecha de expiración, si la hay, de las diferencias temporarias, las pérdidas tributarias y los créditos tributarios no usados."]
[null,"29C2",1,null,null,"Sección 29.32(f)","(f) en las circunstancias que se describen en el parágrafo  29.25, una explicación d ela naturaleza de los potenciales  consecuencias de los impuestos a los ingresos que resultarían del pago de dividendos a sus accionistas.","N/A"]
["29C2-G",null,null,null,null,"Sección 29.25","Nota:\nEn algunas jurisdicciones, los impuestos a los ingresos son pagables a una tarifa más alta o más baja si parte o toda la utilidad o las ganancias retenidas es pagada como dividendo a los accionistas de la entidad. En otras jurisdicciones, los impuestos a los ingresos pueden ser reembolsables o pagables si parte de o toda la utilidad o las ganancias retenidas es pagada como dividendos a los accionistas de la entidad. En ambas circunstancias, la entidad tiene que medir los impuestos corrientes y diferidos a la tarifa tributaria aplicable a la sutilidades no distribuidas hasta que  la entidad recognises el pasivo a pagar como dividendo. Cuando la entidad reconoce el pasivo a pagar como dividendo, tiene que reconocer el pasivo (activo) tributario o diferido resultante, y los gastos (ingresos) por impuestos relacionados."]

{"sheet":"IFS30P","index":30,"n_rows":29,"n_cols":11,"rows_kept":29,"cut":false,"hidden":false,"merged":[]}
["p/c",null,"parent","level",null,null,"Index",null,null,"PresentTQSummary","Yes"]
[null,null,null,null,null,null,"Sección 30","Conversión de moneda extranjera",null,null,"No"]
[null,null,null,null,null,"PA","Referencia","Requerimiento de presentación/revelación",null,null,"N/A"]
[null,null,null,null,null,null,null,"Esta Sección de la lista de verificación aborda los requerimientos de presentación y revelación  de la Sección 30.  Esta Sección prescribe cómo incluir las transacciones en moneda extranjera y las operaciones en el extranjero en los estados financieros de la entidad y cómo trasladar los estados financieros en la moneda de presentación. Los principales problemas son: la determinación del método de inclusión de las transacciones en moneda extranjera y las operaciones en el extranjero en los estados financieros de la entidad, cómo trasladar los estados financieros en la moneda de presentacióny la selección de la tasa de cambio apropiada, y cómo reportar en los estados financieros los efectos de los cambios en las tasas de cambio.  La contabilidad para los instrumentos   financieros denominados en una moneda extranjera y la contabilidad de cobertura de los elemenos en moneda extranjera se tratan en la Sección 11 instrumentos financieros básicos y en la  Sección 12 Otros problemas relacionados con los instrumentos financieros.",null,null,"Guidance"]
[null,null,null,null,null,null,null,"Para orientación adicional, seleccione Show en la siguiente columna","Hide",null,"Show"]
["-G",null,null,null,null,null,null,"La Sección 30 usa el término 'moneda funcional', definida como “la moneda del entorno económico primario en el cual la entidad opera”, para determinar la medición de las transacciones y saldos en el extranjero en los estados financieros de la entidad. Si bien la entidad normalmente presenta sus estados financieros en la misma moneda que su moneda funcional, puede escoger presentar sus estados financieros en una moneda diferente. La moneda seleccionada por la entidad en la presentación de sus estados financieros se denomina la “moneda de presentación”.",null,null,"Hide"]
["-G",null,null,null,null,null,null,"Parágrafos nuevos o enmendados efectivos por primera vez\n\nNinguno",null,null,"Yes"]
[null,null,null,null,"PA Group","PA","Referencia","Requerimiento de presentación/revelación","Yes / No / N/A","Comentarios","No"]
[null,null,null,null,"30A","30A",null,"La entidad :",null,null,"Guidance"]
[null,null,"30AM",1,null,null,null,"- tuvo transacciones o saldos en monedas extranjeras;","N/A"]
[null,null,"30AN",1,null,null,null,"- tuvo cualesquiera operaciones en el extranjero; o","N/A"]
[null,null,"30AO",1,null,null,null,"- presentó sus estados financieros en una moneda extranjera?","N/A"]
[null,null,null,null," ",null,null,"If Yes :"]
["OR,30AM-Y,30AN-Y,30AO-Y",null,null,null,null,null,null,"Revelación"]
["OR,30AM-Y,30AN-Y,30AO-Y",null,null,null,null,null,null,"La entidad tiene que revelar lo siguiente:"]
["OR,30AM-Y,30AN-Y,30AO-Y",null,null,null,"30A",null,"Sección 30.25(a)","(a) la cantidad de las diferencias de cambio reconocida en utilidad o pérdida durante el período, excepto para las que surgen en instrumentos financieros medidos a valor razonable a través de utilidad o pérdida de acuerdo con la Seccións 11 and 12."]
["OR,30AM-Y,30AN-Y,30AO-Y",null,null,null,"30A",null,"Sección 30.25(b)","(b) la cantidad de las diferencias de cambio que suurgen durante el período y clasificadas en un componente separado de patrimonio al final del período."]
["OR,30AM-Y,30AN-Y,30AO-Y",null,"30A1",2,"30A-1",null,null,"¿La entidad tuvo una moneda de presentación que es diferente de su moneda funcional?"]
["OR,30AM-Y,30AN-Y,30AO-Y","30A1-G",null,null,null,null,"Sección 30.24","Nota: En los parágrafos 30.26 y 30.27, las referencias a la ‘moneda funcional’ aplican, en el caso de un grupo, a la moneda funcional de la matriz."]
[null,null,null,null," ",null,null,"If Yes :"]
["OR,30AM-Y,30AN-Y,30AO-Y","30A1-Y",null,null,"30A-1",null,"Sección 30.26","La entidad tiene que revelar la moneda en la cual se presentan los estados financieros."]
["OR,30AM-Y,30AN-Y,30AO-Y","30A1-Y",null,null,"30A-1",null,"Sección 30.26","Cuando la moneda de presentación es diferente de la moneda funcional, la entidad tiene que:"]
["OR,30AM-Y,30AN-Y,30AO-Y","30A1-Y",null,null,null,null,null,"(a) establecer ese hecho, "]
["OR,30AM-Y,30AN-Y,30AO-Y","30A1-Y",null,null,null,null,null,"(b) revelar la moneda funcional y "]
["OR,30AM-Y,30AN-Y,30AO-Y","30A1-Y",null,null,null,null,null,"(c) la razón para usar una diferente moneda de presentación."]
["OR,30AM-Y,30AN-Y,30AO-Y",null,"30A2",2,"30A-2",null,null,"¿Ha habido un cambio en la moneda funcional de ya sea la entidad que reporta o una importante operación en el extranjero?"]
["OR,30AM-Y,30AN-Y,30AO-Y","30A2-G",null,null,null,null,"Sección 30.24","Nota: En los parágrafos 30.26 y 30.27, las referencias a la ‘moneda funcional’ aplican, en el caso de un grupo, a la moneda funcional de la matriz."]
[null,null,null,null," ",null,null,"If Yes :"]
["OR,30AM-Y,30AN-Y,30AO-Y","30A2-Y",null,null,"30A-2",null,"Sección 30.27","Cuando hay un cambio en la moneda funcional de ya sea la entidad que reporta o de una importante operación en el extranjero, la entidad tiene que revelar ese hecho y la razón para el cambio en la moneda funcional."]

{"sheet":"IFS31P","index":31,"n_rows":18,"n_cols":11,"rows_kept":18,"cut":false,"hidden":false,"merged":[]}
["p/c",null,"parent","level",null,null,"Index",null,null,"PresentTQSummary","Yes"]
[null,null,null,null,null,null,"Sección 31","Híperinflación",null,null,"No"]
[null,null,null,null,null,"PA","Referencia","Requerimiento de presentación/revelación",null,null,"N/A"]
[null,null,null,null,null,null,null,"Esta Sección de la lista de verificación aborda los requerimientos de presentación y revelación  de la Sección 31 que es aplicada a los estados financieros, incluyendo los estados financieros consolidados, de cualquier entidad cuya moneda funcional es la moneda de una economía híperinflacionaria. Requiere que tal entidad prepare estados financieros que hayan sido ajustados por los efectos de la híperinflación. El estándar no establece una tasa absoluta  en la cual se considera que surge la híperinflación  – pero cita una serie de características del entorno económico del país que señala la presencia de híperinflación. Para detalles refiérase al texto de la Sección.",null,null,"Guidance"]
[null,null,null,null,null,null,null,"Para orientación adicional, seleccione \"Show\" en la siguiente columna","Hide",null,"Show"]
["-G",null,null,null," ",null,null,"Requerimientos de presentación/revelación, nuevos o enmendados, efectivos por primera vez\n\nNinguno\n",null,null,"Hide"]
[null,null,null,null,"PA Group","PA","Referencia","Requerimiento de presentación/revelación","Yes / No / N/A","Comentarios","Yes"]
[null,null,31,1,"31A","31A",null,"¿La entidad matriz, o cualquiera de sus subsidiarias, asociadas o negocios conjuntos en los estados financieros consolidados (si es aplicable), tenía una moneda funcional que sea la moneda de una economía híperinflaciónary?","N/A",null,"No"]
[null,null,null,null," ",null,null,"If Yes :",null,null,"Guidance"]
["31-Y",null,null,null,null,null,null,"Ganancia o pérdida en la posición monetaria neta"]
["31-Y",null,"31C1",2,31,null,"Sección 31.12","La entidad tiene que incluir en utilidad o pérdida la ganancia o pérdida en la posición monetaria neta."]
["31-Y","31C1-G",null,null,null,null,"Sección 31.13","Nota: \n\nEn un período de inflación, la entidad que tiene un exceso de activos monetarios sobre  los pasivos monetarios pierde el poder de compra, y la entidad con un exceso de pasivos onetarios sobre los activos monetarios gana poder de compra, en la extensión en que los activos y pasivos no estén vinculados al nivel de previos. La entidad tiene que compensar el ajuste a esos activos y pasivos vinculados por acuerdo a los cambios en los precios hechos contra la ganancia o pérdida en la posición monetaria neta."]
["31-Y","31C1-G",null,null,null,null,"Sección 31.11","La ganancia o pérdida también puede ser estimada  mediante la aplicación del cambio en el índice general de precios al promedio ponderado para el período de la diferencia entre los activos monetarios y los pasivos monetarios."]
["31-Y",null,null,null," ",null,null,"Otras revelaciones"]
["31-Y",null,null,null," ",null,null,"Se tienen que hacer las siguientes revelaciones:"]
["31-Y",null,null,null,31,null,"Sección 31.15(a)","(a) el hecho de que los estados financieros y otros datos de período anterior han sido re-emitidos por los cambios en el poder general de compra de la moneda funcional."]
["31-Y",null,null,null,31,null,"Sección 31.15(b)","(b) la identidad y el nivel del índice de precios a la fecha de presentación de reporte y los cambios durante el período corriente de presentación de reporte y en el período anterior de presentación de reporte."]
["31-Y",null,null,null,31,null,"Sección 31.15(c)","(c) la cantidad de la ganancia o pérdida en los elementos monetarios."]

{"sheet":"IFS32P","index":32,"n_rows":38,"n_cols":11,"rows_kept":38,"cut":false,"hidden":false,"merged":[]}
["p/c",null,"parent","level",null,null,"Index",null,null,"PresentTQSummary","Yes"]
[null,null,null,null,null,null,"Sección 32","Eventos ocurridos después del final del período de presentación de reporte",null,null,"No"]
[null,null,null,null,null,"PA","Referencia","Requerimiento de presentación/revelación",null,null,"N/A"]
[null,null,null,null,null,null,null,"Esta Sección de la lista de verificación aborda los requerimientos de presentación y revelación  de la Sección 32, que define los eventos ocurridos después del final del período de presentación de reporte y establece los principios para el reconocimiento, la medición y la revelación de esos eventos. También requiere las revelaciones que la entidad debe dar acerca de la fecha cuando los estados financieros fueron autorizados para emisión. El problema principal es determinar si un evento ocurrido después del período de presentación de reporte es un evento de ajuste o un evento de no ajuste.\n",null,null,"Guidance"]
[null,null,null,null,null,null,null,"Para orientación adicional, seleccione Show en la siguiente columna","Hide",null,"Show"]
["-G",null,null,null,null,null,null,"Los eventos ocurridos después del período d epresentación de reporte se definen como los eventos, tanto favorables como desfavorables, que ocurren entre  el final del período de presentación de reporte y la fecha cuando los estados financieros son autorizados para emisión. La Sección 32 distingue dos tipos de eventos:",null,null,"Hide"]
["-G",null,null,null,null,null,null,"•   eventos de ajuste – los que proporcionan evidencia de condiciones que existían al final del período de presentación de reporte; y",null,null,"Yes"]
["-G",null,null,null,null,null,null,"•   eventos de no-ajuste – los que son indicadores de condiciones que surgen luego del período de presentación de reporte.",null,null,"No"]
["-G",null,null,null,null,null,null,"Requerimientos de presentación/revelación, nuevos o enmendados, efectivos por primera vez\n\nNinguno\n",null,null,"Guidance"]
[null,null,null,null,"PA Group","PA","Referencia","Requerimiento de presentación/revelación","Yes / No / N/A","Comentarios"]
[null,null,null,null,null,null,null,"Dividendos"]
[null,null,"32A",1,"32A","32A",null,"¿Hay dividendos declarados (i.e. los dividendos están autorizados de la manera apropiada y ya no están a la discreción de la entidad) después del período de presentación de reporte pero antes que los estados financieros sean autorizados para emisión?","N/A"]
[null,null,null,null," ",null,null,"If Yes :"]
["32A-Y",null,null,null,"32A",null,"Sección 32.8","SI la entidad declara dividendos a los tenedores de sus instrumentos de patrimonio después del final del período de presentación de reporte, la entidad tiene que reconocer esos dividendos como un pasivo al final del período de presentación de reporte. La cantidad del dividendo puede ser presentada como un componente segregado de ganancias retenidas al final del período de presentación de reporte."]
[null,null,null,null,null,null,null,"Fecha de autorización de la emisión"]
[null,null,null,null,32,null,"Sección 32.9","La entidad tiene que revelar la fecha cuando los estados financieros fueron autorizados para emisión y quién dio esa autorización.","No"]
[null,null,null,null,32,null,"Sección 32.9","Si los propietarios de la entidad u otros tienen el poder para enmendar los estados financieros luego de la emisión, la entidad tiene que revelar ese hecho.","N/A"]
[null,null,null,null,null,null,null,"Actualización de las revelaciones acerca de las condiciones al final del período de presentación de reporte"]
[null,null,"32B",1,"32B","32B",null,"¿La entidad recibió información después del período de presentación de reporte acerca de las condiciones que existían al final del período de presentación de reporte?","N/A"]
[null,null,null,null," ",null,null,"If Yes :"]
["32B-Y",null,null,null,"32B",null,"Sección 32.4","La entidad tiene que ajustar las cantidades reconocidas en sus estados financieros, incluyendo las revelaciones relacionadas, para reflejar los eventos de ajuste  ocurridos después del final del período de presentación de reporte."]
[null,null,null,null,null,null,null,"Eventos de no-ajuste ocurridos después del período de presentación de reporte"]
[null,null,"32C",1,"32C","32C",null,"¿Cualesquiera eventos de no-ajuste han ocurrido después del período de presentación de reporte pero antes que los estados financieros sean autorizados para emisión?","N/A"]
[null,null,null,null," ",null,null,"If Yes :"]
["32C-Y",null,"32C1",2,"32C",null,null,"La entidad tiene que revelar lo siguiente por cada categoría de evento de no-ajuste después del final del período de presentación de reporte:"]
["32C-Y",null,null,null,null,null,"Sección 32.10(a)","(a) la naturaleza del evento, y"]
["32C-Y",null,null,null,null,null,"Sección 32.10(b)","(b) un estimado de su efecto financiero, o una declaración de que tal estimado no se puede elaborar."]
["32C-Y","32C1-G",null,null,null,null,null,"Los siguientes son ejemplos de eventos de no-ajuste ocurridos después del final del período de presentación de reporte que generalmente resultarían en   revelación; las revelaciones reflejarán la información que se vuelve conocida después del final del período de presentación de reporte pero antes que los  estados financieros sean autorizados para emisión:"]
["32C-Y","32C1-G",null,null,null,null,"Sección 32.11(a)","(a) una combinación de negocios importante o la disposición de una subsidiaria principal."]
["32C-Y","32C1-G",null,null,null,null,"Sección 32.11(b)","(b) anuncio de un plan para descontinuar una operación."]
["32C-Y","32C1-G",null,null,null,null,"Sección 32.11(c)","(c) compras importantes de activos, disposiciones o planes para disponer de activos, o expropiación de activos importantes por el gobierno."]
["32C-Y","32C1-G",null,null,null,null,"Sección 32.11(d)","(d) la destrucción por incendio de una planta de producción principal."]
["32C-Y","32C1-G",null,null,null,null,"Sección 32.11(e)","(e) el anuncio, o el comienzo de la implementación, de una reestructuración importante."]
["32C-Y","32C1-G",null,null,null,null,"Sección 32.11(f)","(f) problemas de recompra de deuda o de instrumentos de patrimonio de la entidad."]
["32C-Y","32C1-G",null,null,null,null,"Sección 32.11(g)","(g) cambios anormalmente grandes en los precios de los activos o en las tasas de cambio."]
["32C-Y","32C1-G",null,null,null,null,"Sección 32.11(h)","(h) cambios en las tarifas tributarias o leyes tributarias promulgadas o anunciadas que tengan un efecto importante en los activos y pasivos tributarios corrientes y diferidos."]
["32C-Y","32C1-G",null,null,null,null,"Sección 32.11(i)","(i) participar en compromisos importantes o en pasivos contingentes, por ejemplo, mediante la emisión de garantías importantes."]
["32C-Y","32C1-G",null,null,null,null,"Sección 32.11(j)","(j) comienzo de un litigio importante que surja de eventos que ocurrieron después del final del período de presentación de reporte."]

{"sheet":"IFS33P","index":33,"n_rows":62,"n_cols":11,"rows_kept":62,"cut":false,"hidden":false,"merged":[]}
["p/c","p/c","parent","level",null,null,"Index",null,null,"PresentTQSummary","Yes"]
[null,null,null,null,null,null,"Sección 33","Revelaciones de partes relacionadas",null,null,"No"]
[null,null,null,null,null,"PA","Referencia","Requerimiento de presentación/revelación",null,null,"N/A"]
[null,null,null,null,null,null,null,"Esta Sección de la lista de verificación aborda los requerimientos de presentación y revelación de la identificación de las partes relacionadas y de las transacciones con partes relacionadas. El problema principal es asegurar que todas las partes relacionadas sean identificadas. El objetivo de la Sección 33 es asegurar que los estados financieros de la entidad contienen las revelaciones necesarias para llamar la atención sobre la posibilidad de que su posición financiera y su utilidad o pérdida puedan haber sido afectadas por la existencia de partes relacionadas y por las transacciones y saldos pendientes con tales partes.",null,null,"Guidance"]
[null,null,null,null,null,null,null,"Para orientación adicional, seleccione Show en la siguiente columna","Hide",null,"Show"]
["-G",null,null,null,null,null,null,"Requerimientos de presentación/revelación, nuevos o enmendados, efectivos por primera vez\n\nNinguno\n",null,null,"Hide"]
[null,null,null,null,"PA Group","PA","Referencia","Requerimiento de presentación/revelación","Yes / No / N/A","Comentarios","Yes"]
[null,null,null,null,null,null,null,"Revelaciones de partes relacionadas",null,null,"No"]
[null,null,null,null,null,null,null,"Todas las entidades",null,null,"Guidance"]
[null,null,"33A",1,"33A","33A",null,"¿La entidad es una subsidiaria de otra entidad?","N/A"]
[null,null,null,null," ",null,null,"If Yes :"]
["33A-Y",null,"33AC1",2,"33A",null,"Sección 33.5","La entidad tiene que revelar el nombre de su matriz y, si es diferente, la parte última controlante."]
["33A-Y","33AC1-G",null,null,null,null,"Sección 33.5","Nota:  Las relaciones entre la matriz y sus subsidiarias tienen que ser reveladas independiente de si ha habido transacciones con partes relacionadas."]
["33A-Y",null,null,null,"33A",null,"Sección 33.5","Si ni la matriz de la entidad ni la parte última controlante de la entidad produce estados financieros disponibles para uso público, el nombre de la siguiente matriz más importante que lo haga (si la hay) también tiene que ser revelado."]
[null,null,"33B",1,"33B","33B",null,"¿La entidad tenía cualesquiera transacciones con partes relacionadas y saldos pendientes con partes relacionadas, incluyendo la compensación de su personal clave de administración?","N/A"]
[null,null,null,null," ",null,null,"If Yes :"]
["33B-Y",null,null,null,null,null,null,"Revelación de la compensación del personal clave de la administración"]
["33B-Y",null,"33BC1",2,"33B",null,"Sección 33.7","La entidad tiene que revelar el total de la compensación al personal clave de la administración."]
["33B-Y","33BC1-G",null,null,null,null,"Sección 33.6","Personal clave de administración son las personas que tienen autoridad y responsabilidad por la planeación, la dirección y el control de las actividades de la entidad, directa o indirectamente, incluyendo cualquier director (sea ejecutivo u otro) de esa entidad. La compensación incluye todos los beneficios para empleados (tal y como se define en la Sección 28 Beneficios para empleados) incluyendo los que son en la forma de pago basado-en-acciones (vea la Sección 26 Pago basado-en-acciones). Los beneficios para empleados incluyen todas las formas de consideración pagada, pro pagar o proporcionada por la entidad, o a nombre dela entidad (eg por su matriz o por un accionista), a cambio por servicios prestados a la entidad. También incluye tal consideración pagada a nombre de la matriz de la entidad  con relación a bienes o servicios proporcionados a la entidad."]
["33B-Y",null,null,null,null,null,null,"Identificación de las transacciones con partes relacionadas"]
["33B-Y",null,null,null,"33B",null,"Sección 33.8","Una transacción con parte relacionada es la transferencia de recursos, servicios u obligaciones entre la entidad que reporta y una parte relacionada, independiente de si se carga un precio. Los ejemplos de transacciones con partes relacionadas que son comunes para las PYMES incluyen, pero no están limitadas a:"]
["33B-Y",null,null,null,null,null,"Sección 33.8(a)","(a) transacciones entre la entidad y su(s) propietario(s) principal(es)."]
["33B-Y",null,null,null,null,null,"Sección 33.8(b)","(b) transacciones entre la entidad y otra entidad cuando ambas entidades están bajo el control común de una sola entidad o persona."]
["33B-Y",null,null,null,null,null,"Sección 33.8(c)","(c) transacciones en las cuales la entidad o persona que controla la entidad que reporta incurre en gastos directamente que de otra manera habrían sido asumidos por la entidad que reporta."]
["33B-Y",null,null,null,null,null,null,"Revelación de las transacciones con partes relacionadas"]
["33B-Y",null,null,null,"33B",null,"Sección 33.9","Si la entidad tiene transacciones con partes relacionadas, tiene que revelar la naturaleza de la relación con la parte relacionada así como también información acerca de las transacciones, saldos pendientes y compromisos necesaria para el entendimiento del efecto potencial de la relación sobre los estados financieros. Esos requerimientos de revelación son adicionales a los requerimientos contenidos en el parágrafo  33.7 para revelar la compensación del personal clave de la administración. Como mínimo, las revelaciones tienen que incluir:"]
["33B-Y",null,null,null,null,null,"Sección 33.9(a)","(a) la cantidad de las transacciones."]
["33B-Y",null,null,null,null,null,"Sección 33.9(b)","(b) la cantidad de los saldos pendientes, y:"]
["33B-Y",null,null,null,null,null,null,"(i) sus términos y condiciones, incluyendo si están asegurados, la naturaleza de la consideración a ser proporcionada en la liquidación, y"]
["33B-Y",null,null,null,null,null,null,"(ii) detalles de cualesquiera garantías dadas o recibidas."]
["33B-Y",null,null,null,null,null,"Sección 33.9(c)","(c) Provisiones por cuentas por cobrar relacionadas no recaudables con la cantidad de los saldos pendientes."]
["33B-Y",null,null,null,null,null,"Sección 33.9(d)","(d) el gasto reconocido durante el período con relación a las deudas malas o de dudoso recaudo provenientes de partes relacionadas."]
["33B-Y",null,null,null,"33B",null,"Sección 33.9","Tales transacciones podrían incluir compras, ventas, o transferencias de bienes o servicios; arrendamientos; garantías; y liquidaciones por la entidad a nombre de la parte relacionada o vice versa."]
["33B-Y",null,null,null,null,null,null,"Categorías - Revelación de las transacciones con partes relacionadas"]
["33B-Y",null,null,null,"33B",null,null,"La entidad tiene que hacer las revelaciones requeridas por el parágrafo  33.9, haciéndolo por separado por cada una de las categorías siguientes:"]
["33B-Y",null,null,null,null,null,"Sección 33.10(a)","(a) entidades con control, control conjunto o influencia importante sobre la entidad."]
["33B-Y",null,null,null,null,null,"Sección 33.10(b)","(b) entidades sobre las cuales la entidad tiene control, control conjunto o influencia importante."]
["33B-Y",null,null,null,null,null,"Sección 33.10(c)","(c) personal clave de la administración de la entidad o de su matriz (en el agregado)."]
["33B-Y",null,null,null,null,null,"Sección 33.10(d)","(d) otras partes relacionadas."]
["33B-Y",null,null,null,null,null,null,"Ejemplos de transacciones con partes relacionadas revelables"]
["33B-Y",null,null,null,"33B",null,null,"Los siguientes son ejemplos de transacciones que se tienen que revelar si son con una parte relacionada:"]
["33B-Y",null,null,null,null,null,"Sección 33.12(a)","(a) compras o ventas de bienes (terminados o no terminados)."]
["33B-Y",null,null,null,null,null,"Sección 33.12(b)","(b) compras o ventas de propiedad y otros activos."]
["33B-Y",null,null,null,null,null,"Sección 33.12(c)","c) prestación o recepción de servicios."]
["33B-Y",null,null,null,null,null,"Sección 33.12(d)","(d) arrendamientos."]
["33B-Y",null,null,null,null,null,"Sección 33.12(e)","(e) transferencias de investigación y desarrollo."]
["33B-Y",null,null,null,null,null,"Sección 33.12(f)","(f) transferencias según acuerdos de licencia."]
["33B-Y",null,null,null,null,null,"Sección 33.12(g)","(g) transferencias según acuerdos de financiación (incluyen préstamos y contribuciones de patrimonio en efectivo o en especie)."]
["33B-Y",null,null,null,null,null,"Sección 33.12(h)","(h) provisión de garantías o de colateral."]
["33B-Y",null,null,null,null,null,"Sección 33.12(i)","(i) liquidación de pasivos a nombre de la entidad o por la entidad a nombre de otra parte."]
["33B-Y",null,null,null,null,null,"Sección 33.12(j)","(j) participación por la matriz o subsidiaria en un plan de beneficio definido que comparte los riesgos entre las entidades del grupo."]
["33B-Y",null,null,null,null,null,null,"Consideraciones generales"]
["33B-Y",null,null,null,"33B",null,"Sección 33.14","La entidad puede revelar en el agregado elementos de naturaleza similar excepto cuando la revelación separada sea necesaria para el entendimiento de los efectos que las transacciones con partes relacionadas tengan en los estados financieros de la entidad."]
["33B-Y",null,null,null,"33B",null,"Sección 33.13","La entidad no puede establecer que las transacciones con partes relacionadas fueron hechas en términos equivalentes a los que prevalecen en las transacciones en condiciones iguales a menos que tales términos se puedan sustentar."]
[null,null,null,null,null,null,null,"Entidades relacionadas con el gobierno"]
[null,null,"33C",1,"33C","33C",null,"¿La entidad  está exenta de los requerimientos de revelación de transacciones con partes relacionadas del gobierno?","N/A"]
[null,null,null,null," ",null,null,"If Yes :"]
["33C-Y",null,"33C1",2,"33C",null,null,"La entidad está exenta de los requerimientos de revelación del parágrafo  33.9 en relación con:"]
["33C-Y",null,null,null,null,null,"Sección 33.11(a)","(a) un estado (un gobierno nacional, regional o local) que tiene control, control conjunto o influencia importante sobre la entidad que reporta, y"]
["33C-Y",null,null,null,null,null,"Sección 33.11(b)","(b) otra entidad que sea una parte relacionada porque el mismo estado tiene control, control conjunto o influencia importante sobre tanto la entidad que reporta como sobre la otra entidad."]
["33C-Y","33C1-G",null,null,null,null,"Sección 33.6","Personal clave de administración son las personas que tienen autoridad y responsabilidad por la planeación, la dirección y el control de las actividades de la entidad, directa o indirectamente, incluyendo cualquier director (sea ejecutivo u otro) de esa entidad. La compensación incluye todos los beneficios para empleados (tal y como se define en la Sección 28 Beneficios para empleados) incluyendo los que son en la forma de pago basado-en-acciones (vea la Sección 26 Pago basado-en-acciones). Los beneficios para empleados incluyen todas las formas de consideración pagada, pro pagar o proporcionada por la entidad, o a nombre dela entidad (eg por su matriz o por un accionista), a cambio por servicios prestados a la entidad. También incluye tal consideración pagada a nombre de la matriz de la entidad  con relación a bienes o servicios proporcionados a la entidad."]
["33C-Y","33C1-G",null,null,null,null,"Sección 33.11","Sin embargo, la entidad todavía tiene que revelar la relación matriz-subsidiaria tal y como es requerido por el parágrafo 33.5."]

{"sheet":"IFS34P","index":34,"n_rows":40,"n_cols":11,"rows_kept":40,"cut":false,"hidden":false,"merged":[]}
[null,null,"parent","level",null,null,"Index",null,null,"PresentTQSummary","Yes"]
[null,null,null,null,null,null,"Sección 34","Actividades especializadas",null,null,"No"]
[null,null,null,null,null,"PA","Referencia","Requerimiento de presentación/revelación",null,null,"N/A"]
[null,null,null,null,null,null,null,"Esta Sección de la lista de verificación aborda los requerimientos de presentación y revelación  de la Sección 34, que proporciona orientación sobre la información financiera de las PYMES que participan en tres tipos de actividades especializadas: agricultura, actividades extractivas y concesiones de servicios.",null,null,"Guidance"]
[null,null,null,null,null,null,null,"Para orientación adicional, seleccione Show en la siguiente columna","Hide",null,"Show"]
["-G",null,null,null,null,null,"Sección 34.11","La entidad que usa esta NIIF y que participa en la explotación, evaluación o extracción de recursos minerales (actividades extractivas) tiene que contabilizar el desembolso en la adquisición o desarrollo de activos tangibles o intangibles para uso en las actividades extracticas haciéndolo mediante la aplicación de la Sección 17 Propiedad, planta y equipo y de la Sección 18 Activos intangibles diferentes a plusvalía, respectivamente. Cuando la entidad tiene la obligación de desmantelar o remover un elemento, o de restaurar el sitio, tales obligaciones y costos se contabilizan de acuerdo con la Sección 17 y la Sección 21 Provisiones y contingencias.",null,null,"Hide"]
[null,null,null,null,"PA Group","PA","Referencia","Requerimiento de presentación/revelación","Yes / No / N/A","Comentarios"]
[null,null,null,null,null,null,null,"Agricultura"]
[null,null,"34A",1,"34A","34A",null,"¿La entidad:\n- operó en actividades agrícolas o de cultivo con relación a plantas o animales vivientes; o\n- poseyó o controló cualesquiera activos biológicos?","N/A"]
[null,null,null,null," ",null,null,"If Yes :"]
["34A-Y",null,"34A1",2,"34A-1",null,null,"¿La entidad  mide los activos biológicos a valor razonable ?"]
["34A-Y","34A1-G",null,null,null,null,"Sección 34.2","Nota: La entidad que use esta NIIF y que participe en actividad agrícola tiene que determinar su política de contabilidad para cada clase de sus activos biológicos tal y como sigue:\n(a) la entidad tiene que usar el modelo del valor razonable para los activos biológicos para los cuales el valor razonable es fácilmente determinable sin costo o esfuerzo indebido.\n(b) la entidad tiene que usar el modelo del costo para todos los otros activos biológicos."]
[null,null,null,null," ",null,null,"If Yes :"]
["34A-Y","34A1-Y",null,null,"34A-1",null,null," Revelaciones – Modelo del valor razonable"]
["34A-Y","34A1-Y",null,null,"34A-1",null,null,"La entidad tiene que revelar lo siguiente con relación a sus activos biológicos medidos a valor razonable:"]
["34A-Y","34A1-Y",null,null,"34A-1",null,"Sección 34.7(a)","(a) una descripción de cada clase de sus activos biológicos."]
["34A-Y","34A1-Y",null,null,"34A-1",null,"Sección 34.7(b)","(b) los métodos y supuestos importantes aplicados en la determinación del valor razonable de cada categoría de producción agrícola en el punto de cosecha y de cada categoría de activos biológicos."]
["34A-Y","34A1-Y",null,null,"34A-1",null,"Sección 34.7(c)","(c) la conciliación de los cambios en el valor en libros de los activos biológicos entre el comienzo y el final del período corriente. La conciliación tiene que incluir:"]
["34A-Y","34A1-Y",null,null,"34A-1",null,null,"(i) la ganancia o pérdida que surge de los cambios en el valor razonable menos los costos de venta."]
["34A-Y","34A1-Y",null,null,"34A-1",null,null,"(ii) los incrementos resultantes de las compras."]
["34A-Y","34A1-Y",null,null,"34A-1",null,null,"(iii) las disminuciones resultantes de la cosecha."]
["34A-Y","34A1-Y",null,null,"34A-1",null,null,"(iv) los incrementos resultantes de combinaciones de negocios."]
["34A-Y","34A1-Y",null,null,"34A-1",null,null,"(v) las diferencias de cambio netas en la conversión de los estados financieros a una moneda diferente de presentación, y de la conversión de una operación en el extranjero en la moneda de presentación de la entidad que reporta."]
["34A-Y","34A1-Y",null,null,"34A-1",null,null,"(vi) otros cambios."]
["34A-Y",null,"34A2",2,"34A-2",null,null,"¿La entidad  mide los activos biológicos al costo?"]
["34A-Y","34A2-G",null,null,null,null,"Sección 34.2","Nota: La entidad que usa esta NIIF y que participa en actividad agrícola tiene que determinar su política de contabilidad por cada clase de sus activos biológicos tal y como sigue:\n(a) la entidad tiene que usar el modelo del valor razonable para los activos biológicos para los cuales el valor razonable es fácilmente determinable sin costo o esfuerzo indebido.\n(b) la entidad tiene que usar el modelo del costo para todos los otros activos biológicos."]
[null,null,null,null," ",null,null,"If Yes :"]
["34A-Y","34A2-Y",null,null,"34A-2",null,null," Revelaciones – Modelo del costo"]
["34A-Y","34A2-Y",null,null,"34A-2",null,null,"La entidad tiene que revelar lo siguiente con relación a sus activos biológicos medidos usando el modelo del costo:"]
["34A-Y","34A2-Y",null,null,"34A-2",null,"Sección 34.10(a)","(a) una descripción de cada clase de sus activos biológicos."]
["34A-Y","34A2-Y",null,null,"34A-2",null,"Sección 34.10(b)","(b) una explicación d epor qué el valor razonable no se puede medir confiablemente."]
["34A-Y","34A2-Y",null,null,"34A-2",null,"Sección 34.10(c)","(c) el método de depreciación usado."]
["34A-Y","34A2-Y",null,null,"34A-2",null,"Sección 34.10(d)","(d) las vidas útiles o las tasas de depreciación usadas."]
["34A-Y","34A2-Y",null,null,"34A-2",null,"Sección 34.10(e)","(e) el valor en libros bruto y la depreciación acumulada (agregada con las pérdidas por deterioro acumuladas) al comienzo y al final del período."]
[null,null,null,null,"34B",null,null,"Acuerdos de servicios de concesión"]
[null,null,"34B",1,"34B","34B",null,"¿La entidad tuvo cualesquiera acuerdos de servicios de concesión?","N/A"]
["34B-G",null,null,null,null,null,"Sección 34.14","Contabilidad - Modelo del activo financiero\nEl operador tiene que reconocer un activo financiero en la extensión en que tenga un derecho contractual incondicional a recibir efectivo u otro activo financiero de o bajo la dirección del otorgante de los servicios de construcción. El operador inicialmente tiene que medir el activo financiero a valor razonable. Después de ello, en la contabilidad del activo financiero tiene que seguir la Sección 11 Instrumentos financieros básicos y la Sección 12 Otros problemas relacionados con los instrumentos financieros.\n"]
["34B-G",null,null,null,null,null,"Sección 34.15","Contabilidad - Modelo del activo intangible\nEl operador tiene que reconocer un activo intangible en la extensión en que reciba un derecho (una licencia) para cargar a los usuarios del servicio público. El operador inicialmente tiene que medir el activo intangible a valor razonable. Después de ello, tiene que seguir la Sección 18 en la contabilidad para el activo intangible.\n"]
[null,null,null,null,null,null,null,"If Yes :"]
["34B-Y",null,null,null,"34B",null,"Sección 34.16","El operador de un acuerdo de servicios de concesión tiene que reconocer, medir y revelar los ingresos ordinarios de acuerdo con la Sección 23 Ingresos ordinarios por los servicios que presta."]

{"sheet":"IFS35P","index":35,"n_rows":30,"n_cols":10,"rows_kept":30,"cut":false,"hidden":false,"merged":[]}
["p/c","parent","level",null,null,"Index",null,null,"PresentTQSummary","Yes"]
[null,null,null,null,null,"Sección 35","Transición hacia la NIIF para PYMES",null,null,"No"]
[null,null,null,null,"PA","Referencia","Requerimiento de presentación/revelación",null,null,"N/A"]
[null,null,null,null,null,null,"Esta Sección de la lista de verificación aborda los requerimientos de presentación y revelación  de la Sección 35, que proporciona orientación sobre la información financiera de quien adopta por primera vez la NIIF para PYMES, independiente de si su anterior estructura de contabilidad fueron las NIIF plenas u otro conjunto de principios de contabilidad generalmente aceptados (PCGA) tal como sus estándares nacionales de contabilidad, u otra estructura tal cmo la base local para los impuestos a los ingresos.",null,null,"Guidance"]
[null,null,null,null,null,null,"Para orientación adicional, seleccione Show en la siguiente columna","Hide",null,"Show"]
["-G",null,null,null,null,"Sección 35.2","Solo una vez la entidad puede ser adoptador por primera vez de la NIIF para PYMES. Si la entidad que usa la NIIF para PYMES deja de usarla por uno o más períodos de presentación de reporte y entonces es requerida, o escoge, adoptarla de nuevo más tarde, las exenciones, simplificaciones y otros requerimientos especiales contenidos en esta Sección no aplican a la re-adopción.",null,null,"Hide"]
[null,null,null,"PA Group","PA","Referencia","Requerimiento de presentación/revelación","Yes / No / N/A","Comentarios"]
[null,"35A",1,"35A","35A",null,"¿En el período corriente de presentación de reporte la entidad que reporta es un adoptador por primera vez de la NIIF para PYMES?","N/A"]
["35A-G",null,null,null,null,"Sección 35.4","Notas:\nLos primeros estados financieros de la entidad que están conformes con esta NIIF son los primeros estados financieros anuales en los cuales la entidad hace una declaración explícita y carente de reservas sobre el cumplimiento con la NIIF para PYMES. Los estados financieros preparados de acuerdo con esta NIIF son los primeros estados financieros de la entidad si, por ejemplo, la entidad:"]
["35A-G",null,null,null,null,"Sección 35.4(a)","(a) no presentó estados financieros para períodos anteriores;"]
["35A-G",null,null,null,null,"Sección 35.4(b)","(b) presentó sus estados financieros anteriores más recientes según requerimientos nacionales que no son cnsistentes con esta NIIF en todos los aspectos; o "]
["35A-G",null,null,null,null,"Sección 35.4(c) ","(c) presentó sus estados financieros anteriores más recientes en conformidad con las NIIF plenas."]
["35A-G",null,null,null,null,null,"Conjunto completo de los estados financieros"]
["35A-G",null,null,null,null,"Sección 35.6","El parágrafo  3.14 requiere que la entidad revele, en el conjunto completo de los estados financieros, información comparativa con relación al período comparable anterior para todas las cantidades monetarias presentadas en los estados financieros, así como también la información narrativa y descriptiva especificada. La entidad puede presentar información comparativa con relación a más de un período anterior. Por consiguiente, la fecha de la  transición de la entidad hacia la NIIF para PYMES es el comienzo del primer período para el cual la entidad presenta información comparativa plena de acuerdo con esta NIIF en sus primeros estados financieros que estén conformes con esta NIIF."]
[null,null,null," ",null,null,"If Yes :"]
["35A-Y",null,null,null,null,null,"Explicación de la transición hacia la NIIF para PYMES "]
["35A-Y",null,null,"35A",null,"Sección 35.11","Si para la entidad es impracticable re-emitir el estado de posición financiera de apertura a la fecha de transición por uno o más de los ajustes requeridos por el parágrafo  35.7, la entidad tiene que aplicar los parágrafos 35.7–35.10 para tales ajustes haciéndolos en el primer período para el cual sea practicable hacerlo, y tiene que identificar los datos presentados para períodos anteriores que no sean comparables con los datos para el período en el cual prepara sus primeros  estados financieros que estén conformes con esta NIIF. Si para la entidad es impracticable proporcionar cualquiera de las revelaciones requeridas por la NIIF para cualquier período anterior al período en el cual prepara sus primeros estados financieros que estén conformes con esta NIIF, la omisión tiene que ser revelada."]
["35A-Y",null,null,null,null,null,"Procedimientos para la preparación de los estados financieros a la fecha de la transición"]
["35A-Y",null,null,"35A",null,"Sección 35.12","La entidad tiene que explicar cómo la transición desde su anterior estructura de información financiera hacia esta NIIF afectó su posición financiera, su desempeño financiero y sus flujos de efectivo reportados."]
["35A-Y",null,null,null,null,null,"Conciliaciones"]
["35A-Y",null,null,"35A",null,null,"Para cumplir con el parágrafo  35.12 (vea abajo), los primeros estados financieros de la entidad preparados usando esta NIIF tienen que incluir:"]
["35A-Y",null,null,"35A",null,"Sección 35.13(a)","(a) una descripción de la naturaleza de cada cambio en la política de contabilidad."]
["35A-Y",null,null,"35A",null,"Sección 35.13(b)","(b) conciliaciones de su patrimonio determinado de acuerdo con su anterior estructura de información financiera con su patrimonio determinado de acuerdo con esta NIIF para ambas de las fechas siguientes:"]
["35A-Y",null,null,"35A",null,null,"(i) la fecha de la transición hacia esta NIIF, y"]
["35A-Y",null,null,"35A",null,null,"(ii) el final del último período presentado en los estados financieros anuales más recientes de la entidad determinado de acuerdo con su anterior estructura de información financiera."]
["35A-Y",null,null,"35A",null,"Sección 35.13(c)","(c) la conciliación de la utilidad o pérdida determada de acuerdo con su anterior estructura de información financiera para el último período contenido en los estados financieros anuales más recientes de la entidad con su utilidad o pérdida determinada de acuerdo con esta NIIF para el mismo período."]
["35A-Y",null,null,null,null,null,"Errores anteriores"]
["35A-Y",null,null,"35A",null,"Sección 35.14","Si la entidad se vuelve conciente de errores cometidos según su anterior estructura de información financiera, las conciliaciones requeridas por el parágrafo  35.13(b) y (c) tienen que, en la extensión en que sea practicable, distinguir la corrección de esos errores de los cambios en las políticas de contabilidad."]
["35A-Y",null,null,null,null,null,"No se presentaron estados financieros anteriores"]
["35A-Y",null,null,"35A",null,"Sección 35.15","Si la entidad no presentó estados financieros para los períodos anteriores, tiene que revelar ese hecho en sus primeros estados financieros que estén conforme con esta NIIF."]

{"sheet":"ExternalVersion","index":36,"n_rows":2,"n_cols":4,"rows_kept":2,"cut":false,"hidden":true,"merged":[]}
["Create External Version?","Yes",null,"Yes"]
[null,null,null,"No"]